Workbook

Sheet NVDA Stock Price History
A1: Date | B1: Price | C1: Open | D1: High | E1: Low | F1: Vol. | G1: Change % | H1: Simple Holding Period Return (HPR)
A2: 44197 | B2: 12.99 | C2: 13.1 | D2: 14 | E2: 12.59 | F2: 6.16B | G2: -0.005 | H2: =(NVIDIA_Stock_Price_History__2[[#This Row],[Price]]-NVIDIA_Stock_Price_History__2[[#This Row],[Open]])/NVIDIA_Stock_Price_History__2[[#This Row],[Open]] -> -0.008396946565
A3: 44228 | B3: 13.71 | C3: 13.05 | D3: 15.37 | E3: 12.9 | F3: 6.68B | G3: 0.0558 | H3: =(NVIDIA_Stock_Price_History__2[[#This Row],[Price]]-NVIDIA_Stock_Price_History__2[[#This Row],[Open]])/NVIDIA_Stock_Price_History__2[[#This Row],[Open]] -> 0.05057471264
A4: 44256 | B4: 13.35 | C4: 13.88 | D4: 13.93 | E4: 11.57 | F4: 7.65B | G4: -0.0267 | H4: =(NVIDIA_Stock_Price_History__2[[#This Row],[Price]]-NVIDIA_Stock_Price_History__2[[#This Row],[Open]])/NVIDIA_Stock_Price_History__2[[#This Row],[Open]] -> -0.03818443804
A5: 44287 | B5: 15.01 | C5: 13.57 | D5: 16.21 | E5: 13.51 | F5: 6.72B | G5: 0.1245 | H5: =(NVIDIA_Stock_Price_History__2[[#This Row],[Price]]-NVIDIA_Stock_Price_History__2[[#This Row],[Open]])/NVIDIA_Stock_Price_History__2[[#This Row],[Open]] -> 0.1061164333
A6: 44317 | B6: 16.24 | C6: 15.13 | D6: 16.28 | E6: 13.46 | F6: 7.05B | G6: 0.0823 | H6: =(NVIDIA_Stock_Price_History__2[[#This Row],[Price]]-NVIDIA_Stock_Price_History__2[[#This Row],[Open]])/NVIDIA_Stock_Price_History__2[[#This Row],[Open]] -> 0.07336417713
A7: 44348 | B7: 20 | C7: 16.27 | D7: 20.16 | E7: 15.9 | F7: 10.27B | G7: 0.2313 | H7: =(NVIDIA_Stock_Price_History__2[[#This Row],[Price]]-NVIDIA_Stock_Price_History__2[[#This Row],[Open]])/NVIDIA_Stock_Price_History__2[[#This Row],[Open]] -> 0.2292562999
A8: 44378 | B8: 19.5 | C8: 20.13 | D8: 20.88 | E8: 17.87 | F8: 7.82B | G8: -0.0252 | H8: =(NVIDIA_Stock_Price_History__2[[#This Row],[Price]]-NVIDIA_Stock_Price_History__2[[#This Row],[Open]])/NVIDIA_Stock_Price_History__2[[#This Row],[Open]] -> -0.03129657228
A9: 44409 | B9: 22.39 | C9: 19.7 | D9: 23.04 | E9: 18.76 | F9: 6.42B | G9: 0.148 | H9: =(NVIDIA_Stock_Price_History__2[[#This Row],[Price]]-NVIDIA_Stock_Price_History__2[[#This Row],[Open]])/NVIDIA_Stock_Price_History__2[[#This Row],[Open]] -> 0.1365482234
A10: 44440 | B10: 20.72 | C10: 22.49 | D10: 22.99 | E10: 20.47 | F10: 5.00B | G10: -0.0746 | H10: =(NVIDIA_Stock_Price_History__2[[#This Row],[Price]]-NVIDIA_Stock_Price_History__2[[#This Row],[Open]])/NVIDIA_Stock_Price_History__2[[#This Row],[Open]] -> -0.07870164518
A11: 44470 | B11: 25.57 | C11: 20.75 | D11: 25.71 | E11: 19.56 | F11: 4.97B | G11: 0.2342 | H11: =(NVIDIA_Stock_Price_History__2[[#This Row],[Price]]-NVIDIA_Stock_Price_History__2[[#This Row],[Open]])/NVIDIA_Stock_Price_History__2[[#This Row],[Open]] -> 0.2322891566
A12: 44501 | B12: 32.68 | C12: 25.65 | D12: 34.65 | E12: 25.23 | F12: 10.81B | G12: 0.2781 | H12: =(NVIDIA_Stock_Price_History__2[[#This Row],[Price]]-NVIDIA_Stock_Price_History__2[[#This Row],[Open]])/NVIDIA_Stock_Price_History__2[[#This Row],[Open]] -> 0.2740740741
A13: 44531 | B13: 29.41 | C13: 33.22 | D13: 33.29 | E13: 27.15 | F13: 11.06B | G13: -0.0999 | H13: =(NVIDIA_Stock_Price_History__2[[#This Row],[Price]]-NVIDIA_Stock_Price_History__2[[#This Row],[Open]])/NVIDIA_Stock_Price_History__2[[#This Row],[Open]] -> -0.1146899458
A14: 44562 | B14: 24.49 | C14: 29.82 | D14: 30.71 | E14: 20.89 | F14: 10.68B | G14: -0.1675 | H14: =(NVIDIA_Stock_Price_History__2[[#This Row],[Price]]-NVIDIA_Stock_Price_History__2[[#This Row],[Open]])/NVIDIA_Stock_Price_History__2[[#This Row],[Open]] -> -0.1787391013
A15: 44593 | B15: 24.39 | C15: 25.1 | D15: 26.92 | E15: 20.89 | F15: 10.65B | G15: -0.0041 | H15: =(NVIDIA_Stock_Price_History__2[[#This Row],[Price]]-NVIDIA_Stock_Price_History__2[[#This Row],[Open]])/NVIDIA_Stock_Price_History__2[[#This Row],[Open]] -> -0.02828685259
A16: 44621 | B16: 27.29 | C16: 24.29 | D16: 28.95 | E16: 20.65 | F16: 11.65B | G16: 0.119 | H16: =(NVIDIA_Stock_Price_History__2[[#This Row],[Price]]-NVIDIA_Stock_Price_History__2[[#This Row],[Open]])/NVIDIA_Stock_Price_History__2[[#This Row],[Open]] -> 0.1235076163
A17: 44652 | B17: 18.55 | C17: 27.38 | D17: 27.56 | E17: 18.29 | F17: 11.11B | G17: -0.3203 | H17: =(NVIDIA_Stock_Price_History__2[[#This Row],[Price]]-NVIDIA_Stock_Price_History__2[[#This Row],[Open]])/NVIDIA_Stock_Price_History__2[[#This Row],[Open]] -> -0.3224981738
A18: 44682 | B18: 18.67 | C18: 18.54 | D18: 20.4 | E18: 15.57 | F18: 13.83B | G18: 0.0067 | H18: =(NVIDIA_Stock_Price_History__2[[#This Row],[Price]]-NVIDIA_Stock_Price_History__2[[#This Row],[Open]])/NVIDIA_Stock_Price_History__2[[#This Row],[Open]] -> 0.007011866235
A19: 44713 | B19: 15.16 | C19: 18.72 | D19: 19.62 | E19: 14.86 | F19: 10.56B | G19: -0.1881 | H19: =(NVIDIA_Stock_Price_History__2[[#This Row],[Price]]-NVIDIA_Stock_Price_History__2[[#This Row],[Open]])/NVIDIA_Stock_Price_History__2[[#This Row],[Open]] -> -0.1901709402
A20: 44743 | B20: 18.16 | C20: 14.9 | D20: 18.24 | E20: 14.06 | F20: 10.57B | G20: 0.1982 | H20: =(NVIDIA_Stock_Price_History__2[[#This Row],[Price]]-NVIDIA_Stock_Price_History__2[[#This Row],[Open]])/NVIDIA_Stock_Price_History__2[[#This Row],[Open]] -> 0.2187919463
A21: 44774 | B21: 15.09 | C21: 18.18 | D21: 19.27 | E21: 14.96 | F21: 12.07B | G21: -0.169 | H21: =(NVIDIA_Stock_Price_History__2[[#This Row],[Price]]-NVIDIA_Stock_Price_History__2[[#This Row],[Open]])/NVIDIA_Stock_Price_History__2[[#This Row],[Open]] -> -0.1699669967
A22: 44805 | B22: 12.14 | C22: 14.21 | D22: 14.55 | E22: 11.95 | F22: 13.13B | G22: -0.1958 | H22: =(NVIDIA_Stock_Price_History__2[[#This Row],[Price]]-NVIDIA_Stock_Price_History__2[[#This Row],[Open]])/NVIDIA_Stock_Price_History__2[[#This Row],[Open]] -> -0.1456720619
A23: 44835 | B23: 13.5 | C23: 12.35 | D23: 13.85 | E23: 10.81 | F23: 12.55B | G23: 0.1119 | H23: =(NVIDIA_Stock_Price_History__2[[#This Row],[Price]]-NVIDIA_Stock_Price_History__2[[#This Row],[Open]])/NVIDIA_Stock_Price_History__2[[#This Row],[Open]] -> 0.09311740891
A24: 44866 | B24: 16.92 | C24: 13.81 | D24: 17 | E24: 12.96 | F24: 10.60B | G24: 0.2538 | H24: =(NVIDIA_Stock_Price_History__2[[#This Row],[Price]]-NVIDIA_Stock_Price_History__2[[#This Row],[Open]])/NVIDIA_Stock_Price_History__2[[#This Row],[Open]] -> 0.2251991311
A25: 44896 | B25: 14.61 | C25: 17 | D25: 18.79 | E25: 13.88 | F25: 8.95B | G25: -0.1364 | H25: =(NVIDIA_Stock_Price_History__2[[#This Row],[Price]]-NVIDIA_Stock_Price_History__2[[#This Row],[Open]])/NVIDIA_Stock_Price_History__2[[#This Row],[Open]] -> -0.1405882353
A26: 44927 | B26: 19.54 | C26: 14.85 | D26: 20.63 | E26: 14.03 | F26: 9.45B | G26: 0.3369 | H26: =(NVIDIA_Stock_Price_History__2[[#This Row],[Price]]-NVIDIA_Stock_Price_History__2[[#This Row],[Open]])/NVIDIA_Stock_Price_History__2[[#This Row],[Open]] -> 0.3158249158
A27: 44958 | B27: 23.22 | C27: 19.69 | D27: 23.89 | E27: 19.61 | F27: 10.39B | G27: 0.1883 | H27: =(NVIDIA_Stock_Price_History__2[[#This Row],[Price]]-NVIDIA_Stock_Price_History__2[[#This Row],[Open]])/NVIDIA_Stock_Price_History__2[[#This Row],[Open]] -> 0.1792788217
A28: 44986 | B28: 27.78 | C28: 23.19 | D28: 27.83 | E28: 22.3 | F28: 11.27B | G28: 0.1965 | H28: =(NVIDIA_Stock_Price_History__2[[#This Row],[Price]]-NVIDIA_Stock_Price_History__2[[#This Row],[Open]])/NVIDIA_Stock_Price_History__2[[#This Row],[Open]] -> 0.1979301423
A29: 45017 | B29: 27.75 | C29: 27.51 | D29: 28.11 | E29: 26.22 | F29: 7.44B | G29: -0.001 | H29: =(NVIDIA_Stock_Price_History__2[[#This Row],[Price]]-NVIDIA_Stock_Price_History__2[[#This Row],[Open]])/NVIDIA_Stock_Price_History__2[[#This Row],[Open]] -> 0.008724100327
A30: 45047 | B30: 37.83 | C30: 27.84 | D30: 41.94 | E30: 27.24 | F30: 11.70B | G30: 0.3634 | H30: =(NVIDIA_Stock_Price_History__2[[#This Row],[Price]]-NVIDIA_Stock_Price_History__2[[#This Row],[Open]])/NVIDIA_Stock_Price_History__2[[#This Row],[Open]] -> 0.3588362069
A31: 45078 | B31: 42.3 | C31: 38.49 | D31: 43.99 | E31: 37.36 | F31: 10.53B | G31: 0.1181 | H31: =(NVIDIA_Stock_Price_History__2[[#This Row],[Price]]-NVIDIA_Stock_Price_History__2[[#This Row],[Open]])/NVIDIA_Stock_Price_History__2[[#This Row],[Open]] -> 0.09898674981
A32: 45108 | B32: 46.73 | C32: 42.52 | D32: 48.09 | E32: 41.35 | F32: 8.71B | G32: 0.1047 | H32: =(NVIDIA_Stock_Price_History__2[[#This Row],[Price]]-NVIDIA_Stock_Price_History__2[[#This Row],[Open]])/NVIDIA_Stock_Price_History__2[[#This Row],[Open]] -> 0.09901222954
A33: 45139 | B33: 49.35 | C33: 46.46 | D33: 50.27 | E33: 40.31 | F33: 13.64B | G33: 0.0562 | H33: =(NVIDIA_Stock_Price_History__2[[#This Row],[Price]]-NVIDIA_Stock_Price_History__2[[#This Row],[Open]])/NVIDIA_Stock_Price_History__2[[#This Row],[Open]] -> 0.06220404649
A34: 45170 | B34: 43.5 | C34: 49.76 | D34: 49.8 | E34: 40.98 | F34: 8.58B | G34: -0.1187 | H34: =(NVIDIA_Stock_Price_History__2[[#This Row],[Price]]-NVIDIA_Stock_Price_History__2[[#This Row],[Open]])/NVIDIA_Stock_Price_History__2[[#This Row],[Open]] -> -0.1258038585
A35: 45200 | B35: 40.78 | C35: 44.03 | D35: 47.61 | E35: 39.23 | F35: 10.14B | G35: -0.0625 | H35: =(NVIDIA_Stock_Price_History__2[[#This Row],[Price]]-NVIDIA_Stock_Price_History__2[[#This Row],[Open]])/NVIDIA_Stock_Price_History__2[[#This Row],[Open]] -> -0.07381330911
A36: 45231 | B36: 46.77 | C36: 40.88 | D36: 50.55 | E36: 40.87 | F36: 9.15B | G36: 0.1469 | H36: =(NVIDIA_Stock_Price_History__2[[#This Row],[Price]]-NVIDIA_Stock_Price_History__2[[#This Row],[Open]])/NVIDIA_Stock_Price_History__2[[#This Row],[Open]] -> 0.1440802348
A37: 45261 | B37: 49.52 | C37: 46.53 | D37: 50.43 | E37: 45.01 | F37: 7.41B | G37: 0.0588 | H37: =(NVIDIA_Stock_Price_History__2[[#This Row],[Price]]-NVIDIA_Stock_Price_History__2[[#This Row],[Open]])/NVIDIA_Stock_Price_History__2[[#This Row],[Open]] -> 0.06425961745
A38: 45292 | B38: 61.53 | C38: 49.24 | D38: 63.49 | E38: 47.32 | F38: 9.71B | G38: 0.2424 | H38: =(NVIDIA_Stock_Price_History__2[[#This Row],[Price]]-NVIDIA_Stock_Price_History__2[[#This Row],[Open]])/NVIDIA_Stock_Price_History__2[[#This Row],[Open]] -> 0.2495938262
A39: 45323 | B39: 79.11 | C39: 62.1 | D39: 82.39 | E39: 61.65 | F39: 11.08B | G39: 0.2858 | H39: =(NVIDIA_Stock_Price_History__2[[#This Row],[Price]]-NVIDIA_Stock_Price_History__2[[#This Row],[Open]])/NVIDIA_Stock_Price_History__2[[#This Row],[Open]] -> 0.2739130435
A40: 45352 | B40: 90.36 | C40: 80 | D40: 97.4 | E40: 79.44 | F40: 12.15B | G40: 0.1421 | H40: =(NVIDIA_Stock_Price_History__2[[#This Row],[Price]]-NVIDIA_Stock_Price_History__2[[#This Row],[Open]])/NVIDIA_Stock_Price_History__2[[#This Row],[Open]] -> 0.1295
A41: 45383 | B41: 86.4 | C41: 90.3 | D41: 92.22 | E41: 75.61 | F41: 10.07B | G41: -0.0438 | H41: =(NVIDIA_Stock_Price_History__2[[#This Row],[Price]]-NVIDIA_Stock_Price_History__2[[#This Row],[Open]])/NVIDIA_Stock_Price_History__2[[#This Row],[Open]] -> -0.04318936877
A42: 45413 | B42: 109.63 | C42: 85.08 | D42: 115.82 | E42: 81.25 | F42: 9.65B | G42: 0.2689 | H42: =(NVIDIA_Stock_Price_History__2[[#This Row],[Price]]-NVIDIA_Stock_Price_History__2[[#This Row],[Open]])/NVIDIA_Stock_Price_History__2[[#This Row],[Open]] -> 0.2885519511
A43: 45444 | B43: 123.54 | C43: 113.62 | D43: 140.76 | E43: 112 | F43: 7.44B | G43: 0.1269 | H43: =(NVIDIA_Stock_Price_History__2[[#This Row],[Price]]-NVIDIA_Stock_Price_History__2[[#This Row],[Open]])/NVIDIA_Stock_Price_History__2[[#This Row],[Open]] -> 0.08730857243
A44: 45474 | B44: 117.02 | C44: 123.47 | D44: 136.15 | E44: 102.54 | F44: 6.41B | G44: -0.0528 | H44: =(NVIDIA_Stock_Price_History__2[[#This Row],[Price]]-NVIDIA_Stock_Price_History__2[[#This Row],[Open]])/NVIDIA_Stock_Price_History__2[[#This Row],[Open]] -> -0.05223941038
A45: 45505 | B45: 119.37 | C45: 117.53 | D45: 131.26 | E45: 90.69 | F45: 8.11B | G45: 0.0201 | H45: =(NVIDIA_Stock_Price_History__2[[#This Row],[Price]]-NVIDIA_Stock_Price_History__2[[#This Row],[Open]])/NVIDIA_Stock_Price_History__2[[#This Row],[Open]] -> 0.0156555773
A46: 45536 | B46: 121.44 | C46: 116.01 | D46: 127.67 | E46: 100.95 | F46: 6.27B | G46: 0.0173 | H46: =(NVIDIA_Stock_Price_History__2[[#This Row],[Price]]-NVIDIA_Stock_Price_History__2[[#This Row],[Open]])/NVIDIA_Stock_Price_History__2[[#This Row],[Open]] -> 0.0468063098
A47: 45566 | B47: 132.76 | C47: 121.76 | D47: 144.42 | E47: 115.14 | F47: 5.63B | G47: 0.0932 | H47: =(NVIDIA_Stock_Price_History__2[[#This Row],[Price]]-NVIDIA_Stock_Price_History__2[[#This Row],[Open]])/NVIDIA_Stock_Price_History__2[[#This Row],[Open]] -> 0.09034165572
A48: 45597 | B48: 138.25 | C48: 134.7 | D48: 152.89 | E48: 131.8 | F48: 4.50B | G48: 0.0414 | H48: =(NVIDIA_Stock_Price_History__2[[#This Row],[Price]]-NVIDIA_Stock_Price_History__2[[#This Row],[Open]])/NVIDIA_Stock_Price_History__2[[#This Row],[Open]] -> 0.02635486266
A49: 45627 | B49: 134.29 | C49: 138.83 | D49: 146.54 | E49: 126.86 | F49: 4.09B | G49: -0.0286 | H49: =(NVIDIA_Stock_Price_History__2[[#This Row],[Price]]-NVIDIA_Stock_Price_History__2[[#This Row],[Open]])/NVIDIA_Stock_Price_History__2[[#This Row],[Open]] -> -0.03270186559
A50: 45658 | B50: 120.07 | C50: 136 | D50: 153.13 | E50: 116.25 | F50: 5.95B | G50: -0.1059 | H50: =(NVIDIA_Stock_Price_History__2[[#This Row],[Price]]-NVIDIA_Stock_Price_History__2[[#This Row],[Open]])/NVIDIA_Stock_Price_History__2[[#This Row],[Open]] -> -0.1171323529
A51: 45689 | B51: 124.92 | C51: 114.75 | D51: 143.44 | E51: 113.01 | F51: 4.76B | G51: 0.0404 | H51: =(NVIDIA_Stock_Price_History__2[[#This Row],[Price]]-NVIDIA_Stock_Price_History__2[[#This Row],[Open]])/NVIDIA_Stock_Price_History__2[[#This Row],[Open]] -> 0.08862745098
A52: 45717 | B52: 108.38 | C52: 123.51 | D52: 123.7 | E52: 103.65 | F52: 6.18B | G52: -0.1324 | H52: =(NVIDIA_Stock_Price_History__2[[#This Row],[Price]]-NVIDIA_Stock_Price_History__2[[#This Row],[Open]])/NVIDIA_Stock_Price_History__2[[#This Row],[Open]] -> -0.1225002024
A53: 45748 | B53: 108.92 | C53: 108.51 | D53: 115.1 | E53: 86.62 | F53: 6.81B | G53: 0.005 | H53: =(NVIDIA_Stock_Price_History__2[[#This Row],[Price]]-NVIDIA_Stock_Price_History__2[[#This Row],[Open]])/NVIDIA_Stock_Price_History__2[[#This Row],[Open]] -> 0.003778453599
A54: 45778 | B54: 135.13 | C54: 113.08 | D54: 143.49 | E54: 110.82 | F54: 4.76B | G54: 0.2406 | H54: =(NVIDIA_Stock_Price_History__2[[#This Row],[Price]]-NVIDIA_Stock_Price_History__2[[#This Row],[Open]])/NVIDIA_Stock_Price_History__2[[#This Row],[Open]] -> 0.194994694
A55: 45809 | B55: 157.99 | C55: 135.49 | D55: 158.71 | E55: 135.4 | F55: 3.82B | G55: 0.1692 | H55: =(NVIDIA_Stock_Price_History__2[[#This Row],[Price]]-NVIDIA_Stock_Price_History__2[[#This Row],[Open]])/NVIDIA_Stock_Price_History__2[[#This Row],[Open]] -> 0.1660639162
A56: 45839 | B56: 177.87 | C56: 156.29 | D56: 183.3 | E56: 151.49 | F56: 3.60B | G56: 0.1258 | H56: =(NVIDIA_Stock_Price_History__2[[#This Row],[Price]]-NVIDIA_Stock_Price_History__2[[#This Row],[Open]])/NVIDIA_Stock_Price_History__2[[#This Row],[Open]] -> 0.1380766524
A57: 45870 | B57: 174.18 | C57: 174.09 | D57: 184.48 | E57: 168.8 | F57: 3.61B | G57: -0.0207 | H57: =(NVIDIA_Stock_Price_History__2[[#This Row],[Price]]-NVIDIA_Stock_Price_History__2[[#This Row],[Open]])/NVIDIA_Stock_Price_History__2[[#This Row],[Open]] -> 0.000516973979
A58: 45901 | B58: 186.58 | C58: 170 | D58: 187.35 | E58: 164.07 | F58: 3.89B | G58: 0.0712 | H58: =(NVIDIA_Stock_Price_History__2[[#This Row],[Price]]-NVIDIA_Stock_Price_History__2[[#This Row],[Open]])/NVIDIA_Stock_Price_History__2[[#This Row],[Open]] -> 0.09752941176
A59: 45931 | B59: 202.49 | C59: 185.24 | D59: 212.19 | E59: 176.76 | F59: 4.03B | G59: 0.0853 | H59: =(NVIDIA_Stock_Price_History__2[[#This Row],[Price]]-NVIDIA_Stock_Price_History__2[[#This Row],[Open]])/NVIDIA_Stock_Price_History__2[[#This Row],[Open]] -> 0.09312243576
A60: 45962 | B60: 177 | C60: 208.08 | D60: 211.34 | E60: 169.55 | F60: 4.16B | G60: -0.1259 | H60: =(NVIDIA_Stock_Price_History__2[[#This Row],[Price]]-NVIDIA_Stock_Price_History__2[[#This Row],[Open]])/NVIDIA_Stock_Price_History__2[[#This Row],[Open]] -> -0.1493656286
A61: 45992 | B61: 186.5 | C61: 174.76 | D61: 192.69 | E61: 170.31 | F61: 3.63B | G61: 0.0537 | H61: =(NVIDIA_Stock_Price_History__2[[#This Row],[Price]]-NVIDIA_Stock_Price_History__2[[#This Row],[Open]])/NVIDIA_Stock_Price_History__2[[#This Row],[Open]] -> 0.0671778439
A62: 46023 | B62: 191.13 | C62: 189.84 | D62: 194.49 | E62: 177.61 | F62: 3.29B | G62: 0.0248 | H62: =(NVIDIA_Stock_Price_History__2[[#This Row],[Price]]-NVIDIA_Stock_Price_History__2[[#This Row],[Open]])/NVIDIA_Stock_Price_History__2[[#This Row],[Open]] -> 0.006795195954
A63: 46054 | B63: 177.19 | C63: 187.2 | D63: 197.63 | E63: 171.03 | F63: 3.75B | G63: -0.0729 | H63: =(NVIDIA_Stock_Price_History__2[[#This Row],[Price]]-NVIDIA_Stock_Price_History__2[[#This Row],[Open]])/NVIDIA_Stock_Price_History__2[[#This Row],[Open]] -> -0.05347222222
A64: 46082 | B64: 174.4 | C64: 175.01 | D64: 188.88 | E64: 164.27 | F64: 4.03B | G64: -0.0157 | H64: =(NVIDIA_Stock_Price_History__2[[#This Row],[Price]]-NVIDIA_Stock_Price_History__2[[#This Row],[Open]])/NVIDIA_Stock_Price_History__2[[#This Row],[Open]] -> -0.003485515113
A65: 46113 | B65: 213.94 | C65: 176 | D65: 216.82 | E65: 171.37 | F65: 2.75B | G65: 0.2267 | H65: =(NVIDIA_Stock_Price_History__2[[#This Row],[Price]]-NVIDIA_Stock_Price_History__2[[#This Row],[Open]])/NVIDIA_Stock_Price_History__2[[#This Row],[Open]] -> 0.2155681818

Sheet JPM Stock Price History
A1: Date | B1: Price | C1: Open | D1: High | E1: Low | F1: Vol. | G1: Change % | H1: Simple Holding Period Return (HPR)
A2: 44197 | B2: 128.67 | C2: 127.5 | D2: 142.75 | E2: 123.77 | F2: 318.60M | G2: 0.0126 | H2: =(JPMorgan_Stock_Price_History__2[[#This Row],[Price]]-JPMorgan_Stock_Price_History__2[[#This Row],[Open]])/JPMorgan_Stock_Price_History__2[[#This Row],[Open]] -> 0.009176470588
A3: 44228 | B3: 147.17 | C3: 129.4 | D3: 154.9 | E3: 128.48 | F3: 229.27M | G3: 0.1438 | H3: =(JPMorgan_Stock_Price_History__2[[#This Row],[Price]]-JPMorgan_Stock_Price_History__2[[#This Row],[Open]])/JPMorgan_Stock_Price_History__2[[#This Row],[Open]] -> 0.1373261206
A4: 44256 | B4: 152.23 | C4: 149.52 | D4: 161.69 | E4: 147.97 | F4: 399.42M | G4: 0.0344 | H4: =(JPMorgan_Stock_Price_History__2[[#This Row],[Price]]-JPMorgan_Stock_Price_History__2[[#This Row],[Open]])/JPMorgan_Stock_Price_History__2[[#This Row],[Open]] -> 0.0181246656
A5: 44287 | B5: 153.81 | C5: 151.9 | D5: 157.25 | E5: 146.68 | F5: 288.70M | G5: 0.0104 | H5: =(JPMorgan_Stock_Price_History__2[[#This Row],[Price]]-JPMorgan_Stock_Price_History__2[[#This Row],[Open]])/JPMorgan_Stock_Price_History__2[[#This Row],[Open]] -> 0.01257406188
A6: 44317 | B6: 164.24 | C6: 154.85 | D6: 165.7 | E6: 152.14 | F6: 248.96M | G6: 0.0678 | H6: =(JPMorgan_Stock_Price_History__2[[#This Row],[Price]]-JPMorgan_Stock_Price_History__2[[#This Row],[Open]])/JPMorgan_Stock_Price_History__2[[#This Row],[Open]] -> 0.06063932838
A7: 44348 | B7: 155.54 | C7: 165.87 | D7: 167.44 | E7: 147.56 | F7: 356.72M | G7: -0.053 | H7: =(JPMorgan_Stock_Price_History__2[[#This Row],[Price]]-JPMorgan_Stock_Price_History__2[[#This Row],[Open]])/JPMorgan_Stock_Price_History__2[[#This Row],[Open]] -> -0.06227768735
A8: 44378 | B8: 151.78 | C8: 156.26 | D8: 159.16 | E8: 145.71 | F8: 280.58M | G8: -0.0242 | H8: =(JPMorgan_Stock_Price_History__2[[#This Row],[Price]]-JPMorgan_Stock_Price_History__2[[#This Row],[Open]])/JPMorgan_Stock_Price_History__2[[#This Row],[Open]] -> -0.02867016511
A9: 44409 | B9: 159.95 | C9: 152.03 | D9: 163.83 | E9: 149.52 | F9: 208.09M | G9: 0.0538 | H9: =(JPMorgan_Stock_Price_History__2[[#This Row],[Price]]-JPMorgan_Stock_Price_History__2[[#This Row],[Open]])/JPMorgan_Stock_Price_History__2[[#This Row],[Open]] -> 0.05209498125
A10: 44440 | B10: 163.69 | C10: 160.22 | D10: 169.3 | E10: 150.49 | F10: 234.83M | G10: 0.0234 | H10: =(JPMorgan_Stock_Price_History__2[[#This Row],[Price]]-JPMorgan_Stock_Price_History__2[[#This Row],[Open]])/JPMorgan_Stock_Price_History__2[[#This Row],[Open]] -> 0.02165772063
A11: 44470 | B11: 169.89 | C11: 164 | D11: 172.96 | E11: 160.06 | F11: 231.68M | G11: 0.0379 | H11: =(JPMorgan_Stock_Price_History__2[[#This Row],[Price]]-JPMorgan_Stock_Price_History__2[[#This Row],[Open]])/JPMorgan_Stock_Price_History__2[[#This Row],[Open]] -> 0.03591463415
A12: 44501 | B12: 158.83 | C12: 172.04 | D12: 172.33 | E12: 158.29 | F12: 203.51M | G12: -0.0651 | H12: =(JPMorgan_Stock_Price_History__2[[#This Row],[Price]]-JPMorgan_Stock_Price_History__2[[#This Row],[Open]])/JPMorgan_Stock_Price_History__2[[#This Row],[Open]] -> -0.07678446873
A13: 44531 | B13: 158.35 | C13: 161 | D13: 163.39 | E13: 151.84 | F13: 252.03M | G13: -0.003 | H13: =(JPMorgan_Stock_Price_History__2[[#This Row],[Price]]-JPMorgan_Stock_Price_History__2[[#This Row],[Open]])/JPMorgan_Stock_Price_History__2[[#This Row],[Open]] -> -0.01645962733
A14: 44562 | B14: 148.6 | C14: 159.86 | D14: 169.81 | E14: 139.57 | F14: 374.02M | G14: -0.0616 | H14: =(JPMorgan_Stock_Price_History__2[[#This Row],[Price]]-JPMorgan_Stock_Price_History__2[[#This Row],[Open]])/JPMorgan_Stock_Price_History__2[[#This Row],[Open]] -> -0.07043663205
A15: 44593 | B15: 141.8 | C15: 148.69 | D15: 159.03 | E15: 139.78 | F15: 288.73M | G15: -0.0458 | H15: =(JPMorgan_Stock_Price_History__2[[#This Row],[Price]]-JPMorgan_Stock_Price_History__2[[#This Row],[Open]])/JPMorgan_Stock_Price_History__2[[#This Row],[Open]] -> -0.0463380187
A16: 44621 | B16: 136.32 | C16: 140.04 | D16: 143.93 | E16: 127.27 | F16: 390.80M | G16: -0.0386 | H16: =(JPMorgan_Stock_Price_History__2[[#This Row],[Price]]-JPMorgan_Stock_Price_History__2[[#This Row],[Open]])/JPMorgan_Stock_Price_History__2[[#This Row],[Open]] -> -0.0265638389
A17: 44652 | B17: 119.36 | C17: 137.4 | D17: 137.41 | E17: 118.9 | F17: 303.66M | G17: -0.1244 | H17: =(JPMorgan_Stock_Price_History__2[[#This Row],[Price]]-JPMorgan_Stock_Price_History__2[[#This Row],[Open]])/JPMorgan_Stock_Price_History__2[[#This Row],[Open]] -> -0.1312954876
A18: 44682 | B18: 132.23 | C18: 119.88 | D18: 133.15 | E18: 115.02 | F18: 313.63M | G18: 0.1078 | H18: =(JPMorgan_Stock_Price_History__2[[#This Row],[Price]]-JPMorgan_Stock_Price_History__2[[#This Row],[Open]])/JPMorgan_Stock_Price_History__2[[#This Row],[Open]] -> 0.1030196864
A19: 44713 | B19: 112.61 | C19: 132.87 | D19: 132.87 | E19: 110.93 | F19: 268.24M | G19: -0.1484 | H19: =(JPMorgan_Stock_Price_History__2[[#This Row],[Price]]-JPMorgan_Stock_Price_History__2[[#This Row],[Open]])/JPMorgan_Stock_Price_History__2[[#This Row],[Open]] -> -0.1524798675
A20: 44743 | B20: 115.36 | C20: 112.65 | D20: 116.5 | E20: 106.06 | F20: 239.57M | G20: 0.0244 | H20: =(JPMorgan_Stock_Price_History__2[[#This Row],[Price]]-JPMorgan_Stock_Price_History__2[[#This Row],[Open]])/JPMorgan_Stock_Price_History__2[[#This Row],[Open]] -> 0.02405681314
A21: 44774 | B21: 113.73 | C21: 114.5 | D21: 124.24 | E21: 111.02 | F21: 258.44M | G21: -0.0141 | H21: =(JPMorgan_Stock_Price_History__2[[#This Row],[Price]]-JPMorgan_Stock_Price_History__2[[#This Row],[Open]])/JPMorgan_Stock_Price_History__2[[#This Row],[Open]] -> -0.00672489083
A22: 44805 | B22: 104.5 | C22: 113.29 | D22: 121.55 | E22: 104.4 | F22: 248.56M | G22: -0.0812 | H22: =(JPMorgan_Stock_Price_History__2[[#This Row],[Price]]-JPMorgan_Stock_Price_History__2[[#This Row],[Open]])/JPMorgan_Stock_Price_History__2[[#This Row],[Open]] -> -0.07758848972
A23: 44835 | B23: 125.88 | C23: 105.62 | D23: 127.43 | E23: 101.28 | F23: 318.23M | G23: 0.2046 | H23: =(JPMorgan_Stock_Price_History__2[[#This Row],[Price]]-JPMorgan_Stock_Price_History__2[[#This Row],[Open]])/JPMorgan_Stock_Price_History__2[[#This Row],[Open]] -> 0.1918197311
A24: 44866 | B24: 138.18 | C24: 126.87 | D24: 138.18 | E24: 125.91 | F24: 226.63M | G24: 0.0977 | H24: =(JPMorgan_Stock_Price_History__2[[#This Row],[Price]]-JPMorgan_Stock_Price_History__2[[#This Row],[Open]])/JPMorgan_Stock_Price_History__2[[#This Row],[Open]] -> 0.0891463703
A25: 44896 | B25: 134.1 | C25: 138.18 | D25: 138.66 | E25: 128.41 | F25: 202.05M | G25: -0.0295 | H25: =(JPMorgan_Stock_Price_History__2[[#This Row],[Price]]-JPMorgan_Stock_Price_History__2[[#This Row],[Open]])/JPMorgan_Stock_Price_History__2[[#This Row],[Open]] -> -0.0295267043
A26: 44927 | B26: 139.96 | C26: 135.24 | D26: 143.49 | E26: 133.55 | F26: 209.97M | G26: 0.0437 | H26: =(JPMorgan_Stock_Price_History__2[[#This Row],[Price]]-JPMorgan_Stock_Price_History__2[[#This Row],[Open]])/JPMorgan_Stock_Price_History__2[[#This Row],[Open]] -> 0.03490091689
A27: 44958 | B27: 143.35 | C27: 138.21 | D27: 144.34 | E27: 137.43 | F27: 169.57M | G27: 0.0242 | H27: =(JPMorgan_Stock_Price_History__2[[#This Row],[Price]]-JPMorgan_Stock_Price_History__2[[#This Row],[Open]])/JPMorgan_Stock_Price_History__2[[#This Row],[Open]] -> 0.03718978366
A28: 44986 | B28: 130.31 | C28: 142.1 | D28: 144.04 | E28: 123.11 | F28: 458.50M | G28: -0.091 | H28: =(JPMorgan_Stock_Price_History__2[[#This Row],[Price]]-JPMorgan_Stock_Price_History__2[[#This Row],[Open]])/JPMorgan_Stock_Price_History__2[[#This Row],[Open]] -> -0.08296973962
A29: 45017 | B29: 138.24 | C29: 129.91 | D29: 141.78 | E29: 126.22 | F29: 242.87M | G29: 0.0609 | H29: =(JPMorgan_Stock_Price_History__2[[#This Row],[Price]]-JPMorgan_Stock_Price_History__2[[#This Row],[Open]])/JPMorgan_Stock_Price_History__2[[#This Row],[Open]] -> 0.06412131476
A30: 45047 | B30: 135.71 | C30: 142.26 | D30: 143.37 | E30: 131.81 | F30: 235.31M | G30: -0.0183 | H30: =(JPMorgan_Stock_Price_History__2[[#This Row],[Price]]-JPMorgan_Stock_Price_History__2[[#This Row],[Open]])/JPMorgan_Stock_Price_History__2[[#This Row],[Open]] -> -0.04604245747
A31: 45078 | B31: 145.44 | C31: 136.52 | D31: 146 | E31: 135.45 | F31: 207.75M | G31: 0.0717 | H31: =(JPMorgan_Stock_Price_History__2[[#This Row],[Price]]-JPMorgan_Stock_Price_History__2[[#This Row],[Open]])/JPMorgan_Stock_Price_History__2[[#This Row],[Open]] -> 0.06533841195
A32: 45108 | B32: 157.96 | C32: 146.19 | D32: 159.38 | E32: 141.44 | F32: 231.27M | G32: 0.0861 | H32: =(JPMorgan_Stock_Price_History__2[[#This Row],[Price]]-JPMorgan_Stock_Price_History__2[[#This Row],[Open]])/JPMorgan_Stock_Price_History__2[[#This Row],[Open]] -> 0.0805116629
A33: 45139 | B33: 146.33 | C33: 157.43 | D33: 158 | E33: 145.46 | F33: 169.32M | G33: -0.0736 | H33: =(JPMorgan_Stock_Price_History__2[[#This Row],[Price]]-JPMorgan_Stock_Price_History__2[[#This Row],[Open]])/JPMorgan_Stock_Price_History__2[[#This Row],[Open]] -> -0.07050752715
A34: 45170 | B34: 145.02 | C34: 146.09 | D34: 150.25 | E34: 142.65 | F34: 172.25M | G34: -0.009 | H34: =(JPMorgan_Stock_Price_History__2[[#This Row],[Price]]-JPMorgan_Stock_Price_History__2[[#This Row],[Open]])/JPMorgan_Stock_Price_History__2[[#This Row],[Open]] -> -0.007324252173
A35: 45200 | B35: 139.06 | C35: 144.83 | D35: 153.11 | E35: 135.19 | F35: 244.07M | G35: -0.0411 | H35: =(JPMorgan_Stock_Price_History__2[[#This Row],[Price]]-JPMorgan_Stock_Price_History__2[[#This Row],[Open]])/JPMorgan_Stock_Price_History__2[[#This Row],[Open]] -> -0.03983981219
A36: 45231 | B36: 156.08 | C36: 139.25 | D36: 156.13 | E36: 138.47 | F36: 162.20M | G36: 0.1224 | H36: =(JPMorgan_Stock_Price_History__2[[#This Row],[Price]]-JPMorgan_Stock_Price_History__2[[#This Row],[Open]])/JPMorgan_Stock_Price_History__2[[#This Row],[Open]] -> 0.1208617594
A37: 45261 | B37: 170.1 | C37: 155.82 | D37: 170.69 | E37: 155.82 | F37: 184.77M | G37: 0.0898 | H37: =(JPMorgan_Stock_Price_History__2[[#This Row],[Price]]-JPMorgan_Stock_Price_History__2[[#This Row],[Open]])/JPMorgan_Stock_Price_History__2[[#This Row],[Open]] -> 0.09164420485
A38: 45292 | B38: 174.36 | C38: 169.09 | D38: 178.3 | E38: 164.3 | F38: 231.66M | G38: 0.025 | H38: =(JPMorgan_Stock_Price_History__2[[#This Row],[Price]]-JPMorgan_Stock_Price_History__2[[#This Row],[Open]])/JPMorgan_Stock_Price_History__2[[#This Row],[Open]] -> 0.03116683423
A39: 45323 | B39: 186.06 | C39: 173.64 | D39: 186.43 | E39: 171.43 | F39: 154.74M | G39: 0.0671 | H39: =(JPMorgan_Stock_Price_History__2[[#This Row],[Price]]-JPMorgan_Stock_Price_History__2[[#This Row],[Open]])/JPMorgan_Stock_Price_History__2[[#This Row],[Open]] -> 0.07152729786
A40: 45352 | B40: 200.3 | C40: 185.7 | D40: 200.72 | E40: 184.27 | F40: 166.26M | G40: 0.0765 | H40: =(JPMorgan_Stock_Price_History__2[[#This Row],[Price]]-JPMorgan_Stock_Price_History__2[[#This Row],[Open]])/JPMorgan_Stock_Price_History__2[[#This Row],[Open]] -> 0.07862143242
A41: 45383 | B41: 191.74 | C41: 199.99 | D41: 200.94 | E41: 179.2 | F41: 224.78M | G41: -0.0427 | H41: =(JPMorgan_Stock_Price_History__2[[#This Row],[Price]]-JPMorgan_Stock_Price_History__2[[#This Row],[Open]])/JPMorgan_Stock_Price_History__2[[#This Row],[Open]] -> -0.0412520626
A42: 45413 | B42: 202.63 | C42: 192.27 | D42: 205.88 | E42: 188.46 | F42: 195.90M | G42: 0.0568 | H42: =(JPMorgan_Stock_Price_History__2[[#This Row],[Price]]-JPMorgan_Stock_Price_History__2[[#This Row],[Open]])/JPMorgan_Stock_Price_History__2[[#This Row],[Open]] -> 0.05388256098
A43: 45444 | B43: 202.26 | C43: 202.31 | D43: 202.6 | E43: 190.88 | F43: 174.90M | G43: -0.0018 | H43: =(JPMorgan_Stock_Price_History__2[[#This Row],[Price]]-JPMorgan_Stock_Price_History__2[[#This Row],[Open]])/JPMorgan_Stock_Price_History__2[[#This Row],[Open]] -> -0.0002471454698
A44: 45474 | B44: 212.8 | C44: 202.84 | D44: 217.56 | E44: 202.1 | F44: 197.46M | G44: 0.0521 | H44: =(JPMorgan_Stock_Price_History__2[[#This Row],[Price]]-JPMorgan_Stock_Price_History__2[[#This Row],[Open]])/JPMorgan_Stock_Price_History__2[[#This Row],[Open]] -> 0.04910274108
A45: 45505 | B45: 224.8 | C45: 213.2 | D45: 225.48 | E45: 190.9 | F45: 172.44M | G45: 0.0564 | H45: =(JPMorgan_Stock_Price_History__2[[#This Row],[Price]]-JPMorgan_Stock_Price_History__2[[#This Row],[Open]])/JPMorgan_Stock_Price_History__2[[#This Row],[Open]] -> 0.05440900563
A46: 45536 | B46: 210.86 | C46: 222.3 | D46: 224.1 | E46: 200.61 | F46: 206.49M | G46: -0.062 | H46: =(JPMorgan_Stock_Price_History__2[[#This Row],[Price]]-JPMorgan_Stock_Price_History__2[[#This Row],[Open]])/JPMorgan_Stock_Price_History__2[[#This Row],[Open]] -> -0.0514619883
A47: 45566 | B47: 221.92 | C47: 208.9 | D47: 226.75 | E47: 204.34 | F47: 178.34M | G47: 0.0525 | H47: =(JPMorgan_Stock_Price_History__2[[#This Row],[Price]]-JPMorgan_Stock_Price_History__2[[#This Row],[Open]])/JPMorgan_Stock_Price_History__2[[#This Row],[Open]] -> 0.062326472
A48: 45597 | B48: 249.72 | C48: 223.56 | D48: 254.31 | E48: 219.17 | F48: 188.85M | G48: 0.1253 | H48: =(JPMorgan_Stock_Price_History__2[[#This Row],[Price]]-JPMorgan_Stock_Price_History__2[[#This Row],[Open]])/JPMorgan_Stock_Price_History__2[[#This Row],[Open]] -> 0.1170155663
A49: 45627 | B49: 239.71 | C49: 249.55 | D49: 250.25 | E49: 229.53 | F49: 181.27M | G49: -0.0401 | H49: =(JPMorgan_Stock_Price_History__2[[#This Row],[Price]]-JPMorgan_Stock_Price_History__2[[#This Row],[Open]])/JPMorgan_Stock_Price_History__2[[#This Row],[Open]] -> -0.03943097576
A50: 45658 | B50: 267.3 | C50: 240.92 | D50: 270.82 | E50: 238.74 | F50: 209.83M | G50: 0.1151 | H50: =(JPMorgan_Stock_Price_History__2[[#This Row],[Price]]-JPMorgan_Stock_Price_History__2[[#This Row],[Open]])/JPMorgan_Stock_Price_History__2[[#This Row],[Open]] -> 0.1094969284
A51: 45689 | B51: 264.65 | C51: 261.83 | D51: 280.25 | E51: 253.35 | F51: 156.63M | G51: -0.0099 | H51: =(JPMorgan_Stock_Price_History__2[[#This Row],[Price]]-JPMorgan_Stock_Price_History__2[[#This Row],[Open]])/JPMorgan_Stock_Price_History__2[[#This Row],[Open]] -> 0.01077034717
A52: 45717 | B52: 245.3 | C52: 264 | D52: 266.32 | E52: 224.23 | F52: 265.19M | G52: -0.0731 | H52: =(JPMorgan_Stock_Price_History__2[[#This Row],[Price]]-JPMorgan_Stock_Price_History__2[[#This Row],[Open]])/JPMorgan_Stock_Price_History__2[[#This Row],[Open]] -> -0.07083333333
A53: 45748 | B53: 244.62 | C53: 242.62 | D53: 247.24 | E53: 202.16 | F53: 287.38M | G53: -0.0028 | H53: =(JPMorgan_Stock_Price_History__2[[#This Row],[Price]]-JPMorgan_Stock_Price_History__2[[#This Row],[Open]])/JPMorgan_Stock_Price_History__2[[#This Row],[Open]] -> 0.0082433435
A54: 45778 | B54: 264 | C54: 242.84 | D54: 269.52 | E54: 242.17 | F54: 165.12M | G54: 0.0792 | H54: =(JPMorgan_Stock_Price_History__2[[#This Row],[Price]]-JPMorgan_Stock_Price_History__2[[#This Row],[Open]])/JPMorgan_Stock_Price_History__2[[#This Row],[Open]] -> 0.08713556251
A55: 45809 | B55: 289.91 | C55: 263.02 | D55: 292.65 | E55: 260.31 | F55: 174.37M | G55: 0.0981 | H55: =(JPMorgan_Stock_Price_History__2[[#This Row],[Price]]-JPMorgan_Stock_Price_History__2[[#This Row],[Open]])/JPMorgan_Stock_Price_History__2[[#This Row],[Open]] -> 0.1022355714
A56: 45839 | B56: 296.24 | C56: 290.89 | D56: 301.29 | E56: 280.31 | F56: 198.60M | G56: 0.0218 | H56: =(JPMorgan_Stock_Price_History__2[[#This Row],[Price]]-JPMorgan_Stock_Price_History__2[[#This Row],[Open]])/JPMorgan_Stock_Price_History__2[[#This Row],[Open]] -> 0.01839183196
A57: 45870 | B57: 301.42 | C57: 290.4 | D57: 302.95 | E57: 284.24 | F57: 148.83M | G57: 0.0175 | H57: =(JPMorgan_Stock_Price_History__2[[#This Row],[Price]]-JPMorgan_Stock_Price_History__2[[#This Row],[Open]])/JPMorgan_Stock_Price_History__2[[#This Row],[Open]] -> 0.0379476584
A58: 45901 | B58: 315.43 | C58: 300.26 | D58: 318.01 | E58: 291.44 | F58: 182.56M | G58: 0.0465 | H58: =(JPMorgan_Stock_Price_History__2[[#This Row],[Price]]-JPMorgan_Stock_Price_History__2[[#This Row],[Open]])/JPMorgan_Stock_Price_History__2[[#This Row],[Open]] -> 0.05052288017
A59: 45931 | B59: 311.12 | C59: 313.97 | D59: 314.59 | E59: 290.54 | F59: 189.43M | G59: -0.0137 | H59: =(JPMorgan_Stock_Price_History__2[[#This Row],[Price]]-JPMorgan_Stock_Price_History__2[[#This Row],[Open]])/JPMorgan_Stock_Price_History__2[[#This Row],[Open]] -> -0.009077300379
A60: 45962 | B60: 313.08 | C60: 311 | D60: 322.25 | E60: 292.81 | F60: 150.22M | G60: 0.0063 | H60: =(JPMorgan_Stock_Price_History__2[[#This Row],[Price]]-JPMorgan_Stock_Price_History__2[[#This Row],[Open]])/JPMorgan_Stock_Price_History__2[[#This Row],[Open]] -> 0.006688102894
A61: 45992 | B61: 322.22 | C61: 312.95 | D61: 330.86 | E61: 298.46 | F61: 211.62M | G61: 0.0292 | H61: =(JPMorgan_Stock_Price_History__2[[#This Row],[Price]]-JPMorgan_Stock_Price_History__2[[#This Row],[Open]])/JPMorgan_Stock_Price_History__2[[#This Row],[Open]] -> 0.02962134526
A62: 46023 | B62: 305.89 | C62: 322.5 | D62: 337.25 | E62: 296.51 | F62: 243.47M | G62: -0.0507 | H62: =(JPMorgan_Stock_Price_History__2[[#This Row],[Price]]-JPMorgan_Stock_Price_History__2[[#This Row],[Open]])/JPMorgan_Stock_Price_History__2[[#This Row],[Open]] -> -0.05150387597
A63: 46054 | B63: 300.3 | C63: 304.46 | D63: 326.4 | E63: 291.38 | F63: 203.07M | G63: -0.0183 | H63: =(JPMorgan_Stock_Price_History__2[[#This Row],[Price]]-JPMorgan_Stock_Price_History__2[[#This Row],[Open]])/JPMorgan_Stock_Price_History__2[[#This Row],[Open]] -> -0.01366353544
A64: 46082 | B64: 294.16 | C64: 294.81 | D64: 302.39 | E64: 279.1 | F64: 244.15M | G64: -0.0204 | H64: =(JPMorgan_Stock_Price_History__2[[#This Row],[Price]]-JPMorgan_Stock_Price_History__2[[#This Row],[Open]])/JPMorgan_Stock_Price_History__2[[#This Row],[Open]] -> -0.002204809878
A65: 46113 | B65: 311.57 | C65: 295.39 | D65: 320.23 | E65: 288.72 | F65: 152.18M | G65: 0.0592 | H65: =(JPMorgan_Stock_Price_History__2[[#This Row],[Price]]-JPMorgan_Stock_Price_History__2[[#This Row],[Open]])/JPMorgan_Stock_Price_History__2[[#This Row],[Open]] -> 0.05477504316

Sheet JNJ Stock Price History
A1: Date | B1: Price | C1: Open | D1: High | E1: Low | F1: Vol. | G1: Change % | H1: Simple Holding Period Return (HPR)
A2: 44197 | B2: 163.13 | C2: 157.24 | D2: 173.65 | E2: 154.13 | F2: 184.50M | G2: 0.0365 | H2: =(J_J_Stock_Price_History__2[[#This Row],[Price]]-J_J_Stock_Price_History__2[[#This Row],[Open]])/J_J_Stock_Price_History__2[[#This Row],[Open]] -> 0.03745866192
A3: 44228 | B3: 158.46 | C3: 165.31 | D3: 167.94 | E3: 157.97 | F3: 147.69M | G3: -0.0286 | H3: =(J_J_Stock_Price_History__2[[#This Row],[Price]]-J_J_Stock_Price_History__2[[#This Row],[Open]])/J_J_Stock_Price_History__2[[#This Row],[Open]] -> -0.04143729962
A4: 44256 | B4: 164.35 | C4: 161.45 | D4: 167.03 | E4: 151.47 | F4: 175.08M | G4: 0.0372 | H4: =(J_J_Stock_Price_History__2[[#This Row],[Price]]-J_J_Stock_Price_History__2[[#This Row],[Open]])/J_J_Stock_Price_History__2[[#This Row],[Open]] -> 0.0179622174
A5: 44287 | B5: 162.73 | C5: 162.6 | D5: 167.79 | E5: 156.53 | F5: 162.67M | G5: -0.0099 | H5: =(J_J_Stock_Price_History__2[[#This Row],[Price]]-J_J_Stock_Price_History__2[[#This Row],[Open]])/J_J_Stock_Price_History__2[[#This Row],[Open]] -> 0.0007995079951
A6: 44317 | B6: 169.25 | C6: 163.6 | D6: 172.74 | E6: 163.12 | F6: 133.90M | G6: 0.0401 | H6: =(J_J_Stock_Price_History__2[[#This Row],[Price]]-J_J_Stock_Price_History__2[[#This Row],[Open]])/J_J_Stock_Price_History__2[[#This Row],[Open]] -> 0.03453545232
A7: 44348 | B7: 164.74 | C7: 170.15 | D7: 170.2 | E7: 161.79 | F7: 145.67M | G7: -0.0266 | H7: =(J_J_Stock_Price_History__2[[#This Row],[Price]]-J_J_Stock_Price_History__2[[#This Row],[Open]])/J_J_Stock_Price_History__2[[#This Row],[Open]] -> -0.03179547458
A8: 44378 | B8: 172.2 | C8: 164.74 | D8: 173.38 | E8: 164.63 | F8: 133.73M | G8: 0.0453 | H8: =(J_J_Stock_Price_History__2[[#This Row],[Price]]-J_J_Stock_Price_History__2[[#This Row],[Open]])/J_J_Stock_Price_History__2[[#This Row],[Open]] -> 0.04528347699
A9: 44409 | B9: 173.13 | C9: 172.47 | D9: 179.92 | E9: 171.3 | F9: 114.79M | G9: 0.0054 | H9: =(J_J_Stock_Price_History__2[[#This Row],[Price]]-J_J_Stock_Price_History__2[[#This Row],[Open]])/J_J_Stock_Price_History__2[[#This Row],[Open]] -> 0.003826752479
A10: 44440 | B10: 161.5 | C10: 172.9 | D10: 175.22 | E10: 161.41 | F10: 132.04M | G10: -0.0672 | H10: =(J_J_Stock_Price_History__2[[#This Row],[Price]]-J_J_Stock_Price_History__2[[#This Row],[Open]])/J_J_Stock_Price_History__2[[#This Row],[Open]] -> -0.06593406593
A11: 44470 | B11: 162.88 | C11: 161.53 | D11: 166.03 | E11: 157.34 | F11: 136.33M | G11: 0.0085 | H11: =(J_J_Stock_Price_History__2[[#This Row],[Price]]-J_J_Stock_Price_History__2[[#This Row],[Open]])/J_J_Stock_Price_History__2[[#This Row],[Open]] -> 0.008357580635
A12: 44501 | B12: 155.93 | C12: 163.16 | D12: 167.62 | E12: 155.85 | F12: 164.28M | G12: -0.0427 | H12: =(J_J_Stock_Price_History__2[[#This Row],[Price]]-J_J_Stock_Price_History__2[[#This Row],[Open]])/J_J_Stock_Price_History__2[[#This Row],[Open]] -> -0.04431233145
A13: 44531 | B13: 171.07 | C13: 156.88 | D13: 173.51 | E13: 156.25 | F13: 167.98M | G13: 0.0971 | H13: =(J_J_Stock_Price_History__2[[#This Row],[Price]]-J_J_Stock_Price_History__2[[#This Row],[Open]])/J_J_Stock_Price_History__2[[#This Row],[Open]] -> 0.09045130036
A14: 44562 | B14: 172.29 | C14: 170.21 | D14: 174.3 | E14: 158.26 | F14: 165.57M | G14: 0.0071 | H14: =(J_J_Stock_Price_History__2[[#This Row],[Price]]-J_J_Stock_Price_History__2[[#This Row],[Open]])/J_J_Stock_Price_History__2[[#This Row],[Open]] -> 0.01222019858
A15: 44593 | B15: 164.57 | C15: 171.74 | D15: 173.62 | E15: 155.72 | F15: 154.62M | G15: -0.0448 | H15: =(J_J_Stock_Price_History__2[[#This Row],[Price]]-J_J_Stock_Price_History__2[[#This Row],[Open]])/J_J_Stock_Price_History__2[[#This Row],[Open]] -> -0.0417491557
A16: 44621 | B16: 177.23 | C16: 163.04 | D16: 180.21 | E16: 162.41 | F16: 180.11M | G16: 0.0769 | H16: =(J_J_Stock_Price_History__2[[#This Row],[Price]]-J_J_Stock_Price_History__2[[#This Row],[Open]])/J_J_Stock_Price_History__2[[#This Row],[Open]] -> 0.08703385672
A17: 44652 | B17: 180.46 | C17: 177.05 | D17: 186.69 | E17: 175.52 | F17: 163.46M | G17: 0.0182 | H17: =(J_J_Stock_Price_History__2[[#This Row],[Price]]-J_J_Stock_Price_History__2[[#This Row],[Open]])/J_J_Stock_Price_History__2[[#This Row],[Open]] -> 0.01926009602
A18: 44682 | B18: 179.53 | C18: 180.47 | D18: 181.74 | E18: 172.69 | F18: 152.74M | G18: -0.0052 | H18: =(J_J_Stock_Price_History__2[[#This Row],[Price]]-J_J_Stock_Price_History__2[[#This Row],[Open]])/J_J_Stock_Price_History__2[[#This Row],[Open]] -> -0.005208621932
A19: 44713 | B19: 177.51 | C19: 179.15 | D19: 183.35 | E19: 167.26 | F19: 159.33M | G19: -0.0113 | H19: =(J_J_Stock_Price_History__2[[#This Row],[Price]]-J_J_Stock_Price_History__2[[#This Row],[Open]])/J_J_Stock_Price_History__2[[#This Row],[Open]] -> -0.009154339939
A20: 44743 | B20: 174.52 | C20: 177.45 | D20: 179.99 | E20: 169.76 | F20: 114.64M | G20: -0.0168 | H20: =(J_J_Stock_Price_History__2[[#This Row],[Price]]-J_J_Stock_Price_History__2[[#This Row],[Open]])/J_J_Stock_Price_History__2[[#This Row],[Open]] -> -0.01651169343
A21: 44774 | B21: 161.34 | C21: 174.17 | D21: 175.49 | E21: 161.27 | F21: 157.26M | G21: -0.0755 | H21: =(J_J_Stock_Price_History__2[[#This Row],[Price]]-J_J_Stock_Price_History__2[[#This Row],[Open]])/J_J_Stock_Price_History__2[[#This Row],[Open]] -> -0.07366366194
A22: 44805 | B22: 163.36 | C22: 161.49 | D22: 167.67 | E22: 160.81 | F22: 168.29M | G22: 0.0125 | H22: =(J_J_Stock_Price_History__2[[#This Row],[Price]]-J_J_Stock_Price_History__2[[#This Row],[Open]])/J_J_Stock_Price_History__2[[#This Row],[Open]] -> 0.01157966438
A23: 44835 | B23: 173.97 | C23: 164.29 | D23: 175.39 | E23: 159.17 | F23: 139.41M | G23: 0.0649 | H23: =(J_J_Stock_Price_History__2[[#This Row],[Price]]-J_J_Stock_Price_History__2[[#This Row],[Open]])/J_J_Stock_Price_History__2[[#This Row],[Open]] -> 0.05892020208
A24: 44866 | B24: 178 | C24: 174.06 | D24: 178.12 | E24: 166.82 | F24: 138.34M | G24: 0.0232 | H24: =(J_J_Stock_Price_History__2[[#This Row],[Price]]-J_J_Stock_Price_History__2[[#This Row],[Open]])/J_J_Stock_Price_History__2[[#This Row],[Open]] -> 0.02263587269
A25: 44896 | B25: 176.65 | C25: 179 | D25: 181.04 | E25: 174.07 | F25: 129.81M | G25: -0.0076 | H25: =(J_J_Stock_Price_History__2[[#This Row],[Price]]-J_J_Stock_Price_History__2[[#This Row],[Open]])/J_J_Stock_Price_History__2[[#This Row],[Open]] -> -0.01312849162
A26: 44927 | B26: 163.42 | C26: 176.16 | D26: 180.93 | E26: 161.05 | F26: 160.52M | G26: -0.0749 | H26: =(J_J_Stock_Price_History__2[[#This Row],[Price]]-J_J_Stock_Price_History__2[[#This Row],[Open]])/J_J_Stock_Price_History__2[[#This Row],[Open]] -> -0.07232061762
A27: 44958 | B27: 153.26 | C27: 162.99 | D27: 166.34 | E27: 153.04 | F27: 164.79M | G27: -0.0622 | H27: =(J_J_Stock_Price_History__2[[#This Row],[Price]]-J_J_Stock_Price_History__2[[#This Row],[Open]])/J_J_Stock_Price_History__2[[#This Row],[Open]] -> -0.05969691392
A28: 44986 | B28: 155 | C28: 153.01 | D28: 156.25 | E28: 150.11 | F28: 185.73M | G28: 0.0114 | H28: =(J_J_Stock_Price_History__2[[#This Row],[Price]]-J_J_Stock_Price_History__2[[#This Row],[Open]])/J_J_Stock_Price_History__2[[#This Row],[Open]] -> 0.0130056859
A29: 45017 | B29: 163.7 | C29: 154.95 | D29: 167.23 | E29: 153.94 | F29: 146.07M | G29: 0.0561 | H29: =(J_J_Stock_Price_History__2[[#This Row],[Price]]-J_J_Stock_Price_History__2[[#This Row],[Open]])/J_J_Stock_Price_History__2[[#This Row],[Open]] -> 0.05646982898
A30: 45047 | B30: 155.06 | C30: 163.6 | D30: 166.18 | E30: 153.32 | F30: 132.12M | G30: -0.0528 | H30: =(J_J_Stock_Price_History__2[[#This Row],[Price]]-J_J_Stock_Price_History__2[[#This Row],[Open]])/J_J_Stock_Price_History__2[[#This Row],[Open]] -> -0.052200489
A31: 45078 | B31: 165.52 | C31: 154.54 | D31: 166.27 | E31: 153.15 | F31: 146.82M | G31: 0.0675 | H31: =(J_J_Stock_Price_History__2[[#This Row],[Price]]-J_J_Stock_Price_History__2[[#This Row],[Open]])/J_J_Stock_Price_History__2[[#This Row],[Open]] -> 0.07104956646
A32: 45108 | B32: 167.53 | C32: 164.34 | D32: 175.36 | E32: 157.33 | F32: 201.43M | G32: 0.0121 | H32: =(J_J_Stock_Price_History__2[[#This Row],[Price]]-J_J_Stock_Price_History__2[[#This Row],[Open]])/J_J_Stock_Price_History__2[[#This Row],[Open]] -> 0.01941097724
A33: 45139 | B33: 161.68 | C33: 166.37 | D33: 175.97 | E33: 161.28 | F33: 1.08B | G33: -0.0349 | H33: =(J_J_Stock_Price_History__2[[#This Row],[Price]]-J_J_Stock_Price_History__2[[#This Row],[Open]])/J_J_Stock_Price_History__2[[#This Row],[Open]] -> -0.02819017852
A34: 45170 | B34: 155.75 | C34: 161.42 | D34: 165.27 | E34: 155.26 | F34: 147.24M | G34: -0.0367 | H34: =(J_J_Stock_Price_History__2[[#This Row],[Price]]-J_J_Stock_Price_History__2[[#This Row],[Open]])/J_J_Stock_Price_History__2[[#This Row],[Open]] -> -0.03512575889
A35: 45200 | B35: 148.34 | C35: 155.42 | D35: 159.27 | E35: 144.95 | F35: 152.90M | G35: -0.0476 | H35: =(J_J_Stock_Price_History__2[[#This Row],[Price]]-J_J_Stock_Price_History__2[[#This Row],[Open]])/J_J_Stock_Price_History__2[[#This Row],[Open]] -> -0.04555398276
A36: 45231 | B36: 154.66 | C36: 149.19 | D36: 155.14 | E36: 145.64 | F36: 131.09M | G36: 0.0426 | H36: =(J_J_Stock_Price_History__2[[#This Row],[Price]]-J_J_Stock_Price_History__2[[#This Row],[Open]])/J_J_Stock_Price_History__2[[#This Row],[Open]] -> 0.03666465581
A37: 45261 | B37: 156.74 | C37: 156.44 | D37: 160.02 | E37: 151.77 | F37: 146.55M | G37: 0.0134 | H37: =(J_J_Stock_Price_History__2[[#This Row],[Price]]-J_J_Stock_Price_History__2[[#This Row],[Open]])/J_J_Stock_Price_History__2[[#This Row],[Open]] -> 0.001917668116
A38: 45292 | B38: 158.9 | C38: 156.93 | D38: 163.58 | E38: 156.79 | F38: 138.21M | G38: 0.0138 | H38: =(J_J_Stock_Price_History__2[[#This Row],[Price]]-J_J_Stock_Price_History__2[[#This Row],[Open]])/J_J_Stock_Price_History__2[[#This Row],[Open]] -> 0.01255336774
A39: 45323 | B39: 161.38 | C39: 158.16 | D39: 162.25 | E39: 154.84 | F39: 158.29M | G39: 0.0156 | H39: =(J_J_Stock_Price_History__2[[#This Row],[Price]]-J_J_Stock_Price_History__2[[#This Row],[Open]])/J_J_Stock_Price_History__2[[#This Row],[Open]] -> 0.02035912999
A40: 45352 | B40: 158.19 | C40: 161.83 | D40: 163.11 | E40: 154.76 | F40: 140.40M | G40: -0.0198 | H40: =(J_J_Stock_Price_History__2[[#This Row],[Price]]-J_J_Stock_Price_History__2[[#This Row],[Open]])/J_J_Stock_Price_History__2[[#This Row],[Open]] -> -0.02249273929
A41: 45383 | B41: 144.59 | C41: 157.72 | D41: 158.15 | E41: 143.13 | F41: 176.04M | G41: -0.086 | H41: =(J_J_Stock_Price_History__2[[#This Row],[Price]]-J_J_Stock_Price_History__2[[#This Row],[Open]])/J_J_Stock_Price_History__2[[#This Row],[Open]] -> -0.08324879533
A42: 45413 | B42: 146.67 | C42: 148.74 | D42: 154.86 | E42: 143.71 | F42: 174.62M | G42: 0.0144 | H42: =(J_J_Stock_Price_History__2[[#This Row],[Price]]-J_J_Stock_Price_History__2[[#This Row],[Open]])/J_J_Stock_Price_History__2[[#This Row],[Open]] -> -0.01391690198
A43: 45444 | B43: 146.16 | C43: 147.25 | D43: 149.72 | E43: 143.88 | F43: 132.52M | G43: -0.0035 | H43: =(J_J_Stock_Price_History__2[[#This Row],[Price]]-J_J_Stock_Price_History__2[[#This Row],[Open]])/J_J_Stock_Price_History__2[[#This Row],[Open]] -> -0.00740237691
A44: 45474 | B44: 157.85 | C44: 146.07 | D44: 161.58 | E44: 144.5 | F44: 151.36M | G44: 0.08 | H44: =(J_J_Stock_Price_History__2[[#This Row],[Price]]-J_J_Stock_Price_History__2[[#This Row],[Open]])/J_J_Stock_Price_History__2[[#This Row],[Open]] -> 0.08064626549
A45: 45505 | B45: 165.86 | C45: 158.48 | D45: 165.98 | E45: 156.44 | F45: 150.66M | G45: 0.0507 | H45: =(J_J_Stock_Price_History__2[[#This Row],[Price]]-J_J_Stock_Price_History__2[[#This Row],[Open]])/J_J_Stock_Price_History__2[[#This Row],[Open]] -> 0.04656739021
A46: 45536 | B46: 162.06 | C46: 165.24 | D46: 168.85 | E46: 160.02 | F46: 120.36M | G46: -0.0229 | H46: =(J_J_Stock_Price_History__2[[#This Row],[Price]]-J_J_Stock_Price_History__2[[#This Row],[Open]])/J_J_Stock_Price_History__2[[#This Row],[Open]] -> -0.01924473493
A47: 45566 | B47: 159.86 | C47: 162.43 | D47: 166.75 | E47: 158.77 | F47: 133.03M | G47: -0.0136 | H47: =(J_J_Stock_Price_History__2[[#This Row],[Price]]-J_J_Stock_Price_History__2[[#This Row],[Open]])/J_J_Stock_Price_History__2[[#This Row],[Open]] -> -0.01582220033
A48: 45597 | B48: 155.01 | C48: 160.58 | D48: 161.06 | E48: 150.76 | F48: 153.34M | G48: -0.0303 | H48: =(J_J_Stock_Price_History__2[[#This Row],[Price]]-J_J_Stock_Price_History__2[[#This Row],[Open]])/J_J_Stock_Price_History__2[[#This Row],[Open]] -> -0.03468676049
A49: 45627 | B49: 144.62 | C49: 154.75 | D49: 155 | E49: 142.75 | F49: 177.84M | G49: -0.067 | H49: =(J_J_Stock_Price_History__2[[#This Row],[Price]]-J_J_Stock_Price_History__2[[#This Row],[Open]])/J_J_Stock_Price_History__2[[#This Row],[Open]] -> -0.06546042003
A50: 45658 | B50: 152.15 | C50: 145.23 | D50: 154.14 | E50: 140.68 | F50: 192.83M | G50: 0.0521 | H50: =(J_J_Stock_Price_History__2[[#This Row],[Price]]-J_J_Stock_Price_History__2[[#This Row],[Open]])/J_J_Stock_Price_History__2[[#This Row],[Open]] -> 0.04764855746
A51: 45689 | B51: 165.02 | C51: 152 | D51: 166.43 | E51: 150.78 | F51: 169.98M | G51: 0.0846 | H51: =(J_J_Stock_Price_History__2[[#This Row],[Price]]-J_J_Stock_Price_History__2[[#This Row],[Open]])/J_J_Stock_Price_History__2[[#This Row],[Open]] -> 0.08565789474
A52: 45717 | B52: 165.84 | C52: 164.96 | D52: 169.99 | E52: 160.55 | F52: 186.80M | G52: 0.005 | H52: =(J_J_Stock_Price_History__2[[#This Row],[Price]]-J_J_Stock_Price_History__2[[#This Row],[Open]])/J_J_Stock_Price_History__2[[#This Row],[Open]] -> 0.005334626576
A53: 45748 | B53: 156.31 | C53: 160.73 | D53: 161.81 | E53: 141.5 | F53: 236.80M | G53: -0.0575 | H53: =(J_J_Stock_Price_History__2[[#This Row],[Price]]-J_J_Stock_Price_History__2[[#This Row],[Open]])/J_J_Stock_Price_History__2[[#This Row],[Open]] -> -0.02749953338
A54: 45778 | B54: 155.21 | C54: 155 | D54: 157.94 | E54: 146.12 | F54: 174.25M | G54: -0.007 | H54: =(J_J_Stock_Price_History__2[[#This Row],[Price]]-J_J_Stock_Price_History__2[[#This Row],[Open]])/J_J_Stock_Price_History__2[[#This Row],[Open]] -> 0.00135483871
A55: 45809 | B55: 152.75 | C55: 154.48 | D55: 157.67 | E55: 149.04 | F55: 159.01M | G55: -0.0158 | H55: =(J_J_Stock_Price_History__2[[#This Row],[Price]]-J_J_Stock_Price_History__2[[#This Row],[Open]])/J_J_Stock_Price_History__2[[#This Row],[Open]] -> -0.01119886069
A56: 45839 | B56: 164.74 | C56: 153 | D56: 169.99 | E56: 152.81 | F56: 187.62M | G56: 0.0785 | H56: =(J_J_Stock_Price_History__2[[#This Row],[Price]]-J_J_Stock_Price_History__2[[#This Row],[Open]])/J_J_Stock_Price_History__2[[#This Row],[Open]] -> 0.07673202614
A57: 45870 | B57: 177.17 | C57: 165.48 | D57: 181.16 | E57: 164.79 | F57: 174.94M | G57: 0.0755 | H57: =(J_J_Stock_Price_History__2[[#This Row],[Price]]-J_J_Stock_Price_History__2[[#This Row],[Open]])/J_J_Stock_Price_History__2[[#This Row],[Open]] -> 0.070642978
A58: 45901 | B58: 185.42 | C58: 177.47 | D58: 185.99 | E58: 173.33 | F58: 180.80M | G58: 0.0466 | H58: =(J_J_Stock_Price_History__2[[#This Row],[Price]]-J_J_Stock_Price_History__2[[#This Row],[Open]])/J_J_Stock_Price_History__2[[#This Row],[Open]] -> 0.0447963036
A59: 45931 | B59: 188.87 | C59: 186 | D59: 194.48 | E59: 182.94 | F59: 195.08M | G59: 0.0186 | H59: =(J_J_Stock_Price_History__2[[#This Row],[Price]]-J_J_Stock_Price_History__2[[#This Row],[Open]])/J_J_Stock_Price_History__2[[#This Row],[Open]] -> 0.01543010753
A60: 45962 | B60: 206.92 | C60: 189 | D60: 207.81 | E60: 185.12 | F60: 174.24M | G60: 0.0956 | H60: =(J_J_Stock_Price_History__2[[#This Row],[Price]]-J_J_Stock_Price_History__2[[#This Row],[Open]])/J_J_Stock_Price_History__2[[#This Row],[Open]] -> 0.09481481481
A61: 45992 | B61: 206.95 | C61: 206.5 | D61: 215.18 | E61: 199.9 | F61: 176.37M | G61: 0.0001 | H61: =(J_J_Stock_Price_History__2[[#This Row],[Price]]-J_J_Stock_Price_History__2[[#This Row],[Open]])/J_J_Stock_Price_History__2[[#This Row],[Open]] -> 0.002179176755
A62: 46023 | B62: 227.25 | C62: 206.82 | D62: 230 | E62: 200.91 | F62: 191.37M | G62: 0.0981 | H62: =(J_J_Stock_Price_History__2[[#This Row],[Price]]-J_J_Stock_Price_History__2[[#This Row],[Open]])/J_J_Stock_Price_History__2[[#This Row],[Open]] -> 0.09878154917
A63: 46054 | B63: 248.43 | C63: 228.32 | D63: 248.94 | E63: 227.25 | F63: 181.27M | G63: 0.0932 | H63: =(J_J_Stock_Price_History__2[[#This Row],[Price]]-J_J_Stock_Price_History__2[[#This Row],[Open]])/J_J_Stock_Price_History__2[[#This Row],[Open]] -> 0.08807813595
A64: 46082 | B64: 244.44 | C64: 249.19 | D64: 251.71 | E64: 232.24 | F64: 170.40M | G64: -0.0161 | H64: =(J_J_Stock_Price_History__2[[#This Row],[Price]]-J_J_Stock_Price_History__2[[#This Row],[Open]])/J_J_Stock_Price_History__2[[#This Row],[Open]] -> -0.0190617601
A65: 46113 | B65: 227.39 | C65: 245.6 | D65: 247.21 | E65: 223.77 | F65: 142.61M | G65: -0.0698 | H65: =(J_J_Stock_Price_History__2[[#This Row],[Price]]-J_J_Stock_Price_History__2[[#This Row],[Open]])/J_J_Stock_Price_History__2[[#This Row],[Open]] -> -0.07414495114

Sheet Portfolio
A1: Month | B1: NVDA | C1: JPM | D1: JNJ | E1: Simple holding returns (HPR) calculated (ending price-beginning price)/beginning price for each on each stock pricee history page
A2: 2021-05-01 | B2: ='NVDA Stock Price History '!H6 -> 0.07336417713 | C2: ='JPM Stock Price History'!H6 -> 0.06063932838 | D2: ='JNJ Stock Price History '!H6 -> 0.03453545232
A3: 2021-06-01 | B3: ='NVDA Stock Price History '!H7 -> 0.2292562999 | C3: ='JPM Stock Price History'!H7 -> -0.06227768735 | D3: ='JNJ Stock Price History '!H7 -> -0.03179547458
A4: 2021-07-01 | B4: ='NVDA Stock Price History '!H8 -> -0.03129657228 | C4: ='JPM Stock Price History'!H8 -> -0.02867016511 | D4: ='JNJ Stock Price History '!H8 -> 0.04528347699
A5: 2021-08-01 | B5: ='NVDA Stock Price History '!H9 -> 0.1365482234 | C5: ='JPM Stock Price History'!H9 -> 0.05209498125 | D5: ='JNJ Stock Price History '!H9 -> 0.003826752479
A6: 2021-09-01 | B6: ='NVDA Stock Price History '!H10 -> -0.07870164518 | C6: ='JPM Stock Price History'!H10 -> 0.02165772063 | D6: ='JNJ Stock Price History '!H10 -> -0.06593406593
A7: 2021-10-01 | B7: ='NVDA Stock Price History '!H11 -> 0.2322891566 | C7: ='JPM Stock Price History'!H11 -> 0.03591463415 | D7: ='JNJ Stock Price History '!H11 -> 0.008357580635
A8: 2021-11-01 | B8: ='NVDA Stock Price History '!H12 -> 0.2740740741 | C8: ='JPM Stock Price History'!H12 -> -0.07678446873 | D8: ='JNJ Stock Price History '!H12 -> -0.04431233145
A9: 2021-12-01 | B9: ='NVDA Stock Price History '!H13 -> -0.1146899458 | C9: ='JPM Stock Price History'!H13 -> -0.01645962733 | D9: ='JNJ Stock Price History '!H13 -> 0.09045130036
A10: 2022-01-01 | B10: ='NVDA Stock Price History '!H14 -> -0.1787391013 | C10: ='JPM Stock Price History'!H14 -> -0.07043663205 | D10: ='JNJ Stock Price History '!H14 -> 0.01222019858
A11: 2022-02-01 | B11: ='NVDA Stock Price History '!H15 -> -0.02828685259 | C11: ='JPM Stock Price History'!H15 -> -0.0463380187 | D11: ='JNJ Stock Price History '!H15 -> -0.0417491557
A12: 2022-03-01 | B12: ='NVDA Stock Price History '!H16 -> 0.1235076163 | C12: ='JPM Stock Price History'!H16 -> -0.0265638389 | D12: ='JNJ Stock Price History '!H16 -> 0.08703385672
A13: 2022-04-01 | B13: ='NVDA Stock Price History '!H17 -> -0.3224981738 | C13: ='JPM Stock Price History'!H17 -> -0.1312954876 | D13: ='JNJ Stock Price History '!H17 -> 0.01926009602
A14: 2022-05-01 | B14: ='NVDA Stock Price History '!H18 -> 0.007011866235 | C14: ='JPM Stock Price History'!H18 -> 0.1030196864 | D14: ='JNJ Stock Price History '!H18 -> -0.005208621932
A15: 2022-06-01 | B15: ='NVDA Stock Price History '!H19 -> -0.1901709402 | C15: ='JPM Stock Price History'!H19 -> -0.1524798675 | D15: ='JNJ Stock Price History '!H19 -> -0.009154339939
A16: 2022-07-01 | B16: ='NVDA Stock Price History '!H20 -> 0.2187919463 | C16: ='JPM Stock Price History'!H20 -> 0.02405681314 | D16: ='JNJ Stock Price History '!H20 -> -0.01651169343
A17: 2022-08-01 | B17: ='NVDA Stock Price History '!H21 -> -0.1699669967 | C17: ='JPM Stock Price History'!H21 -> -0.00672489083 | D17: ='JNJ Stock Price History '!H21 -> -0.07366366194
A18: 2022-09-01 | B18: ='NVDA Stock Price History '!H22 -> -0.1456720619 | C18: ='JPM Stock Price History'!H22 -> -0.07758848972 | D18: ='JNJ Stock Price History '!H22 -> 0.01157966438
A19: 2022-10-01 | B19: ='NVDA Stock Price History '!H23 -> 0.09311740891 | C19: ='JPM Stock Price History'!H23 -> 0.1918197311 | D19: ='JNJ Stock Price History '!H23 -> 0.05892020208
A20: 2022-11-01 | B20: ='NVDA Stock Price History '!H24 -> 0.2251991311 | C20: ='JPM Stock Price History'!H24 -> 0.0891463703 | D20: ='JNJ Stock Price History '!H24 -> 0.02263587269
A21: 2022-12-01 | B21: ='NVDA Stock Price History '!H25 -> -0.1405882353 | C21: ='JPM Stock Price History'!H25 -> -0.0295267043 | D21: ='JNJ Stock Price History '!H25 -> -0.01312849162
A22: 2023-01-01 | B22: ='NVDA Stock Price History '!H26 -> 0.3158249158 | C22: ='JPM Stock Price History'!H26 -> 0.03490091689 | D22: ='JNJ Stock Price History '!H26 -> -0.07232061762
A23: 2023-02-01 | B23: ='NVDA Stock Price History '!H27 -> 0.1792788217 | C23: ='JPM Stock Price History'!H27 -> 0.03718978366 | D23: ='JNJ Stock Price History '!H27 -> -0.05969691392
A24: 2023-03-01 | B24: ='NVDA Stock Price History '!H28 -> 0.1979301423 | C24: ='JPM Stock Price History'!H28 -> -0.08296973962 | D24: ='JNJ Stock Price History '!H28 -> 0.0130056859
A25: 2023-04-01 | B25: ='NVDA Stock Price History '!H29 -> 0.008724100327 | C25: ='JPM Stock Price History'!H29 -> 0.06412131476 | D25: ='JNJ Stock Price History '!H29 -> 0.05646982898
A26: 2023-05-01 | B26: ='NVDA Stock Price History '!H30 -> 0.3588362069 | C26: ='JPM Stock Price History'!H30 -> -0.04604245747 | D26: ='JNJ Stock Price History '!H30 -> -0.052200489
A27: 2023-06-01 | B27: ='NVDA Stock Price History '!H31 -> 0.09898674981 | C27: ='JPM Stock Price History'!H31 -> 0.06533841195 | D27: ='JNJ Stock Price History '!H31 -> 0.07104956646
A28: 2023-07-01 | B28: ='NVDA Stock Price History '!H32 -> 0.09901222954 | C28: ='JPM Stock Price History'!H32 -> 0.0805116629 | D28: ='JNJ Stock Price History '!H32 -> 0.01941097724
A29: 2023-08-01 | B29: ='NVDA Stock Price History '!H33 -> 0.06220404649 | C29: ='JPM Stock Price History'!H33 -> -0.07050752715 | D29: ='JNJ Stock Price History '!H33 -> -0.02819017852
A30: 2023-09-01 | B30: ='NVDA Stock Price History '!H34 -> -0.1258038585 | C30: ='JPM Stock Price History'!H34 -> -0.007324252173 | D30: ='JNJ Stock Price History '!H34 -> -0.03512575889
A31: 2023-10-01 | B31: ='NVDA Stock Price History '!H35 -> -0.07381330911 | C31: ='JPM Stock Price History'!H35 -> -0.03983981219 | D31: ='JNJ Stock Price History '!H35 -> -0.04555398276
A32: 2023-11-01 | B32: ='NVDA Stock Price History '!H36 -> 0.1440802348 | C32: ='JPM Stock Price History'!H36 -> 0.1208617594 | D32: ='JNJ Stock Price History '!H36 -> 0.03666465581
A33: 2023-12-01 | B33: ='NVDA Stock Price History '!H37 -> 0.06425961745 | C33: ='JPM Stock Price History'!H37 -> 0.09164420485 | D33: ='JNJ Stock Price History '!H37 -> 0.001917668116
A34: 2024-01-01 | B34: ='NVDA Stock Price History '!H38 -> 0.2495938262 | C34: ='JPM Stock Price History'!H38 -> 0.03116683423 | D34: ='JNJ Stock Price History '!H38 -> 0.01255336774
A35: 2024-02-01 | B35: ='NVDA Stock Price History '!H39 -> 0.2739130435 | C35: ='JPM Stock Price History'!H39 -> 0.07152729786 | D35: ='JNJ Stock Price History '!H39 -> 0.02035912999
A36: 2024-03-01 | B36: ='NVDA Stock Price History '!H40 -> 0.1295 | C36: ='JPM Stock Price History'!H40 -> 0.07862143242 | D36: ='JNJ Stock Price History '!H40 -> -0.02249273929
A37: 2024-04-01 | B37: ='NVDA Stock Price History '!H41 -> -0.04318936877 | C37: ='JPM Stock Price History'!H41 -> -0.0412520626 | D37: ='JNJ Stock Price History '!H41 -> -0.08324879533
A38: 2024-05-01 | B38: ='NVDA Stock Price History '!H42 -> 0.2885519511 | C38: ='JPM Stock Price History'!H42 -> 0.05388256098 | D38: ='JNJ Stock Price History '!H42 -> -0.01391690198
A39: 2024-06-01 | B39: ='NVDA Stock Price History '!H43 -> 0.08730857243 | C39: ='JPM Stock Price History'!H43 -> -0.0002471454698 | D39: ='JNJ Stock Price History '!H43 -> -0.00740237691
A40: 2024-07-01 | B40: ='NVDA Stock Price History '!H44 -> -0.05223941038 | C40: ='JPM Stock Price History'!H44 -> 0.04910274108 | D40: ='JNJ Stock Price History '!H44 -> 0.08064626549
A41: 2024-08-01 | B41: ='NVDA Stock Price History '!H45 -> 0.0156555773 | C41: ='JPM Stock Price History'!H45 -> 0.05440900563 | D41: ='JNJ Stock Price History '!H45 -> 0.04656739021
A42: 2024-09-01 | B42: ='NVDA Stock Price History '!H46 -> 0.0468063098 | C42: ='JPM Stock Price History'!H46 -> -0.0514619883 | D42: ='JNJ Stock Price History '!H46 -> -0.01924473493
A43: 2024-10-01 | B43: ='NVDA Stock Price History '!H47 -> 0.09034165572 | C43: ='JPM Stock Price History'!H47 -> 0.062326472 | D43: ='JNJ Stock Price History '!H47 -> -0.01582220033
A44: 2024-11-01 | B44: ='NVDA Stock Price History '!H48 -> 0.02635486266 | C44: ='JPM Stock Price History'!H48 -> 0.1170155663 | D44: ='JNJ Stock Price History '!H48 -> -0.03468676049
A45: 2024-12-01 | B45: ='NVDA Stock Price History '!H49 -> -0.03270186559 | C45: ='JPM Stock Price History'!H49 -> -0.03943097576 | D45: ='JNJ Stock Price History '!H49 -> -0.06546042003
A46: 2025-01-01 | B46: ='NVDA Stock Price History '!H50 -> -0.1171323529 | C46: ='JPM Stock Price History'!H50 -> 0.1094969284 | D46: ='JNJ Stock Price History '!H50 -> 0.04764855746
A47: 2025-02-01 | B47: ='NVDA Stock Price History '!H51 -> 0.08862745098 | C47: ='JPM Stock Price History'!H51 -> 0.01077034717 | D47: ='JNJ Stock Price History '!H51 -> 0.08565789474
A48: 2025-03-01 | B48: ='NVDA Stock Price History '!H52 -> -0.1225002024 | C48: ='JPM Stock Price History'!H52 -> -0.07083333333 | D48: ='JNJ Stock Price History '!H52 -> 0.005334626576
A49: 2025-04-01 | B49: ='NVDA Stock Price History '!H53 -> 0.003778453599 | C49: ='JPM Stock Price History'!H53 -> 0.0082433435 | D49: ='JNJ Stock Price History '!H53 -> -0.02749953338
A50: 2025-05-01 | B50: ='NVDA Stock Price History '!H54 -> 0.194994694 | C50: ='JPM Stock Price History'!H54 -> 0.08713556251 | D50: ='JNJ Stock Price History '!H54 -> 0.00135483871
A51: 2025-06-01 | B51: ='NVDA Stock Price History '!H55 -> 0.1660639162 | C51: ='JPM Stock Price History'!H55 -> 0.1022355714 | D51: ='JNJ Stock Price History '!H55 -> -0.01119886069
A52: 2025-07-01 | B52: ='NVDA Stock Price History '!H56 -> 0.1380766524 | C52: ='JPM Stock Price History'!H56 -> 0.01839183196 | D52: ='JNJ Stock Price History '!H56 -> 0.07673202614
A53: 2025-08-01 | B53: ='NVDA Stock Price History '!H57 -> 0.000516973979 | C53: ='JPM Stock Price History'!H57 -> 0.0379476584 | D53: ='JNJ Stock Price History '!H57 -> 0.070642978
A54: 2025-09-01 | B54: ='NVDA Stock Price History '!H58 -> 0.09752941176 | C54: ='JPM Stock Price History'!H58 -> 0.05052288017 | D54: ='JNJ Stock Price History '!H58 -> 0.0447963036
A55: 2025-10-01 | B55: ='NVDA Stock Price History '!H59 -> 0.09312243576 | C55: ='JPM Stock Price History'!H59 -> -0.009077300379 | D55: ='JNJ Stock Price History '!H59 -> 0.01543010753
A56: 2025-11-01 | B56: ='NVDA Stock Price History '!H60 -> -0.1493656286 | C56: ='JPM Stock Price History'!H60 -> 0.006688102894 | D56: ='JNJ Stock Price History '!H60 -> 0.09481481481
A57: 2025-12-01 | B57: ='NVDA Stock Price History '!H61 -> 0.0671778439 | C57: ='JPM Stock Price History'!H61 -> 0.02962134526 | D57: ='JNJ Stock Price History '!H61 -> 0.002179176755
A58: 2026-01-01 | B58: ='NVDA Stock Price History '!H62 -> 0.006795195954 | C58: ='JPM Stock Price History'!H62 -> -0.05150387597 | D58: ='JNJ Stock Price History '!H62 -> 0.09878154917
A59: 2026-02-01 | B59: ='NVDA Stock Price History '!H63 -> -0.05347222222 | C59: ='JPM Stock Price History'!H63 -> -0.01366353544 | D59: ='JNJ Stock Price History '!H63 -> 0.08807813595
A60: 2026-03-01 | B60: ='NVDA Stock Price History '!H64 -> -0.003485515113 | C60: ='JPM Stock Price History'!H64 -> -0.002204809878 | D60: ='JNJ Stock Price History '!H64 -> -0.0190617601
A61: 2026-04-01 | B61: ='NVDA Stock Price History '!H65 -> 0.2155681818 | C61: ='JPM Stock Price History'!H65 -> 0.05477504316 | D61: ='JNJ Stock Price History '!H65 -> -0.07414495114
A62: Expected return | B62: =AVERAGE(B2:B61) -> 0.05413766192 | C62: =AVERAGE(C2:C61) -> 0.01425488585 | D62: =AVERAGE(D2:D61) -> 0.006591236446
A63: Standard Deviation | B63: =_xlfn.STDEV.S(B2:B61) -> 0.1462881983 | C63: =_xlfn.STDEV.S(C2:C61) -> 0.06695888731 | D63: 0.04888033677

Sheet AvgMonthlyReturns&SD
A1: Month | B1: NVDA | C1: JPM | D1: JNJ
A2: 2021-05-01 | B2: ='NVDA Stock Price History '!H6 -> 0.07336417713 | C2: ='JPM Stock Price History'!H6 -> 0.06063932838 | D2: ='JNJ Stock Price History '!H6 -> 0.03453545232
A3: 2021-06-01 | B3: ='NVDA Stock Price History '!H7 -> 0.2292562999 | C3: ='JPM Stock Price History'!H7 -> -0.06227768735 | D3: ='JNJ Stock Price History '!H7 -> -0.03179547458
A4: 2021-07-01 | B4: ='NVDA Stock Price History '!H8 -> -0.03129657228 | C4: ='JPM Stock Price History'!H8 -> -0.02867016511 | D4: ='JNJ Stock Price History '!H8 -> 0.04528347699
A5: 2021-08-01 | B5: ='NVDA Stock Price History '!H9 -> 0.1365482234 | C5: ='JPM Stock Price History'!H9 -> 0.05209498125 | D5: ='JNJ Stock Price History '!H9 -> 0.003826752479
A6: 2021-09-01 | B6: ='NVDA Stock Price History '!H10 -> -0.07870164518 | C6: ='JPM Stock Price History'!H10 -> 0.02165772063 | D6: ='JNJ Stock Price History '!H10 -> -0.06593406593
A7: 2021-10-01 | B7: ='NVDA Stock Price History '!H11 -> 0.2322891566 | C7: ='JPM Stock Price History'!H11 -> 0.03591463415 | D7: ='JNJ Stock Price History '!H11 -> 0.008357580635
A8: 2021-11-01 | B8: ='NVDA Stock Price History '!H12 -> 0.2740740741 | C8: ='JPM Stock Price History'!H12 -> -0.07678446873 | D8: ='JNJ Stock Price History '!H12 -> -0.04431233145
A9: 2021-12-01 | B9: ='NVDA Stock Price History '!H13 -> -0.1146899458 | C9: ='JPM Stock Price History'!H13 -> -0.01645962733 | D9: ='JNJ Stock Price History '!H13 -> 0.09045130036
A10: 2022-01-01 | B10: ='NVDA Stock Price History '!H14 -> -0.1787391013 | C10: ='JPM Stock Price History'!H14 -> -0.07043663205 | D10: ='JNJ Stock Price History '!H14 -> 0.01222019858
A11: 2022-02-01 | B11: ='NVDA Stock Price History '!H15 -> -0.02828685259 | C11: ='JPM Stock Price History'!H15 -> -0.0463380187 | D11: ='JNJ Stock Price History '!H15 -> -0.0417491557
A12: 2022-03-01 | B12: ='NVDA Stock Price History '!H16 -> 0.1235076163 | C12: ='JPM Stock Price History'!H16 -> -0.0265638389 | D12: ='JNJ Stock Price History '!H16 -> 0.08703385672
A13: 2022-04-01 | B13: ='NVDA Stock Price History '!H17 -> -0.3224981738 | C13: ='JPM Stock Price History'!H17 -> -0.1312954876 | D13: ='JNJ Stock Price History '!H17 -> 0.01926009602
A14: 2022-05-01 | B14: ='NVDA Stock Price History '!H18 -> 0.007011866235 | C14: ='JPM Stock Price History'!H18 -> 0.1030196864 | D14: ='JNJ Stock Price History '!H18 -> -0.005208621932
A15: 2022-06-01 | B15: ='NVDA Stock Price History '!H19 -> -0.1901709402 | C15: ='JPM Stock Price History'!H19 -> -0.1524798675 | D15: ='JNJ Stock Price History '!H19 -> -0.009154339939
A16: 2022-07-01 | B16: ='NVDA Stock Price History '!H20 -> 0.2187919463 | C16: ='JPM Stock Price History'!H20 -> 0.02405681314 | D16: ='JNJ Stock Price History '!H20 -> -0.01651169343
A17: 2022-08-01 | B17: ='NVDA Stock Price History '!H21 -> -0.1699669967 | C17: ='JPM Stock Price History'!H21 -> -0.00672489083 | D17: ='JNJ Stock Price History '!H21 -> -0.07366366194
A18: 2022-09-01 | B18: ='NVDA Stock Price History '!H22 -> -0.1456720619 | C18: ='JPM Stock Price History'!H22 -> -0.07758848972 | D18: ='JNJ Stock Price History '!H22 -> 0.01157966438
A19: 2022-10-01 | B19: ='NVDA Stock Price History '!H23 -> 0.09311740891 | C19: ='JPM Stock Price History'!H23 -> 0.1918197311 | D19: ='JNJ Stock Price History '!H23 -> 0.05892020208
A20: 2022-11-01 | B20: ='NVDA Stock Price History '!H24 -> 0.2251991311 | C20: ='JPM Stock Price History'!H24 -> 0.0891463703 | D20: ='JNJ Stock Price History '!H24 -> 0.02263587269
A21: 2022-12-01 | B21: ='NVDA Stock Price History '!H25 -> -0.1405882353 | C21: ='JPM Stock Price History'!H25 -> -0.0295267043 | D21: ='JNJ Stock Price History '!H25 -> -0.01312849162
A22: 2023-01-01 | B22: ='NVDA Stock Price History '!H26 -> 0.3158249158 | C22: ='JPM Stock Price History'!H26 -> 0.03490091689 | D22: ='JNJ Stock Price History '!H26 -> -0.07232061762
A23: 2023-02-01 | B23: ='NVDA Stock Price History '!H27 -> 0.1792788217 | C23: ='JPM Stock Price History'!H27 -> 0.03718978366 | D23: ='JNJ Stock Price History '!H27 -> -0.05969691392
A24: 2023-03-01 | B24: ='NVDA Stock Price History '!H28 -> 0.1979301423 | C24: ='JPM Stock Price History'!H28 -> -0.08296973962 | D24: ='JNJ Stock Price History '!H28 -> 0.0130056859
A25: 2023-04-01 | B25: ='NVDA Stock Price History '!H29 -> 0.008724100327 | C25: ='JPM Stock Price History'!H29 -> 0.06412131476 | D25: ='JNJ Stock Price History '!H29 -> 0.05646982898
A26: 2023-05-01 | B26: ='NVDA Stock Price History '!H30 -> 0.3588362069 | C26: ='JPM Stock Price History'!H30 -> -0.04604245747 | D26: ='JNJ Stock Price History '!H30 -> -0.052200489
A27: 2023-06-01 | B27: ='NVDA Stock Price History '!H31 -> 0.09898674981 | C27: ='JPM Stock Price History'!H31 -> 0.06533841195 | D27: ='JNJ Stock Price History '!H31 -> 0.07104956646
A28: 2023-07-01 | B28: ='NVDA Stock Price History '!H32 -> 0.09901222954 | C28: ='JPM Stock Price History'!H32 -> 0.0805116629 | D28: ='JNJ Stock Price History '!H32 -> 0.01941097724
A29: 2023-08-01 | B29: ='NVDA Stock Price History '!H33 -> 0.06220404649 | C29: ='JPM Stock Price History'!H33 -> -0.07050752715 | D29: ='JNJ Stock Price History '!H33 -> -0.02819017852
A30: 2023-09-01 | B30: ='NVDA Stock Price History '!H34 -> -0.1258038585 | C30: ='JPM Stock Price History'!H34 -> -0.007324252173 | D30: ='JNJ Stock Price History '!H34 -> -0.03512575889
A31: 2023-10-01 | B31: ='NVDA Stock Price History '!H35 -> -0.07381330911 | C31: ='JPM Stock Price History'!H35 -> -0.03983981219 | D31: ='JNJ Stock Price History '!H35 -> -0.04555398276
A32: 2023-11-01 | B32: ='NVDA Stock Price History '!H36 -> 0.1440802348 | C32: ='JPM Stock Price History'!H36 -> 0.1208617594 | D32: ='JNJ Stock Price History '!H36 -> 0.03666465581
A33: 2023-12-01 | B33: ='NVDA Stock Price History '!H37 -> 0.06425961745 | C33: ='JPM Stock Price History'!H37 -> 0.09164420485 | D33: ='JNJ Stock Price History '!H37 -> 0.001917668116
A34: 2024-01-01 | B34: ='NVDA Stock Price History '!H38 -> 0.2495938262 | C34: ='JPM Stock Price History'!H38 -> 0.03116683423 | D34: ='JNJ Stock Price History '!H38 -> 0.01255336774
A35: 2024-02-01 | B35: ='NVDA Stock Price History '!H39 -> 0.2739130435 | C35: ='JPM Stock Price History'!H39 -> 0.07152729786 | D35: ='JNJ Stock Price History '!H39 -> 0.02035912999
A36: 2024-03-01 | B36: ='NVDA Stock Price History '!H40 -> 0.1295 | C36: ='JPM Stock Price History'!H40 -> 0.07862143242 | D36: ='JNJ Stock Price History '!H40 -> -0.02249273929
A37: 2024-04-01 | B37: ='NVDA Stock Price History '!H41 -> -0.04318936877 | C37: ='JPM Stock Price History'!H41 -> -0.0412520626 | D37: ='JNJ Stock Price History '!H41 -> -0.08324879533
A38: 2024-05-01 | B38: ='NVDA Stock Price History '!H42 -> 0.2885519511 | C38: ='JPM Stock Price History'!H42 -> 0.05388256098 | D38: ='JNJ Stock Price History '!H42 -> -0.01391690198
A39: 2024-06-01 | B39: ='NVDA Stock Price History '!H43 -> 0.08730857243 | C39: ='JPM Stock Price History'!H43 -> -0.0002471454698 | D39: ='JNJ Stock Price History '!H43 -> -0.00740237691
A40: 2024-07-01 | B40: ='NVDA Stock Price History '!H44 -> -0.05223941038 | C40: ='JPM Stock Price History'!H44 -> 0.04910274108 | D40: ='JNJ Stock Price History '!H44 -> 0.08064626549
A41: 2024-08-01 | B41: ='NVDA Stock Price History '!H45 -> 0.0156555773 | C41: ='JPM Stock Price History'!H45 -> 0.05440900563 | D41: ='JNJ Stock Price History '!H45 -> 0.04656739021
A42: 2024-09-01 | B42: ='NVDA Stock Price History '!H46 -> 0.0468063098 | C42: ='JPM Stock Price History'!H46 -> -0.0514619883 | D42: ='JNJ Stock Price History '!H46 -> -0.01924473493
A43: 2024-10-01 | B43: ='NVDA Stock Price History '!H47 -> 0.09034165572 | C43: ='JPM Stock Price History'!H47 -> 0.062326472 | D43: ='JNJ Stock Price History '!H47 -> -0.01582220033
A44: 2024-11-01 | B44: ='NVDA Stock Price History '!H48 -> 0.02635486266 | C44: ='JPM Stock Price History'!H48 -> 0.1170155663 | D44: ='JNJ Stock Price History '!H48 -> -0.03468676049
A45: 2024-12-01 | B45: ='NVDA Stock Price History '!H49 -> -0.03270186559 | C45: ='JPM Stock Price History'!H49 -> -0.03943097576 | D45: ='JNJ Stock Price History '!H49 -> -0.06546042003
A46: 2025-01-01 | B46: ='NVDA Stock Price History '!H50 -> -0.1171323529 | C46: ='JPM Stock Price History'!H50 -> 0.1094969284 | D46: ='JNJ Stock Price History '!H50 -> 0.04764855746
A47: 2025-02-01 | B47: ='NVDA Stock Price History '!H51 -> 0.08862745098 | C47: ='JPM Stock Price History'!H51 -> 0.01077034717 | D47: ='JNJ Stock Price History '!H51 -> 0.08565789474
A48: 2025-03-01 | B48: ='NVDA Stock Price History '!H52 -> -0.1225002024 | C48: ='JPM Stock Price History'!H52 -> -0.07083333333 | D48: ='JNJ Stock Price History '!H52 -> 0.005334626576
A49: 2025-04-01 | B49: ='NVDA Stock Price History '!H53 -> 0.003778453599 | C49: ='JPM Stock Price History'!H53 -> 0.0082433435 | D49: ='JNJ Stock Price History '!H53 -> -0.02749953338
A50: 2025-05-01 | B50: ='NVDA Stock Price History '!H54 -> 0.194994694 | C50: ='JPM Stock Price History'!H54 -> 0.08713556251 | D50: ='JNJ Stock Price History '!H54 -> 0.00135483871
A51: 2025-06-01 | B51: ='NVDA Stock Price History '!H55 -> 0.1660639162 | C51: ='JPM Stock Price History'!H55 -> 0.1022355714 | D51: ='JNJ Stock Price History '!H55 -> -0.01119886069
A52: 2025-07-01 | B52: ='NVDA Stock Price History '!H56 -> 0.1380766524 | C52: ='JPM Stock Price History'!H56 -> 0.01839183196 | D52: ='JNJ Stock Price History '!H56 -> 0.07673202614
A53: 2025-08-01 | B53: ='NVDA Stock Price History '!H57 -> 0.000516973979 | C53: ='JPM Stock Price History'!H57 -> 0.0379476584 | D53: ='JNJ Stock Price History '!H57 -> 0.070642978
A54: 2025-09-01 | B54: ='NVDA Stock Price History '!H58 -> 0.09752941176 | C54: ='JPM Stock Price History'!H58 -> 0.05052288017 | D54: ='JNJ Stock Price History '!H58 -> 0.0447963036
A55: 2025-10-01 | B55: ='NVDA Stock Price History '!H59 -> 0.09312243576 | C55: ='JPM Stock Price History'!H59 -> -0.009077300379 | D55: ='JNJ Stock Price History '!H59 -> 0.01543010753
A56: 2025-11-01 | B56: ='NVDA Stock Price History '!H60 -> -0.1493656286 | C56: ='JPM Stock Price History'!H60 -> 0.006688102894 | D56: ='JNJ Stock Price History '!H60 -> 0.09481481481
A57: 2025-12-01 | B57: ='NVDA Stock Price History '!H61 -> 0.0671778439 | C57: ='JPM Stock Price History'!H61 -> 0.02962134526 | D57: ='JNJ Stock Price History '!H61 -> 0.002179176755
A58: 2026-01-01 | B58: ='NVDA Stock Price History '!H62 -> 0.006795195954 | C58: ='JPM Stock Price History'!H62 -> -0.05150387597 | D58: ='JNJ Stock Price History '!H62 -> 0.09878154917
A59: 2026-02-01 | B59: ='NVDA Stock Price History '!H63 -> -0.05347222222 | C59: ='JPM Stock Price History'!H63 -> -0.01366353544 | D59: ='JNJ Stock Price History '!H63 -> 0.08807813595
A60: 2026-03-01 | B60: ='NVDA Stock Price History '!H64 -> -0.003485515113 | C60: ='JPM Stock Price History'!H64 -> -0.002204809878 | D60: ='JNJ Stock Price History '!H64 -> -0.0190617601
A61: 2026-04-01 | B61: ='NVDA Stock Price History '!H65 -> 0.2155681818 | C61: ='JPM Stock Price History'!H65 -> 0.05477504316 | D61: ='JNJ Stock Price History '!H65 -> -0.07414495114
A62: Avg Expected return | B62: =AVERAGE(B2:B61) -> 0.05413766192 | C62: =AVERAGE(C2:C61) -> 0.01425488585 | D62: =AVERAGE(D2:D61) -> 0.006591236446
A63: Standard Deviation | B63: =_xlfn.STDEV.S(B2:B61) -> 0.1462881983 | C63: =_xlfn.STDEV.S(C2:C61) -> 0.06695888731 | D63: =_xlfn.STDEV.S(D2:D61) -> 0.04888033677

Sheet Sample VarianceCoVarMatrix
A1: Month | B1: NVDA | C1: JPM | D1: JNJ
A2: 2021-05-01 | B2: ='NVDA Stock Price History '!H6 -> 0.07336417713 | C2: ='JPM Stock Price History'!H6 -> 0.06063932838 | D2: ='JNJ Stock Price History '!H6 -> 0.03453545232 | H2: NVDA | I2: JPM | J2: JNJ
A3: 2021-06-01 | B3: ='NVDA Stock Price History '!H7 -> 0.2292562999 | C3: ='JPM Stock Price History'!H7 -> -0.06227768735 | D3: ='JNJ Stock Price History '!H7 -> -0.03179547458 | G3: NVDA | H3: =MMULT(TRANSPOSE(B2:D61-B62:D62),(B2:D61-B62:D62)/(60-1)) -> 0.02140023696 | I3: 0.003656602371 | J3: -0.001086627417
A4: 2021-07-01 | B4: ='NVDA Stock Price History '!H8 -> -0.03129657228 | C4: ='JPM Stock Price History'!H8 -> -0.02867016511 | D4: ='JNJ Stock Price History '!H8 -> 0.04528347699 | G4: JPM | H4: 0.003656602371 | I4: 0.004483492589 | J4: 0.0005439648918
A5: 2021-08-01 | B5: ='NVDA Stock Price History '!H9 -> 0.1365482234 | C5: ='JPM Stock Price History'!H9 -> 0.05209498125 | D5: ='JNJ Stock Price History '!H9 -> 0.003826752479 | G5: JNJ | H5: -0.001086627417 | I5: 0.0005439648918 | J5: 0.002389287323
A6: 2021-09-01 | B6: ='NVDA Stock Price History '!H10 -> -0.07870164518 | C6: ='JPM Stock Price History'!H10 -> 0.02165772063 | D6: ='JNJ Stock Price History '!H10 -> -0.06593406593
A7: 2021-10-01 | B7: ='NVDA Stock Price History '!H11 -> 0.2322891566 | C7: ='JPM Stock Price History'!H11 -> 0.03591463415 | D7: ='JNJ Stock Price History '!H11 -> 0.008357580635
A8: 2021-11-01 | B8: ='NVDA Stock Price History '!H12 -> 0.2740740741 | C8: ='JPM Stock Price History'!H12 -> -0.07678446873 | D8: ='JNJ Stock Price History '!H12 -> -0.04431233145
A9: 2021-12-01 | B9: ='NVDA Stock Price History '!H13 -> -0.1146899458 | C9: ='JPM Stock Price History'!H13 -> -0.01645962733 | D9: ='JNJ Stock Price History '!H13 -> 0.09045130036
A10: 2022-01-01 | B10: ='NVDA Stock Price History '!H14 -> -0.1787391013 | C10: ='JPM Stock Price History'!H14 -> -0.07043663205 | D10: ='JNJ Stock Price History '!H14 -> 0.01222019858
A11: 2022-02-01 | B11: ='NVDA Stock Price History '!H15 -> -0.02828685259 | C11: ='JPM Stock Price History'!H15 -> -0.0463380187 | D11: ='JNJ Stock Price History '!H15 -> -0.0417491557
A12: 2022-03-01 | B12: ='NVDA Stock Price History '!H16 -> 0.1235076163 | C12: ='JPM Stock Price History'!H16 -> -0.0265638389 | D12: ='JNJ Stock Price History '!H16 -> 0.08703385672
A13: 2022-04-01 | B13: ='NVDA Stock Price History '!H17 -> -0.3224981738 | C13: ='JPM Stock Price History'!H17 -> -0.1312954876 | D13: ='JNJ Stock Price History '!H17 -> 0.01926009602
A14: 2022-05-01 | B14: ='NVDA Stock Price History '!H18 -> 0.007011866235 | C14: ='JPM Stock Price History'!H18 -> 0.1030196864 | D14: ='JNJ Stock Price History '!H18 -> -0.005208621932
A15: 2022-06-01 | B15: ='NVDA Stock Price History '!H19 -> -0.1901709402 | C15: ='JPM Stock Price History'!H19 -> -0.1524798675 | D15: ='JNJ Stock Price History '!H19 -> -0.009154339939
A16: 2022-07-01 | B16: ='NVDA Stock Price History '!H20 -> 0.2187919463 | C16: ='JPM Stock Price History'!H20 -> 0.02405681314 | D16: ='JNJ Stock Price History '!H20 -> -0.01651169343
A17: 2022-08-01 | B17: ='NVDA Stock Price History '!H21 -> -0.1699669967 | C17: ='JPM Stock Price History'!H21 -> -0.00672489083 | D17: ='JNJ Stock Price History '!H21 -> -0.07366366194
A18: 2022-09-01 | B18: ='NVDA Stock Price History '!H22 -> -0.1456720619 | C18: ='JPM Stock Price History'!H22 -> -0.07758848972 | D18: ='JNJ Stock Price History '!H22 -> 0.01157966438
A19: 2022-10-01 | B19: ='NVDA Stock Price History '!H23 -> 0.09311740891 | C19: ='JPM Stock Price History'!H23 -> 0.1918197311 | D19: ='JNJ Stock Price History '!H23 -> 0.05892020208
A20: 2022-11-01 | B20: ='NVDA Stock Price History '!H24 -> 0.2251991311 | C20: ='JPM Stock Price History'!H24 -> 0.0891463703 | D20: ='JNJ Stock Price History '!H24 -> 0.02263587269
A21: 2022-12-01 | B21: ='NVDA Stock Price History '!H25 -> -0.1405882353 | C21: ='JPM Stock Price History'!H25 -> -0.0295267043 | D21: ='JNJ Stock Price History '!H25 -> -0.01312849162
A22: 2023-01-01 | B22: ='NVDA Stock Price History '!H26 -> 0.3158249158 | C22: ='JPM Stock Price History'!H26 -> 0.03490091689 | D22: ='JNJ Stock Price History '!H26 -> -0.07232061762
A23: 2023-02-01 | B23: ='NVDA Stock Price History '!H27 -> 0.1792788217 | C23: ='JPM Stock Price History'!H27 -> 0.03718978366 | D23: ='JNJ Stock Price History '!H27 -> -0.05969691392
A24: 2023-03-01 | B24: ='NVDA Stock Price History '!H28 -> 0.1979301423 | C24: ='JPM Stock Price History'!H28 -> -0.08296973962 | D24: ='JNJ Stock Price History '!H28 -> 0.0130056859
A25: 2023-04-01 | B25: ='NVDA Stock Price History '!H29 -> 0.008724100327 | C25: ='JPM Stock Price History'!H29 -> 0.06412131476 | D25: ='JNJ Stock Price History '!H29 -> 0.05646982898
A26: 2023-05-01 | B26: ='NVDA Stock Price History '!H30 -> 0.3588362069 | C26: ='JPM Stock Price History'!H30 -> -0.04604245747 | D26: ='JNJ Stock Price History '!H30 -> -0.052200489
A27: 2023-06-01 | B27: ='NVDA Stock Price History '!H31 -> 0.09898674981 | C27: ='JPM Stock Price History'!H31 -> 0.06533841195 | D27: ='JNJ Stock Price History '!H31 -> 0.07104956646
A28: 2023-07-01 | B28: ='NVDA Stock Price History '!H32 -> 0.09901222954 | C28: ='JPM Stock Price History'!H32 -> 0.0805116629 | D28: ='JNJ Stock Price History '!H32 -> 0.01941097724
A29: 2023-08-01 | B29: ='NVDA Stock Price History '!H33 -> 0.06220404649 | C29: ='JPM Stock Price History'!H33 -> -0.07050752715 | D29: ='JNJ Stock Price History '!H33 -> -0.02819017852
A30: 2023-09-01 | B30: ='NVDA Stock Price History '!H34 -> -0.1258038585 | C30: ='JPM Stock Price History'!H34 -> -0.007324252173 | D30: ='JNJ Stock Price History '!H34 -> -0.03512575889
A31: 2023-10-01 | B31: ='NVDA Stock Price History '!H35 -> -0.07381330911 | C31: ='JPM Stock Price History'!H35 -> -0.03983981219 | D31: ='JNJ Stock Price History '!H35 -> -0.04555398276
A32: 2023-11-01 | B32: ='NVDA Stock Price History '!H36 -> 0.1440802348 | C32: ='JPM Stock Price History'!H36 -> 0.1208617594 | D32: ='JNJ Stock Price History '!H36 -> 0.03666465581
A33: 2023-12-01 | B33: ='NVDA Stock Price History '!H37 -> 0.06425961745 | C33: ='JPM Stock Price History'!H37 -> 0.09164420485 | D33: ='JNJ Stock Price History '!H37 -> 0.001917668116
A34: 2024-01-01 | B34: ='NVDA Stock Price History '!H38 -> 0.2495938262 | C34: ='JPM Stock Price History'!H38 -> 0.03116683423 | D34: ='JNJ Stock Price History '!H38 -> 0.01255336774
A35: 2024-02-01 | B35: ='NVDA Stock Price History '!H39 -> 0.2739130435 | C35: ='JPM Stock Price History'!H39 -> 0.07152729786 | D35: ='JNJ Stock Price History '!H39 -> 0.02035912999
A36: 2024-03-01 | B36: ='NVDA Stock Price History '!H40 -> 0.1295 | C36: ='JPM Stock Price History'!H40 -> 0.07862143242 | D36: ='JNJ Stock Price History '!H40 -> -0.02249273929
A37: 2024-04-01 | B37: ='NVDA Stock Price History '!H41 -> -0.04318936877 | C37: ='JPM Stock Price History'!H41 -> -0.0412520626 | D37: ='JNJ Stock Price History '!H41 -> -0.08324879533
A38: 2024-05-01 | B38: ='NVDA Stock Price History '!H42 -> 0.2885519511 | C38: ='JPM Stock Price History'!H42 -> 0.05388256098 | D38: ='JNJ Stock Price History '!H42 -> -0.01391690198
A39: 2024-06-01 | B39: ='NVDA Stock Price History '!H43 -> 0.08730857243 | C39: ='JPM Stock Price History'!H43 -> -0.0002471454698 | D39: ='JNJ Stock Price History '!H43 -> -0.00740237691
A40: 2024-07-01 | B40: ='NVDA Stock Price History '!H44 -> -0.05223941038 | C40: ='JPM Stock Price History'!H44 -> 0.04910274108 | D40: ='JNJ Stock Price History '!H44 -> 0.08064626549
A41: 2024-08-01 | B41: ='NVDA Stock Price History '!H45 -> 0.0156555773 | C41: ='JPM Stock Price History'!H45 -> 0.05440900563 | D41: ='JNJ Stock Price History '!H45 -> 0.04656739021
A42: 2024-09-01 | B42: ='NVDA Stock Price History '!H46 -> 0.0468063098 | C42: ='JPM Stock Price History'!H46 -> -0.0514619883 | D42: ='JNJ Stock Price History '!H46 -> -0.01924473493
A43: 2024-10-01 | B43: ='NVDA Stock Price History '!H47 -> 0.09034165572 | C43: ='JPM Stock Price History'!H47 -> 0.062326472 | D43: ='JNJ Stock Price History '!H47 -> -0.01582220033
A44: 2024-11-01 | B44: ='NVDA Stock Price History '!H48 -> 0.02635486266 | C44: ='JPM Stock Price History'!H48 -> 0.1170155663 | D44: ='JNJ Stock Price History '!H48 -> -0.03468676049
A45: 2024-12-01 | B45: ='NVDA Stock Price History '!H49 -> -0.03270186559 | C45: ='JPM Stock Price History'!H49 -> -0.03943097576 | D45: ='JNJ Stock Price History '!H49 -> -0.06546042003
A46: 2025-01-01 | B46: ='NVDA Stock Price History '!H50 -> -0.1171323529 | C46: ='JPM Stock Price History'!H50 -> 0.1094969284 | D46: ='JNJ Stock Price History '!H50 -> 0.04764855746
A47: 2025-02-01 | B47: ='NVDA Stock Price History '!H51 -> 0.08862745098 | C47: ='JPM Stock Price History'!H51 -> 0.01077034717 | D47: ='JNJ Stock Price History '!H51 -> 0.08565789474
A48: 2025-03-01 | B48: ='NVDA Stock Price History '!H52 -> -0.1225002024 | C48: ='JPM Stock Price History'!H52 -> -0.07083333333 | D48: ='JNJ Stock Price History '!H52 -> 0.005334626576
A49: 2025-04-01 | B49: ='NVDA Stock Price History '!H53 -> 0.003778453599 | C49: ='JPM Stock Price History'!H53 -> 0.0082433435 | D49: ='JNJ Stock Price History '!H53 -> -0.02749953338
A50: 2025-05-01 | B50: ='NVDA Stock Price History '!H54 -> 0.194994694 | C50: ='JPM Stock Price History'!H54 -> 0.08713556251 | D50: ='JNJ Stock Price History '!H54 -> 0.00135483871
A51: 2025-06-01 | B51: ='NVDA Stock Price History '!H55 -> 0.1660639162 | C51: ='JPM Stock Price History'!H55 -> 0.1022355714 | D51: ='JNJ Stock Price History '!H55 -> -0.01119886069
A52: 2025-07-01 | B52: ='NVDA Stock Price History '!H56 -> 0.1380766524 | C52: ='JPM Stock Price History'!H56 -> 0.01839183196 | D52: ='JNJ Stock Price History '!H56 -> 0.07673202614
A53: 2025-08-01 | B53: ='NVDA Stock Price History '!H57 -> 0.000516973979 | C53: ='JPM Stock Price History'!H57 -> 0.0379476584 | D53: ='JNJ Stock Price History '!H57 -> 0.070642978
A54: 2025-09-01 | B54: ='NVDA Stock Price History '!H58 -> 0.09752941176 | C54: ='JPM Stock Price History'!H58 -> 0.05052288017 | D54: ='JNJ Stock Price History '!H58 -> 0.0447963036
A55: 2025-10-01 | B55: ='NVDA Stock Price History '!H59 -> 0.09312243576 | C55: ='JPM Stock Price History'!H59 -> -0.009077300379 | D55: ='JNJ Stock Price History '!H59 -> 0.01543010753
A56: 2025-11-01 | B56: ='NVDA Stock Price History '!H60 -> -0.1493656286 | C56: ='JPM Stock Price History'!H60 -> 0.006688102894 | D56: ='JNJ Stock Price History '!H60 -> 0.09481481481
A57: 2025-12-01 | B57: ='NVDA Stock Price History '!H61 -> 0.0671778439 | C57: ='JPM Stock Price History'!H61 -> 0.02962134526 | D57: ='JNJ Stock Price History '!H61 -> 0.002179176755
A58: 2026-01-01 | B58: ='NVDA Stock Price History '!H62 -> 0.006795195954 | C58: ='JPM Stock Price History'!H62 -> -0.05150387597 | D58: ='JNJ Stock Price History '!H62 -> 0.09878154917
A59: 2026-02-01 | B59: ='NVDA Stock Price History '!H63 -> -0.05347222222 | C59: ='JPM Stock Price History'!H63 -> -0.01366353544 | D59: ='JNJ Stock Price History '!H63 -> 0.08807813595
A60: 2026-03-01 | B60: ='NVDA Stock Price History '!H64 -> -0.003485515113 | C60: ='JPM Stock Price History'!H64 -> -0.002204809878 | D60: ='JNJ Stock Price History '!H64 -> -0.0190617601
A61: 2026-04-01 | B61: ='NVDA Stock Price History '!H65 -> 0.2155681818 | C61: ='JPM Stock Price History'!H65 -> 0.05477504316 | D61: ='JNJ Stock Price History '!H65 -> -0.07414495114
A62: Expected return | B62: =AVERAGE(B2:B61) -> 0.05413766192 | C62: =AVERAGE(C2:C61) -> 0.01425488585 | D62: =AVERAGE(D2:D61) -> 0.006591236446
A63: Standard Deviation | B63: =_xlfn.STDEV.S(B2:B61) -> 0.1462881983 | C63: =_xlfn.STDEV.S(C2:C61) -> 0.06695888731 | D63: =_xlfn.STDEV.S(D2:D61) -> 0.04888033677

Sheet Efficient Frontier
A1: Month | B1: NVDA | C1: JPM | D1: JNJ
A2: 2021-05-01 | B2: ='NVDA Stock Price History '!H6 -> 0.07336417713 | C2: ='JPM Stock Price History'!H6 -> 0.06063932838 | D2: ='JNJ Stock Price History '!H6 -> 0.03453545232 | H2: NVDA | I2: JPM | J2: JNJ
A3: 2021-06-01 | B3: ='NVDA Stock Price History '!H7 -> 0.2292562999 | C3: ='JPM Stock Price History'!H7 -> -0.06227768735 | D3: ='JNJ Stock Price History '!H7 -> -0.03179547458 | G3: NVDA | H3: =MMULT(TRANSPOSE(B2:D61-B62:D62),(B2:D61-B62:D62)/(60-1)) -> 0.02140023696 | I3: 0.003656602371 | J3: -0.001086627417
A4: 2021-07-01 | B4: ='NVDA Stock Price History '!H8 -> -0.03129657228 | C4: ='JPM Stock Price History'!H8 -> -0.02867016511 | D4: ='JNJ Stock Price History '!H8 -> 0.04528347699 | G4: JPM | H4: 0.003656602371 | I4: 0.004483492589 | J4: 0.0005439648918
A5: 2021-08-01 | B5: ='NVDA Stock Price History '!H9 -> 0.1365482234 | C5: ='JPM Stock Price History'!H9 -> 0.05209498125 | D5: ='JNJ Stock Price History '!H9 -> 0.003826752479 | G5: JNJ | H5: -0.001086627417 | I5: 0.0005439648918 | J5: 0.002389287323
A6: 2021-09-01 | B6: ='NVDA Stock Price History '!H10 -> -0.07870164518 | C6: ='JPM Stock Price History'!H10 -> 0.02165772063 | D6: ='JNJ Stock Price History '!H10 -> -0.06593406593
A7: 2021-10-01 | B7: ='NVDA Stock Price History '!H11 -> 0.2322891566 | C7: ='JPM Stock Price History'!H11 -> 0.03591463415 | D7: ='JNJ Stock Price History '!H11 -> 0.008357580635
A8: 2021-11-01 | B8: ='NVDA Stock Price History '!H12 -> 0.2740740741 | C8: ='JPM Stock Price History'!H12 -> -0.07678446873 | D8: ='JNJ Stock Price History '!H12 -> -0.04431233145
A9: 2021-12-01 | B9: ='NVDA Stock Price History '!H13 -> -0.1146899458 | C9: ='JPM Stock Price History'!H13 -> -0.01645962733 | D9: ='JNJ Stock Price History '!H13 -> 0.09045130036
A10: 2022-01-01 | B10: ='NVDA Stock Price History '!H14 -> -0.1787391013 | C10: ='JPM Stock Price History'!H14 -> -0.07043663205 | D10: ='JNJ Stock Price History '!H14 -> 0.01222019858 | I10: 0.9 | J10: 0.8 | K10: 0.7 | L10: 0.6 | M10: 0.5 | N10: 0.4 | O10: 0.3 | P10: 0.2 | Q10: 0.1
A11: 2022-02-01 | B11: ='NVDA Stock Price History '!H15 -> -0.02828685259 | C11: ='JPM Stock Price History'!H15 -> -0.0463380187 | D11: ='JNJ Stock Price History '!H15 -> -0.0417491557 | G11: Stock | H11: Minimum Variance Portfolio | I11: Port 2 | J11: Port 3 | K11: Port 4 | L11: Port 5 | M11: Port 6 | N11: Port 7 | O11: Port 8 | P11: Port 9 | Q11: Port 10 | R11: Max Return
A12: 2022-03-01 | B12: ='NVDA Stock Price History '!H16 -> 0.1235076163 | C12: ='JPM Stock Price History'!H16 -> -0.0265638389 | D12: ='JNJ Stock Price History '!H16 -> 0.08703385672 | G12: NVDA | H12: 0.07476718189 | I12: =I$10*$H12+(1-I$10)*$R12 -> 0.1671950445 | J12: =J$10*$H12+(1-J$10)*$R12 -> 0.2596229072 | K12: 0.3520507698 | L12: 0.4444786324 | M12: 0.5369064951 | N12: 0.6293343577 | O12: 0.7217622204 | P12: 0.814190083 | Q12: 0.9066179456 | R12: 0.9990458083
A13: 2022-04-01 | B13: ='NVDA Stock Price History '!H17 -> -0.3224981738 | C13: ='JPM Stock Price History'!H17 -> -0.1312954876 | D13: ='JNJ Stock Price History '!H17 -> 0.01926009602 | G13: JPM | H13: 0.2376059865 | I13: =I$10*$H13+(1-I$10)*$R13 -> 0.2142974863 | J13: 0.190988986 | K13: 0.1676804858 | L13: 0.1443719856 | M13: 0.1210634853 | N13: 0.09775498512 | O13: 0.07444648488 | P13: 0.05113798465 | Q13: 0.02782948442 | R13: 0.004520984192
A14: 2022-05-01 | B14: ='NVDA Stock Price History '!H18 -> 0.007011866235 | C14: ='JPM Stock Price History'!H18 -> 0.1030196864 | D14: ='JNJ Stock Price History '!H18 -> -0.005208621932 | G14: JNJ | H14: 0.6876268316 | I14: 0.6185074704 | J14: 0.5493881092 | K14: 0.480268748 | L14: 0.4111493867 | M14: 0.3420300255 | N14: 0.2729106643 | O14: 0.2037913031 | P14: 0.1346719419 | Q14: 0.06555258064 | R14: -0.003566780575
A15: 2022-06-01 | B15: ='NVDA Stock Price History '!H19 -> -0.1901709402 | C15: ='JPM Stock Price History'!H19 -> -0.1524798675 | D15: ='JNJ Stock Price History '!H19 -> -0.009154339939 | G15: Sum weights | H15: =SUM(H12:H14) -> 1 | I15: =SUM(I12:I14) -> 1.000000001 | J15: =SUM(J12:J14) -> 1.000000002 | K15: 1.000000004 | L15: 1.000000005 | M15: 1.000000006 | N15: 1.000000007 | O15: 1.000000008 | P15: =SUM(P12:P14) -> 1.00000001 | Q15: =SUM(Q12:Q14) -> 1.000000011 | R15: =SUM(R12:R14) -> 1.000000012
A16: 2022-07-01 | B16: ='NVDA Stock Price History '!H20 -> 0.2187919463 | C16: ='JPM Stock Price History'!H20 -> 0.02405681314 | D16: ='JNJ Stock Price History '!H20 -> -0.01651169343 | G16: Expected return | H16: =SUM(TRANSPOSE(H12:H14)*$B$62:$D$62) -> 0.01196707767 | I16: =SUM(TRANSPOSE(I12:I14)*$B$62:$D$62) -> 0.01618306398 | J16: =SUM(TRANSPOSE(J12:J14)*$B$62:$D$62) -> 0.0203990503 | K16: =SUM(TRANSPOSE(K12:K14)*$B$62:$D$62) -> 0.02461503662 | L16: =SUM(TRANSPOSE(L12:L14)*$B$62:$D$62) -> 0.02883102293 | M16: =SUM(TRANSPOSE(M12:M14)*$B$62:$D$62) -> 0.03304700925 | N16: =SUM(TRANSPOSE(N12:N14)*$B$62:$D$62) -> 0.03726299557 | O16: =SUM(TRANSPOSE(O12:O14)*$B$62:$D$62) -> 0.04147898188 | P16: =SUM(TRANSPOSE(P12:P14)*$B$62:$D$62) -> 0.0456949682 | Q16: =SUM(TRANSPOSE(Q12:Q14)*$B$62:$D$62) -> 0.04991095452 | R16: =SUM(TRANSPOSE(R12:R14)*$B$62:$D$62) -> 0.05412694083
A17: 2022-08-01 | B17: ='NVDA Stock Price History '!H21 -> -0.1699669967 | C17: ='JPM Stock Price History'!H21 -> -0.00672489083 | D17: ='JNJ Stock Price History '!H21 -> -0.07366366194 | G17: Standard deviation | H17: =SQRT(MMULT(MMULT(TRANSPOSE(H12:H14),$H$3:$J$5),H12:H14)) -> 0.04121189914 | I17: =SQRT(MMULT(MMULT(TRANSPOSE(I12:I14),$H$3:$J$5),I12:I14)) -> 0.04358482622 | J17: =SQRT(MMULT(MMULT(TRANSPOSE(J12:J14),$H$3:$J$5),J12:J14)) -> 0.04993954567 | K17: =SQRT(MMULT(MMULT(TRANSPOSE(K12:K14),$H$3:$J$5),K12:K14)) -> 0.0590032547 | L17: =SQRT(MMULT(MMULT(TRANSPOSE(L12:L14),$H$3:$J$5),L12:L14)) -> 0.06972743082 | M17: =SQRT(MMULT(MMULT(TRANSPOSE(M12:M14),$H$3:$J$5),M12:M14)) -> 0.08145888442 | N17: =SQRT(MMULT(MMULT(TRANSPOSE(N12:N14),$H$3:$J$5),N12:N14)) -> 0.09382051903 | O17: =SQRT(MMULT(MMULT(TRANSPOSE(O12:O14),$H$3:$J$5),O12:O14)) -> 0.1065933133 | P17: =SQRT(MMULT(MMULT(TRANSPOSE(P12:P14),$H$3:$J$5),P12:P14)) -> 0.1196456592 | Q17: =SQRT(MMULT(MMULT(TRANSPOSE(Q12:Q14),$H$3:$J$5),Q12:Q14)) -> 0.1328952136 | R17: =SQRT(MMULT(MMULT(TRANSPOSE(R12:R14),$H$3:$J$5),R12:R14)) -> 0.146288402
A18: 2022-09-01 | B18: ='NVDA Stock Price History '!H22 -> -0.1456720619 | C18: ='JPM Stock Price History'!H22 -> -0.07758848972 | D18: ='JNJ Stock Price History '!H22 -> 0.01157966438
A19: 2022-10-01 | B19: ='NVDA Stock Price History '!H23 -> 0.09311740891 | C19: ='JPM Stock Price History'!H23 -> 0.1918197311 | D19: ='JNJ Stock Price History '!H23 -> 0.05892020208
A20: 2022-11-01 | B20: ='NVDA Stock Price History '!H24 -> 0.2251991311 | C20: ='JPM Stock Price History'!H24 -> 0.0891463703 | D20: ='JNJ Stock Price History '!H24 -> 0.02263587269
A21: 2022-12-01 | B21: ='NVDA Stock Price History '!H25 -> -0.1405882353 | C21: ='JPM Stock Price History'!H25 -> -0.0295267043 | D21: ='JNJ Stock Price History '!H25 -> -0.01312849162
A22: 2023-01-01 | B22: ='NVDA Stock Price History '!H26 -> 0.3158249158 | C22: ='JPM Stock Price History'!H26 -> 0.03490091689 | D22: ='JNJ Stock Price History '!H26 -> -0.07232061762
A23: 2023-02-01 | B23: ='NVDA Stock Price History '!H27 -> 0.1792788217 | C23: ='JPM Stock Price History'!H27 -> 0.03718978366 | D23: ='JNJ Stock Price History '!H27 -> -0.05969691392
A24: 2023-03-01 | B24: ='NVDA Stock Price History '!H28 -> 0.1979301423 | C24: ='JPM Stock Price History'!H28 -> -0.08296973962 | D24: ='JNJ Stock Price History '!H28 -> 0.0130056859
A25: 2023-04-01 | B25: ='NVDA Stock Price History '!H29 -> 0.008724100327 | C25: ='JPM Stock Price History'!H29 -> 0.06412131476 | D25: ='JNJ Stock Price History '!H29 -> 0.05646982898
A26: 2023-05-01 | B26: ='NVDA Stock Price History '!H30 -> 0.3588362069 | C26: ='JPM Stock Price History'!H30 -> -0.04604245747 | D26: ='JNJ Stock Price History '!H30 -> -0.052200489
A27: 2023-06-01 | B27: ='NVDA Stock Price History '!H31 -> 0.09898674981 | C27: ='JPM Stock Price History'!H31 -> 0.06533841195 | D27: ='JNJ Stock Price History '!H31 -> 0.07104956646
A28: 2023-07-01 | B28: ='NVDA Stock Price History '!H32 -> 0.09901222954 | C28: ='JPM Stock Price History'!H32 -> 0.0805116629 | D28: ='JNJ Stock Price History '!H32 -> 0.01941097724
A29: 2023-08-01 | B29: ='NVDA Stock Price History '!H33 -> 0.06220404649 | C29: ='JPM Stock Price History'!H33 -> -0.07050752715 | D29: ='JNJ Stock Price History '!H33 -> -0.02819017852
A30: 2023-09-01 | B30: ='NVDA Stock Price History '!H34 -> -0.1258038585 | C30: ='JPM Stock Price History'!H34 -> -0.007324252173 | D30: ='JNJ Stock Price History '!H34 -> -0.03512575889
A31: 2023-10-01 | B31: ='NVDA Stock Price History '!H35 -> -0.07381330911 | C31: ='JPM Stock Price History'!H35 -> -0.03983981219 | D31: ='JNJ Stock Price History '!H35 -> -0.04555398276
A32: 2023-11-01 | B32: ='NVDA Stock Price History '!H36 -> 0.1440802348 | C32: ='JPM Stock Price History'!H36 -> 0.1208617594 | D32: ='JNJ Stock Price History '!H36 -> 0.03666465581
A33: 2023-12-01 | B33: ='NVDA Stock Price History '!H37 -> 0.06425961745 | C33: ='JPM Stock Price History'!H37 -> 0.09164420485 | D33: ='JNJ Stock Price History '!H37 -> 0.001917668116
A34: 2024-01-01 | B34: ='NVDA Stock Price History '!H38 -> 0.2495938262 | C34: ='JPM Stock Price History'!H38 -> 0.03116683423 | D34: ='JNJ Stock Price History '!H38 -> 0.01255336774
A35: 2024-02-01 | B35: ='NVDA Stock Price History '!H39 -> 0.2739130435 | C35: ='JPM Stock Price History'!H39 -> 0.07152729786 | D35: ='JNJ Stock Price History '!H39 -> 0.02035912999
A36: 2024-03-01 | B36: ='NVDA Stock Price History '!H40 -> 0.1295 | C36: ='JPM Stock Price History'!H40 -> 0.07862143242 | D36: ='JNJ Stock Price History '!H40 -> -0.02249273929
A37: 2024-04-01 | B37: ='NVDA Stock Price History '!H41 -> -0.04318936877 | C37: ='JPM Stock Price History'!H41 -> -0.0412520626 | D37: ='JNJ Stock Price History '!H41 -> -0.08324879533
A38: 2024-05-01 | B38: ='NVDA Stock Price History '!H42 -> 0.2885519511 | C38: ='JPM Stock Price History'!H42 -> 0.05388256098 | D38: ='JNJ Stock Price History '!H42 -> -0.01391690198
A39: 2024-06-01 | B39: ='NVDA Stock Price History '!H43 -> 0.08730857243 | C39: ='JPM Stock Price History'!H43 -> -0.0002471454698 | D39: ='JNJ Stock Price History '!H43 -> -0.00740237691
A40: 2024-07-01 | B40: ='NVDA Stock Price History '!H44 -> -0.05223941038 | C40: ='JPM Stock Price History'!H44 -> 0.04910274108 | D40: ='JNJ Stock Price History '!H44 -> 0.08064626549
A41: 2024-08-01 | B41: ='NVDA Stock Price History '!H45 -> 0.0156555773 | C41: ='JPM Stock Price History'!H45 -> 0.05440900563 | D41: ='JNJ Stock Price History '!H45 -> 0.04656739021
A42: 2024-09-01 | B42: ='NVDA Stock Price History '!H46 -> 0.0468063098 | C42: ='JPM Stock Price History'!H46 -> -0.0514619883 | D42: ='JNJ Stock Price History '!H46 -> -0.01924473493
A43: 2024-10-01 | B43: ='NVDA Stock Price History '!H47 -> 0.09034165572 | C43: ='JPM Stock Price History'!H47 -> 0.062326472 | D43: ='JNJ Stock Price History '!H47 -> -0.01582220033
A44: 2024-11-01 | B44: ='NVDA Stock Price History '!H48 -> 0.02635486266 | C44: ='JPM Stock Price History'!H48 -> 0.1170155663 | D44: ='JNJ Stock Price History '!H48 -> -0.03468676049
A45: 2024-12-01 | B45: ='NVDA Stock Price History '!H49 -> -0.03270186559 | C45: ='JPM Stock Price History'!H49 -> -0.03943097576 | D45: ='JNJ Stock Price History '!H49 -> -0.06546042003
A46: 2025-01-01 | B46: ='NVDA Stock Price History '!H50 -> -0.1171323529 | C46: ='JPM Stock Price History'!H50 -> 0.1094969284 | D46: ='JNJ Stock Price History '!H50 -> 0.04764855746
A47: 2025-02-01 | B47: ='NVDA Stock Price History '!H51 -> 0.08862745098 | C47: ='JPM Stock Price History'!H51 -> 0.01077034717 | D47: ='JNJ Stock Price History '!H51 -> 0.08565789474
A48: 2025-03-01 | B48: ='NVDA Stock Price History '!H52 -> -0.1225002024 | C48: ='JPM Stock Price History'!H52 -> -0.07083333333 | D48: ='JNJ Stock Price History '!H52 -> 0.005334626576
A49: 2025-04-01 | B49: ='NVDA Stock Price History '!H53 -> 0.003778453599 | C49: ='JPM Stock Price History'!H53 -> 0.0082433435 | D49: ='JNJ Stock Price History '!H53 -> -0.02749953338
A50: 2025-05-01 | B50: ='NVDA Stock Price History '!H54 -> 0.194994694 | C50: ='JPM Stock Price History'!H54 -> 0.08713556251 | D50: ='JNJ Stock Price History '!H54 -> 0.00135483871
A51: 2025-06-01 | B51: ='NVDA Stock Price History '!H55 -> 0.1660639162 | C51: ='JPM Stock Price History'!H55 -> 0.1022355714 | D51: ='JNJ Stock Price History '!H55 -> -0.01119886069
A52: 2025-07-01 | B52: ='NVDA Stock Price History '!H56 -> 0.1380766524 | C52: ='JPM Stock Price History'!H56 -> 0.01839183196 | D52: ='JNJ Stock Price History '!H56 -> 0.07673202614
A53: 2025-08-01 | B53: ='NVDA Stock Price History '!H57 -> 0.000516973979 | C53: ='JPM Stock Price History'!H57 -> 0.0379476584 | D53: ='JNJ Stock Price History '!H57 -> 0.070642978
A54: 2025-09-01 | B54: ='NVDA Stock Price History '!H58 -> 0.09752941176 | C54: ='JPM Stock Price History'!H58 -> 0.05052288017 | D54: ='JNJ Stock Price History '!H58 -> 0.0447963036
A55: 2025-10-01 | B55: ='NVDA Stock Price History '!H59 -> 0.09312243576 | C55: ='JPM Stock Price History'!H59 -> -0.009077300379 | D55: ='JNJ Stock Price History '!H59 -> 0.01543010753
A56: 2025-11-01 | B56: ='NVDA Stock Price History '!H60 -> -0.1493656286 | C56: ='JPM Stock Price History'!H60 -> 0.006688102894 | D56: ='JNJ Stock Price History '!H60 -> 0.09481481481
A57: 2025-12-01 | B57: ='NVDA Stock Price History '!H61 -> 0.0671778439 | C57: ='JPM Stock Price History'!H61 -> 0.02962134526 | D57: ='JNJ Stock Price History '!H61 -> 0.002179176755
A58: 2026-01-01 | B58: ='NVDA Stock Price History '!H62 -> 0.006795195954 | C58: ='JPM Stock Price History'!H62 -> -0.05150387597 | D58: ='JNJ Stock Price History '!H62 -> 0.09878154917
A59: 2026-02-01 | B59: ='NVDA Stock Price History '!H63 -> -0.05347222222 | C59: ='JPM Stock Price History'!H63 -> -0.01366353544 | D59: ='JNJ Stock Price History '!H63 -> 0.08807813595
A60: 2026-03-01 | B60: ='NVDA Stock Price History '!H64 -> -0.003485515113 | C60: ='JPM Stock Price History'!H64 -> -0.002204809878 | D60: ='JNJ Stock Price History '!H64 -> -0.0190617601
A61: 2026-04-01 | B61: ='NVDA Stock Price History '!H65 -> 0.2155681818 | C61: ='JPM Stock Price History'!H65 -> 0.05477504316 | D61: ='JNJ Stock Price History '!H65 -> -0.07414495114
A62: Expected return | B62: =AVERAGE(B2:B61) -> 0.05413766192 | C62: =AVERAGE(C2:C61) -> 0.01425488585 | D62: =AVERAGE(D2:D61) -> 0.006591236446
A63: Standard Deviation | B63: =_xlfn.STDEV.S(B2:B61) -> 0.1462881983 | C63: =_xlfn.STDEV.S(C2:C61) -> 0.06695888731 | D63: =_xlfn.STDEV.S(D2:D61) -> 0.04888033677

Sheet RiskFreeAsset+CML
A1: Month | B1: NVDA | C1: JPM | D1: JNJ | E1: Risk-free
A2: 2021-05-01 | B2: ='NVDA Stock Price History '!H6 -> 0.07336417713 | C2: ='JPM Stock Price History'!H6 -> 0.06063932838 | D2: ='JNJ Stock Price History '!H6 -> 0.03453545232 | E2: =0.02/12 -> 0.001666666667 | H2: NVDA | I2: JPM | J2: JNJ | K2: Risk-free
A3: 2021-06-01 | B3: ='NVDA Stock Price History '!H7 -> 0.2292562999 | C3: ='JPM Stock Price History'!H7 -> -0.06227768735 | D3: ='JNJ Stock Price History '!H7 -> -0.03179547458 | E3: 0.001666666667 | G3: NVDA | H3: =MMULT(TRANSPOSE(B2:E61-B62:E62),(B2:E61-B62:E62)/(60-1)) -> 0.02140023696 | I3: 0.003656602371 | J3: -0.001086627417 | K3: 2.031254238e-35
A4: 2021-07-01 | B4: ='NVDA Stock Price History '!H8 -> -0.03129657228 | C4: ='JPM Stock Price History'!H8 -> -0.02867016511 | D4: ='JNJ Stock Price History '!H8 -> 0.04528347699 | E4: 0.001666666667 | G4: JPM | H4: 0.003656602371 | I4: 0.004483492589 | J4: 0.0005439648918 | K4: -3.197344634e-36
A5: 2021-08-01 | B5: ='NVDA Stock Price History '!H9 -> 0.1365482234 | C5: ='JPM Stock Price History'!H9 -> 0.05209498125 | D5: ='JNJ Stock Price History '!H9 -> 0.003826752479 | E5: 0.001666666667 | G5: JNJ | H5: -0.001086627417 | I5: 0.0005439648918 | J5: 0.002389287323 | K5: 6.394689268e-36
A6: 2021-09-01 | B6: ='NVDA Stock Price History '!H10 -> -0.07870164518 | C6: ='JPM Stock Price History'!H10 -> 0.02165772063 | D6: ='JNJ Stock Price History '!H10 -> -0.06593406593 | E6: 0.001666666667 | G6: Risk-free | H6: 7.523163845e-36 | I6: -1.015627119e-35 | J6: 6.018531076e-36 | K6: 4.781671936e-36
A7: 2021-10-01 | B7: ='NVDA Stock Price History '!H11 -> 0.2322891566 | C7: ='JPM Stock Price History'!H11 -> 0.03591463415 | D7: ='JNJ Stock Price History '!H11 -> 0.008357580635 | E7: 0.001666666667
A8: 2021-11-01 | B8: ='NVDA Stock Price History '!H12 -> 0.2740740741 | C8: ='JPM Stock Price History'!H12 -> -0.07678446873 | D8: ='JNJ Stock Price History '!H12 -> -0.04431233145 | E8: 0.001666666667
A9: 2021-12-01 | B9: ='NVDA Stock Price History '!H13 -> -0.1146899458 | C9: ='JPM Stock Price History'!H13 -> -0.01645962733 | D9: ='JNJ Stock Price History '!H13 -> 0.09045130036 | E9: 0.001666666667
A10: 2022-01-01 | B10: ='NVDA Stock Price History '!H14 -> -0.1787391013 | C10: ='JPM Stock Price History'!H14 -> -0.07043663205 | D10: ='JNJ Stock Price History '!H14 -> 0.01222019858 | E10: 0.001666666667 | I10: 0.9 | J10: 0.8 | K10: 0.7 | L10: 0.6 | M10: 0.5 | N10: 0.4 | O10: 0.3 | P10: 0.2 | Q10: 0.1
A11: 2022-02-01 | B11: ='NVDA Stock Price History '!H15 -> -0.02828685259 | C11: ='JPM Stock Price History'!H15 -> -0.0463380187 | D11: ='JNJ Stock Price History '!H15 -> -0.0417491557 | E11: 0.001666666667 | G11: Stock | H11: Minimum Variance Portfolio | I11: Port 2 | J11: Port 3 | K11: Port 4 | L11: Port 5 | M11: Port 6 | N11: Port 7 | O11: Port 8 | P11: Port 9 | Q11: Port 10 | R11: Max Return
A12: 2022-03-01 | B12: ='NVDA Stock Price History '!H16 -> 0.1235076163 | C12: ='JPM Stock Price History'!H16 -> -0.0265638389 | D12: ='JNJ Stock Price History '!H16 -> 0.08703385672 | E12: 0.001666666667 | G12: NVDA | H12: 0 | I12: =I$10*$H12+(1-I$10)*$R12 -> 0.08093608268 | J12: =J$10*$H12+(1-J$10)*$R12 -> 0.1618721654 | K12: 0.242808248 | L12: 0.3237443307 | M12: 0.4046804134 | N12: 0.4856164961 | O12: 0.5665525788 | P12: 0.6474886615 | Q12: 0.7284247441 | R12: 0.8093608268
A13: 2022-04-01 | B13: ='NVDA Stock Price History '!H17 -> -0.3224981738 | C13: ='JPM Stock Price History'!H17 -> -0.1312954876 | D13: ='JNJ Stock Price History '!H17 -> 0.01926009602 | E13: 0.001666666667 | G13: JPM | H13: 0 | I13: =I$10*$H13+(1-I$10)*$R13 -> 0.03455150695 | J13: 0.0691030139 | K13: 0.1036545208 | L13: 0.1382060278 | M13: 0.1727575347 | N13: 0.2073090417 | O13: 0.2418605486 | P13: 0.2764120556 | Q13: 0.3109635625 | R13: 0.3455150695
A14: 2022-05-01 | B14: ='NVDA Stock Price History '!H18 -> 0.007011866235 | C14: ='JPM Stock Price History'!H18 -> 0.1030196864 | D14: ='JNJ Stock Price History '!H18 -> -0.005208621932 | E14: 0.001666666667 | G14: JNJ | H14: 0 | I14: 0.09882205281 | J14: 0.1976441056 | K14: 0.2964661584 | L14: 0.3952882113 | M14: 0.4941102641 | N14: 0.5929323169 | O14: 0.6917543697 | P14: 0.7905764225 | Q14: 0.8893984753 | R14: 0.9882205281
A15: 2022-06-01 | B15: ='NVDA Stock Price History '!H19 -> -0.1901709402 | C15: ='JPM Stock Price History'!H19 -> -0.1524798675 | D15: ='JNJ Stock Price History '!H19 -> -0.009154339939 | E15: 0.001666666667 | G15: Risk-free | H15: 1 | I15: 0.785690359 | J15: 0.571380718 | K15: 0.3570710771 | L15: 0.1427614361 | M15: -0.07154820488 | N15: -0.2858578459 | O15: -0.5001674868 | P15: -0.7144771278 | Q15: -0.9287867688 | R15: -1.14309641
A16: 2022-07-01 | B16: ='NVDA Stock Price History '!H20 -> 0.2187919463 | C16: ='JPM Stock Price History'!H20 -> 0.02405681314 | D16: ='JNJ Stock Price History '!H20 -> -0.01651169343 | E16: 0.001666666667 | G16: Sum weights | H16: =SUM(H12:H15) -> 1 | I16: =SUM(I12:I15) -> 1.000000001 | J16: 1.000000003 | K16: 1.000000004 | L16: 1.000000006 | M16: 1.000000007 | N16: 1.000000009 | O16: 1.00000001 | P16: 1.000000012 | Q16: 1.000000013 | R16: 1.000000015
A17: 2022-08-01 | B17: ='NVDA Stock Price History '!H21 -> -0.1699669967 | C17: ='JPM Stock Price History'!H21 -> -0.00672489083 | D17: ='JNJ Stock Price History '!H21 -> -0.07366366194 | E17: 0.001666666667 | G17: Expected return | H17: =SUM(TRANSPOSE(H12:H15)*$B$62:$E$62) -> 0.001666666667 | I17: =SUM(TRANSPOSE(I12:I15)*$B$62:$E$62) -> 0.006835061517 | J17: =SUM(TRANSPOSE(J12:J15)*$B$62:$E$62) -> 0.01200345637 | K17: =SUM(TRANSPOSE(K12:K15)*$B$62:$E$62) -> 0.01717185122 | L17: =SUM(TRANSPOSE(L12:L15)*$B$62:$E$62) -> 0.02234024607 | M17: =SUM(TRANSPOSE(M12:M15)*$B$62:$E$62) -> 0.02750864092 | N17: =SUM(TRANSPOSE(N12:N15)*$B$62:$E$62) -> 0.03267703577 | O17: =SUM(TRANSPOSE(O12:O15)*$B$62:$E$62) -> 0.03784543062 | P17: =SUM(TRANSPOSE(P12:P15)*$B$62:$E$62) -> 0.04301382547 | Q17: =SUM(TRANSPOSE(Q12:Q15)*$B$62:$E$62) -> 0.04818222032 | R17: =SUM(TRANSPOSE(R12:R15)*$B$62:$E$62) -> 0.05335061517
A18: 2022-09-01 | B18: ='NVDA Stock Price History '!H22 -> -0.1456720619 | C18: ='JPM Stock Price History'!H22 -> -0.07758848972 | D18: ='JNJ Stock Price History '!H22 -> 0.01157966438 | E18: 0.001666666667 | G18: Standard deviation | H18: =SQRT(MMULT(MMULT(TRANSPOSE(H12:H15),$H$3:$K$6),H12:H15)) -> 2.18670344e-18 | I18: =SQRT(MMULT(MMULT(TRANSPOSE(I12:I15),$H$3:$K$6),I12:I15)) -> 0.01325347831 | J18: =SQRT(MMULT(MMULT(TRANSPOSE(J12:J15),$H$3:$K$6),J12:J15)) -> 0.02650695661 | K18: =SQRT(MMULT(MMULT(TRANSPOSE(K12:K15),$H$3:$K$6),K12:K15)) -> 0.03976043492 | L18: =SQRT(MMULT(MMULT(TRANSPOSE(L12:L15),$H$3:$K$6),L12:L15)) -> 0.05301391322 | M18: =SQRT(MMULT(MMULT(TRANSPOSE(M12:M15),$H$3:$K$6),M12:M15)) -> 0.06626739153 | N18: =SQRT(MMULT(MMULT(TRANSPOSE(N12:N15),$H$3:$K$6),N12:N15)) -> 0.07952086983 | O18: =SQRT(MMULT(MMULT(TRANSPOSE(O12:O15),$H$3:$K$6),O12:O15)) -> 0.09277434814 | P18: =SQRT(MMULT(MMULT(TRANSPOSE(P12:P15),$H$3:$K$6),P12:P15)) -> 0.1060278264 | Q18: =SQRT(MMULT(MMULT(TRANSPOSE(Q12:Q15),$H$3:$K$6),Q12:Q15)) -> 0.1192813047 | R18: =SQRT(MMULT(MMULT(TRANSPOSE(R12:R15),$H$3:$K$6),R12:R15)) -> 0.1325347831
A19: 2022-10-01 | B19: ='NVDA Stock Price History '!H23 -> 0.09311740891 | C19: ='JPM Stock Price History'!H23 -> 0.1918197311 | D19: ='JNJ Stock Price History '!H23 -> 0.05892020208 | E19: 0.001666666667
A20: 2022-11-01 | B20: ='NVDA Stock Price History '!H24 -> 0.2251991311 | C20: ='JPM Stock Price History'!H24 -> 0.0891463703 | D20: ='JNJ Stock Price History '!H24 -> 0.02263587269 | E20: 0.001666666667
A21: 2022-12-01 | B21: ='NVDA Stock Price History '!H25 -> -0.1405882353 | C21: ='JPM Stock Price History'!H25 -> -0.0295267043 | D21: ='JNJ Stock Price History '!H25 -> -0.01312849162 | E21: 0.001666666667
A22: 2023-01-01 | B22: ='NVDA Stock Price History '!H26 -> 0.3158249158 | C22: ='JPM Stock Price History'!H26 -> 0.03490091689 | D22: ='JNJ Stock Price History '!H26 -> -0.07232061762 | E22: 0.001666666667
A23: 2023-02-01 | B23: ='NVDA Stock Price History '!H27 -> 0.1792788217 | C23: ='JPM Stock Price History'!H27 -> 0.03718978366 | D23: ='JNJ Stock Price History '!H27 -> -0.05969691392 | E23: 0.001666666667
A24: 2023-03-01 | B24: ='NVDA Stock Price History '!H28 -> 0.1979301423 | C24: ='JPM Stock Price History'!H28 -> -0.08296973962 | D24: ='JNJ Stock Price History '!H28 -> 0.0130056859 | E24: 0.001666666667
A25: 2023-04-01 | B25: ='NVDA Stock Price History '!H29 -> 0.008724100327 | C25: ='JPM Stock Price History'!H29 -> 0.06412131476 | D25: ='JNJ Stock Price History '!H29 -> 0.05646982898 | E25: 0.001666666667
A26: 2023-05-01 | B26: ='NVDA Stock Price History '!H30 -> 0.3588362069 | C26: ='JPM Stock Price History'!H30 -> -0.04604245747 | D26: ='JNJ Stock Price History '!H30 -> -0.052200489 | E26: 0.001666666667
A27: 2023-06-01 | B27: ='NVDA Stock Price History '!H31 -> 0.09898674981 | C27: ='JPM Stock Price History'!H31 -> 0.06533841195 | D27: ='JNJ Stock Price History '!H31 -> 0.07104956646 | E27: =0.02/12 -> 0.001666666667
A28: 2023-07-01 | B28: ='NVDA Stock Price History '!H32 -> 0.09901222954 | C28: ='JPM Stock Price History'!H32 -> 0.0805116629 | D28: ='JNJ Stock Price History '!H32 -> 0.01941097724 | E28: 0.001666666667
A29: 2023-08-01 | B29: ='NVDA Stock Price History '!H33 -> 0.06220404649 | C29: ='JPM Stock Price History'!H33 -> -0.07050752715 | D29: ='JNJ Stock Price History '!H33 -> -0.02819017852 | E29: 0.001666666667
A30: 2023-09-01 | B30: ='NVDA Stock Price History '!H34 -> -0.1258038585 | C30: ='JPM Stock Price History'!H34 -> -0.007324252173 | D30: ='JNJ Stock Price History '!H34 -> -0.03512575889 | E30: 0.001666666667
A31: 2023-10-01 | B31: ='NVDA Stock Price History '!H35 -> -0.07381330911 | C31: ='JPM Stock Price History'!H35 -> -0.03983981219 | D31: ='JNJ Stock Price History '!H35 -> -0.04555398276 | E31: 0.001666666667
A32: 2023-11-01 | B32: ='NVDA Stock Price History '!H36 -> 0.1440802348 | C32: ='JPM Stock Price History'!H36 -> 0.1208617594 | D32: ='JNJ Stock Price History '!H36 -> 0.03666465581 | E32: 0.001666666667
A33: 2023-12-01 | B33: ='NVDA Stock Price History '!H37 -> 0.06425961745 | C33: ='JPM Stock Price History'!H37 -> 0.09164420485 | D33: ='JNJ Stock Price History '!H37 -> 0.001917668116 | E33: 0.001666666667
A34: 2024-01-01 | B34: ='NVDA Stock Price History '!H38 -> 0.2495938262 | C34: ='JPM Stock Price History'!H38 -> 0.03116683423 | D34: ='JNJ Stock Price History '!H38 -> 0.01255336774 | E34: 0.001666666667
A35: 2024-02-01 | B35: ='NVDA Stock Price History '!H39 -> 0.2739130435 | C35: ='JPM Stock Price History'!H39 -> 0.07152729786 | D35: ='JNJ Stock Price History '!H39 -> 0.02035912999 | E35: 0.001666666667
A36: 2024-03-01 | B36: ='NVDA Stock Price History '!H40 -> 0.1295 | C36: ='JPM Stock Price History'!H40 -> 0.07862143242 | D36: ='JNJ Stock Price History '!H40 -> -0.02249273929 | E36: 0.001666666667
A37: 2024-04-01 | B37: ='NVDA Stock Price History '!H41 -> -0.04318936877 | C37: ='JPM Stock Price History'!H41 -> -0.0412520626 | D37: ='JNJ Stock Price History '!H41 -> -0.08324879533 | E37: 0.001666666667
A38: 2024-05-01 | B38: ='NVDA Stock Price History '!H42 -> 0.2885519511 | C38: ='JPM Stock Price History'!H42 -> 0.05388256098 | D38: ='JNJ Stock Price History '!H42 -> -0.01391690198 | E38: 0.001666666667
A39: 2024-06-01 | B39: ='NVDA Stock Price History '!H43 -> 0.08730857243 | C39: ='JPM Stock Price History'!H43 -> -0.0002471454698 | D39: ='JNJ Stock Price History '!H43 -> -0.00740237691 | E39: 0.001666666667
A40: 2024-07-01 | B40: ='NVDA Stock Price History '!H44 -> -0.05223941038 | C40: ='JPM Stock Price History'!H44 -> 0.04910274108 | D40: ='JNJ Stock Price History '!H44 -> 0.08064626549 | E40: 0.001666666667
A41: 2024-08-01 | B41: ='NVDA Stock Price History '!H45 -> 0.0156555773 | C41: ='JPM Stock Price History'!H45 -> 0.05440900563 | D41: ='JNJ Stock Price History '!H45 -> 0.04656739021 | E41: 0.001666666667
A42: 2024-09-01 | B42: ='NVDA Stock Price History '!H46 -> 0.0468063098 | C42: ='JPM Stock Price History'!H46 -> -0.0514619883 | D42: ='JNJ Stock Price History '!H46 -> -0.01924473493 | E42: 0.001666666667
A43: 2024-10-01 | B43: ='NVDA Stock Price History '!H47 -> 0.09034165572 | C43: ='JPM Stock Price History'!H47 -> 0.062326472 | D43: ='JNJ Stock Price History '!H47 -> -0.01582220033 | E43: 0.001666666667
A44: 2024-11-01 | B44: ='NVDA Stock Price History '!H48 -> 0.02635486266 | C44: ='JPM Stock Price History'!H48 -> 0.1170155663 | D44: ='JNJ Stock Price History '!H48 -> -0.03468676049 | E44: 0.001666666667
A45: 2024-12-01 | B45: ='NVDA Stock Price History '!H49 -> -0.03270186559 | C45: ='JPM Stock Price History'!H49 -> -0.03943097576 | D45: ='JNJ Stock Price History '!H49 -> -0.06546042003 | E45: 0.001666666667
A46: 2025-01-01 | B46: ='NVDA Stock Price History '!H50 -> -0.1171323529 | C46: ='JPM Stock Price History'!H50 -> 0.1094969284 | D46: ='JNJ Stock Price History '!H50 -> 0.04764855746 | E46: 0.001666666667
A47: 2025-02-01 | B47: ='NVDA Stock Price History '!H51 -> 0.08862745098 | C47: ='JPM Stock Price History'!H51 -> 0.01077034717 | D47: ='JNJ Stock Price History '!H51 -> 0.08565789474 | E47: 0.001666666667
A48: 2025-03-01 | B48: ='NVDA Stock Price History '!H52 -> -0.1225002024 | C48: ='JPM Stock Price History'!H52 -> -0.07083333333 | D48: ='JNJ Stock Price History '!H52 -> 0.005334626576 | E48: 0.001666666667
A49: 2025-04-01 | B49: ='NVDA Stock Price History '!H53 -> 0.003778453599 | C49: ='JPM Stock Price History'!H53 -> 0.0082433435 | D49: ='JNJ Stock Price History '!H53 -> -0.02749953338 | E49: 0.001666666667
A50: 2025-05-01 | B50: ='NVDA Stock Price History '!H54 -> 0.194994694 | C50: ='JPM Stock Price History'!H54 -> 0.08713556251 | D50: ='JNJ Stock Price History '!H54 -> 0.00135483871 | E50: 0.001666666667
A51: 2025-06-01 | B51: ='NVDA Stock Price History '!H55 -> 0.1660639162 | C51: ='JPM Stock Price History'!H55 -> 0.1022355714 | D51: ='JNJ Stock Price History '!H55 -> -0.01119886069 | E51: 0.001666666667
A52: 2025-07-01 | B52: ='NVDA Stock Price History '!H56 -> 0.1380766524 | C52: ='JPM Stock Price History'!H56 -> 0.01839183196 | D52: ='JNJ Stock Price History '!H56 -> 0.07673202614 | E52: 0.001666666667
A53: 2025-08-01 | B53: ='NVDA Stock Price History '!H57 -> 0.000516973979 | C53: ='JPM Stock Price History'!H57 -> 0.0379476584 | D53: ='JNJ Stock Price History '!H57 -> 0.070642978 | E53: 0.001666666667
A54: 2025-09-01 | B54: ='NVDA Stock Price History '!H58 -> 0.09752941176 | C54: ='JPM Stock Price History'!H58 -> 0.05052288017 | D54: ='JNJ Stock Price History '!H58 -> 0.0447963036 | E54: 0.001666666667
A55: 2025-10-01 | B55: ='NVDA Stock Price History '!H59 -> 0.09312243576 | C55: ='JPM Stock Price History'!H59 -> -0.009077300379 | D55: ='JNJ Stock Price History '!H59 -> 0.01543010753 | E55: =0.02/12 -> 0.001666666667
A56: 2025-11-01 | B56: ='NVDA Stock Price History '!H60 -> -0.1493656286 | C56: ='JPM Stock Price History'!H60 -> 0.006688102894 | D56: ='JNJ Stock Price History '!H60 -> 0.09481481481 | E56: 0.001666666667
A57: 2025-12-01 | B57: ='NVDA Stock Price History '!H61 -> 0.0671778439 | C57: ='JPM Stock Price History'!H61 -> 0.02962134526 | D57: ='JNJ Stock Price History '!H61 -> 0.002179176755 | E57: 0.001666666667
A58: 2026-01-01 | B58: ='NVDA Stock Price History '!H62 -> 0.006795195954 | C58: ='JPM Stock Price History'!H62 -> -0.05150387597 | D58: ='JNJ Stock Price History '!H62 -> 0.09878154917 | E58: 0.001666666667
A59: 2026-02-01 | B59: ='NVDA Stock Price History '!H63 -> -0.05347222222 | C59: ='JPM Stock Price History'!H63 -> -0.01366353544 | D59: ='JNJ Stock Price History '!H63 -> 0.08807813595 | E59: 0.001666666667
A60: 2026-03-01 | B60: ='NVDA Stock Price History '!H64 -> -0.003485515113 | C60: ='JPM Stock Price History'!H64 -> -0.002204809878 | D60: ='JNJ Stock Price History '!H64 -> -0.0190617601 | E60: 0.001666666667
A61: 2026-04-01 | B61: ='NVDA Stock Price History '!H65 -> 0.2155681818 | C61: ='JPM Stock Price History'!H65 -> 0.05477504316 | D61: ='JNJ Stock Price History '!H65 -> -0.07414495114 | E61: 0.001666666667
A62: Expected return | B62: =AVERAGE(B2:B61) -> 0.05413766192 | C62: =AVERAGE(C2:C61) -> 0.01425488585 | D62: =AVERAGE(D2:D61) -> 0.006591236446 | E62: =AVERAGE(E2:E61) -> 0.001666666667
A63: Standard Deviation | B63: =_xlfn.STDEV.S(B2:B61) -> 0.1462881983 | C63: =_xlfn.STDEV.S(C2:C61) -> 0.06695888731 | D63: =_xlfn.STDEV.S(D2:D61) -> 0.04888033677 | E63: =_xlfn.STDEV.S(E2:E61) -> 2.18670344e-18

Sheet Market Portfolio
A1: Month | B1: NVDA | C1: JPM | D1: JNJ | E1: Risk-free
A2: 2021-05-01 | B2: ='NVDA Stock Price History '!H6 -> 0.07336417713 | C2: ='JPM Stock Price History'!H6 -> 0.06063932838 | D2: ='JNJ Stock Price History '!H6 -> 0.03453545232 | E2: =0.02/12 -> 0.001666666667 | H2: NVDA | I2: JPM | J2: JNJ | K2: Risk-free
A3: 2021-06-01 | B3: ='NVDA Stock Price History '!H7 -> 0.2292562999 | C3: ='JPM Stock Price History'!H7 -> -0.06227768735 | D3: ='JNJ Stock Price History '!H7 -> -0.03179547458 | E3: 0.001666666667 | G3: NVDA | H3: =MMULT(TRANSPOSE(B2:E61-B62:E62),(B2:E61-B62:E62)/(60-1)) -> 0.02140023696 | I3: 0.003656602371 | J3: -0.001086627417 | K3: 2.031254238e-35
A4: 2021-07-01 | B4: ='NVDA Stock Price History '!H8 -> -0.03129657228 | C4: ='JPM Stock Price History'!H8 -> -0.02867016511 | D4: ='JNJ Stock Price History '!H8 -> 0.04528347699 | E4: 0.001666666667 | G4: JPM | H4: 0.003656602371 | I4: 0.004483492589 | J4: 0.0005439648918 | K4: -3.197344634e-36
A5: 2021-08-01 | B5: ='NVDA Stock Price History '!H9 -> 0.1365482234 | C5: ='JPM Stock Price History'!H9 -> 0.05209498125 | D5: ='JNJ Stock Price History '!H9 -> 0.003826752479 | E5: 0.001666666667 | G5: JNJ | H5: -0.001086627417 | I5: 0.0005439648918 | J5: 0.002389287323 | K5: 6.394689268e-36
A6: 2021-09-01 | B6: ='NVDA Stock Price History '!H10 -> -0.07870164518 | C6: ='JPM Stock Price History'!H10 -> 0.02165772063 | D6: ='JNJ Stock Price History '!H10 -> -0.06593406593 | E6: 0.001666666667 | G6: Risk-free | H6: 7.523163845e-36 | I6: -1.015627119e-35 | J6: 6.018531076e-36 | K6: 4.781671936e-36
A7: 2021-10-01 | B7: ='NVDA Stock Price History '!H11 -> 0.2322891566 | C7: ='JPM Stock Price History'!H11 -> 0.03591463415 | D7: ='JNJ Stock Price History '!H11 -> 0.008357580635 | E7: 0.001666666667
A8: 2021-11-01 | B8: ='NVDA Stock Price History '!H12 -> 0.2740740741 | C8: ='JPM Stock Price History'!H12 -> -0.07678446873 | D8: ='JNJ Stock Price History '!H12 -> -0.04431233145 | E8: 0.001666666667
A9: 2021-12-01 | B9: ='NVDA Stock Price History '!H13 -> -0.1146899458 | C9: ='JPM Stock Price History'!H13 -> -0.01645962733 | D9: ='JNJ Stock Price History '!H13 -> 0.09045130036 | E9: 0.001666666667
A10: 2022-01-01 | B10: ='NVDA Stock Price History '!H14 -> -0.1787391013 | C10: ='JPM Stock Price History'!H14 -> -0.07043663205 | D10: ='JNJ Stock Price History '!H14 -> 0.01222019858 | E10: 0.001666666667 | I10: 0.9 | J10: 0.8 | K10: 0.7 | L10: 0.6 | M10: 0.5 | N10: 0.4 | O10: 0.3 | P10: 0.2 | Q10: 0.1
A11: 2022-02-01 | B11: ='NVDA Stock Price History '!H15 -> -0.02828685259 | C11: ='JPM Stock Price History'!H15 -> -0.0463380187 | D11: ='JNJ Stock Price History '!H15 -> -0.0417491557 | E11: 0.001666666667 | G11: Stock | H11: Minimum Variance Portfolio | I11: Port 2 | J11: Port 3 | K11: Port 4 | L11: Port 5 | M11: Port 6 | N11: Port 7 | O11: Port 8 | P11: Port 9 | Q11: Port 10 | R11: Max Return | S11: Market Portfolio
A12: 2022-03-01 | B12: ='NVDA Stock Price History '!H16 -> 0.1235076163 | C12: ='JPM Stock Price History'!H16 -> -0.0265638389 | D12: ='JNJ Stock Price History '!H16 -> 0.08703385672 | E12: 0.001666666667 | G12: NVDA | H12: 0 | I12: =I$10*$H12+(1-I$10)*$R12 -> 0.08093608268 | J12: =J$10*$H12+(1-J$10)*$R12 -> 0.1618721654 | K12: 0.242808248 | L12: 0.3237443307 | M12: 0.4046804134 | N12: 0.4856164961 | O12: 0.5665525788 | P12: 0.6474886615 | Q12: 0.7284247441 | R12: 0.8093608268 | S12: 0.3776594791
A13: 2022-04-01 | B13: ='NVDA Stock Price History '!H17 -> -0.3224981738 | C13: ='JPM Stock Price History'!H17 -> -0.1312954876 | D13: ='JNJ Stock Price History '!H17 -> 0.01926009602 | E13: 0.001666666667 | G13: JPM | H13: 0 | I13: =I$10*$H13+(1-I$10)*$R13 -> 0.03455150695 | J13: 0.0691030139 | K13: 0.1036545208 | L13: 0.1382060278 | M13: 0.1727575347 | N13: 0.2073090417 | O13: 0.2418605486 | P13: 0.2764120556 | Q13: 0.3109635625 | R13: 0.3455150695 | S13: 0.1612224265
A14: 2022-05-01 | B14: ='NVDA Stock Price History '!H18 -> 0.007011866235 | C14: ='JPM Stock Price History'!H18 -> 0.1030196864 | D14: ='JNJ Stock Price History '!H18 -> -0.005208621932 | E14: 0.001666666667 | G14: JNJ | H14: 0 | I14: 0.09882205281 | J14: 0.1976441056 | K14: 0.2964661584 | L14: 0.3952882113 | M14: 0.4941102641 | N14: 0.5929323169 | O14: 0.6917543697 | P14: 0.7905764225 | Q14: 0.8893984753 | R14: 0.9882205281 | S14: 0.4611180969
A15: 2022-06-01 | B15: ='NVDA Stock Price History '!H19 -> -0.1901709402 | C15: ='JPM Stock Price History'!H19 -> -0.1524798675 | D15: ='JNJ Stock Price History '!H19 -> -0.009154339939 | E15: 0.001666666667 | G15: Risk-free | H15: 1 | I15: 0.785690359 | J15: 0.571380718 | K15: 0.3570710771 | L15: 0.1427614361 | M15: -0.07154820488 | N15: -0.2858578459 | O15: -0.5001674868 | P15: -0.7144771278 | Q15: -0.9287867688 | R15: -1.14309641 | S15: 0
A16: 2022-07-01 | B16: ='NVDA Stock Price History '!H20 -> 0.2187919463 | C16: ='JPM Stock Price History'!H20 -> 0.02405681314 | D16: ='JNJ Stock Price History '!H20 -> -0.01651169343 | E16: 0.001666666667 | G16: Sum weights | H16: =SUM(H12:H15) -> 1 | I16: 1.000000001 | J16: 1.000000003 | K16: 1.000000004 | L16: 1.000000006 | M16: 1.000000007 | N16: =SUM(N12:N15) -> 1.000000009 | O16: 1.00000001 | P16: 1.000000012 | Q16: 1.000000013 | R16: 1.000000015 | S16: 1.000000002
A17: 2022-08-01 | B17: ='NVDA Stock Price History '!H21 -> -0.1699669967 | C17: ='JPM Stock Price History'!H21 -> -0.00672489083 | D17: ='JNJ Stock Price History '!H21 -> -0.07366366194 | E17: 0.001666666667 | G17: Expected return | H17: =SUM(TRANSPOSE(H12:H15)*$B$62:$E$62) -> 0.001666666667 | I17: =SUM(TRANSPOSE(I12:I15)*$B$62:$E$62) -> 0.006835061517 | J17: =SUM(TRANSPOSE(J12:J15)*$B$62:$E$62) -> 0.01200345637 | K17: =SUM(TRANSPOSE(K12:K15)*$B$62:$E$62) -> 0.01717185122 | L17: =SUM(TRANSPOSE(L12:L15)*$B$62:$E$62) -> 0.02234024607 | M17: =SUM(TRANSPOSE(M12:M15)*$B$62:$E$62) -> 0.02750864092 | N17: =SUM(TRANSPOSE(N12:N15)*$B$62:$E$62) -> 0.03267703577 | O17: =SUM(TRANSPOSE(O12:O15)*$B$62:$E$62) -> 0.03784543062 | P17: =SUM(TRANSPOSE(P12:P15)*$B$62:$E$62) -> 0.04301382547 | Q17: =SUM(TRANSPOSE(Q12:Q15)*$B$62:$E$62) -> 0.04818222032 | R17: =SUM(TRANSPOSE(R12:R15)*$B$62:$E$62) -> 0.05335061517 | S17: =SUM(TRANSPOSE(S12:S15)*$B$62:$E$62) -> 0.02578314689
A18: 2022-09-01 | B18: ='NVDA Stock Price History '!H22 -> -0.1456720619 | C18: ='JPM Stock Price History'!H22 -> -0.07758848972 | D18: ='JNJ Stock Price History '!H22 -> 0.01157966438 | E18: 0.001666666667 | G18: Standard deviation | H18: =SQRT(MMULT(MMULT(TRANSPOSE(H12:H15),$H$3:$K$6),H12:H15)) -> 2.18670344e-18 | I18: =SQRT(MMULT(MMULT(TRANSPOSE(I12:I15),$H$3:$K$6),I12:I15)) -> 0.01325347831 | J18: =SQRT(MMULT(MMULT(TRANSPOSE(J12:J15),$H$3:$K$6),J12:J15)) -> 0.02650695661 | K18: =SQRT(MMULT(MMULT(TRANSPOSE(K12:K15),$H$3:$K$6),K12:K15)) -> 0.03976043492 | L18: =SQRT(MMULT(MMULT(TRANSPOSE(L12:L15),$H$3:$K$6),L12:L15)) -> 0.05301391322 | M18: =SQRT(MMULT(MMULT(TRANSPOSE(M12:M15),$H$3:$K$6),M12:M15)) -> 0.06626739153 | N18: =SQRT(MMULT(MMULT(TRANSPOSE(N12:N15),$H$3:$K$6),N12:N15)) -> 0.07952086983 | O18: =SQRT(MMULT(MMULT(TRANSPOSE(O12:O15),$H$3:$K$6),O12:O15)) -> 0.09277434814 | P18: =SQRT(MMULT(MMULT(TRANSPOSE(P12:P15),$H$3:$K$6),P12:P15)) -> 0.1060278264 | Q18: =SQRT(MMULT(MMULT(TRANSPOSE(Q12:Q15),$H$3:$K$6),Q12:Q15)) -> 0.1192813047 | R18: =SQRT(MMULT(MMULT(TRANSPOSE(R12:R15),$H$3:$K$6),R12:R15)) -> 0.1325347831 | S18: =SQRT(MMULT(MMULT(TRANSPOSE(S12:S15),$H$3:$K$6),S12:S15)) -> 0.0618426532
A19: 2022-10-01 | B19: ='NVDA Stock Price History '!H23 -> 0.09311740891 | C19: ='JPM Stock Price History'!H23 -> 0.1918197311 | D19: ='JNJ Stock Price History '!H23 -> 0.05892020208 | E19: 0.001666666667 | G19: Sharpe Ratio | H19: =IFERROR((H17-$H$17)/H18,0) -> 0 | I19: =IFERROR((I17-$H$17)/I18,0) -> 0.3899651647 | J19: 0.3899651647 | K19: 0.3899651647 | L19: 0.3899651647 | M19: 0.3899651647 | N19: 0.3899651647 | O19: 0.3899651647 | P19: 0.3899651647 | Q19: 0.3899651647 | R19: 0.3899651647 | S19: 0.3899651612
A20: 2022-11-01 | B20: ='NVDA Stock Price History '!H24 -> 0.2251991311 | C20: ='JPM Stock Price History'!H24 -> 0.0891463703 | D20: ='JNJ Stock Price History '!H24 -> 0.02263587269 | E20: 0.001666666667
A21: 2022-12-01 | B21: ='NVDA Stock Price History '!H25 -> -0.1405882353 | C21: ='JPM Stock Price History'!H25 -> -0.0295267043 | D21: ='JNJ Stock Price History '!H25 -> -0.01312849162 | E21: 0.001666666667
A22: 2023-01-01 | B22: ='NVDA Stock Price History '!H26 -> 0.3158249158 | C22: ='JPM Stock Price History'!H26 -> 0.03490091689 | D22: ='JNJ Stock Price History '!H26 -> -0.07232061762 | E22: 0.001666666667
A23: 2023-02-01 | B23: ='NVDA Stock Price History '!H27 -> 0.1792788217 | C23: ='JPM Stock Price History'!H27 -> 0.03718978366 | D23: ='JNJ Stock Price History '!H27 -> -0.05969691392 | E23: 0.001666666667
A24: 2023-03-01 | B24: ='NVDA Stock Price History '!H28 -> 0.1979301423 | C24: ='JPM Stock Price History'!H28 -> -0.08296973962 | D24: ='JNJ Stock Price History '!H28 -> 0.0130056859 | E24: 0.001666666667
A25: 2023-04-01 | B25: ='NVDA Stock Price History '!H29 -> 0.008724100327 | C25: ='JPM Stock Price History'!H29 -> 0.06412131476 | D25: ='JNJ Stock Price History '!H29 -> 0.05646982898 | E25: 0.001666666667
A26: 2023-05-01 | B26: ='NVDA Stock Price History '!H30 -> 0.3588362069 | C26: ='JPM Stock Price History'!H30 -> -0.04604245747 | D26: ='JNJ Stock Price History '!H30 -> -0.052200489 | E26: 0.001666666667
A27: 2023-06-01 | B27: ='NVDA Stock Price History '!H31 -> 0.09898674981 | C27: ='JPM Stock Price History'!H31 -> 0.06533841195 | D27: ='JNJ Stock Price History '!H31 -> 0.07104956646 | E27: =0.02/12 -> 0.001666666667
A28: 2023-07-01 | B28: ='NVDA Stock Price History '!H32 -> 0.09901222954 | C28: ='JPM Stock Price History'!H32 -> 0.0805116629 | D28: ='JNJ Stock Price History '!H32 -> 0.01941097724 | E28: 0.001666666667
A29: 2023-08-01 | B29: ='NVDA Stock Price History '!H33 -> 0.06220404649 | C29: ='JPM Stock Price History'!H33 -> -0.07050752715 | D29: ='JNJ Stock Price History '!H33 -> -0.02819017852 | E29: 0.001666666667
A30: 2023-09-01 | B30: ='NVDA Stock Price History '!H34 -> -0.1258038585 | C30: ='JPM Stock Price History'!H34 -> -0.007324252173 | D30: ='JNJ Stock Price History '!H34 -> -0.03512575889 | E30: 0.001666666667
A31: 2023-10-01 | B31: ='NVDA Stock Price History '!H35 -> -0.07381330911 | C31: ='JPM Stock Price History'!H35 -> -0.03983981219 | D31: ='JNJ Stock Price History '!H35 -> -0.04555398276 | E31: 0.001666666667
A32: 2023-11-01 | B32: ='NVDA Stock Price History '!H36 -> 0.1440802348 | C32: ='JPM Stock Price History'!H36 -> 0.1208617594 | D32: ='JNJ Stock Price History '!H36 -> 0.03666465581 | E32: 0.001666666667
A33: 2023-12-01 | B33: ='NVDA Stock Price History '!H37 -> 0.06425961745 | C33: ='JPM Stock Price History'!H37 -> 0.09164420485 | D33: ='JNJ Stock Price History '!H37 -> 0.001917668116 | E33: 0.001666666667
A34: 2024-01-01 | B34: ='NVDA Stock Price History '!H38 -> 0.2495938262 | C34: ='JPM Stock Price History'!H38 -> 0.03116683423 | D34: ='JNJ Stock Price History '!H38 -> 0.01255336774 | E34: 0.001666666667
A35: 2024-02-01 | B35: ='NVDA Stock Price History '!H39 -> 0.2739130435 | C35: ='JPM Stock Price History'!H39 -> 0.07152729786 | D35: ='JNJ Stock Price History '!H39 -> 0.02035912999 | E35: 0.001666666667
A36: 2024-03-01 | B36: ='NVDA Stock Price History '!H40 -> 0.1295 | C36: ='JPM Stock Price History'!H40 -> 0.07862143242 | D36: ='JNJ Stock Price History '!H40 -> -0.02249273929 | E36: 0.001666666667
A37: 2024-04-01 | B37: ='NVDA Stock Price History '!H41 -> -0.04318936877 | C37: ='JPM Stock Price History'!H41 -> -0.0412520626 | D37: ='JNJ Stock Price History '!H41 -> -0.08324879533 | E37: 0.001666666667
A38: 2024-05-01 | B38: ='NVDA Stock Price History '!H42 -> 0.2885519511 | C38: ='JPM Stock Price History'!H42 -> 0.05388256098 | D38: ='JNJ Stock Price History '!H42 -> -0.01391690198 | E38: 0.001666666667
A39: 2024-06-01 | B39: ='NVDA Stock Price History '!H43 -> 0.08730857243 | C39: ='JPM Stock Price History'!H43 -> -0.0002471454698 | D39: ='JNJ Stock Price History '!H43 -> -0.00740237691 | E39: 0.001666666667
A40: 2024-07-01 | B40: ='NVDA Stock Price History '!H44 -> -0.05223941038 | C40: ='JPM Stock Price History'!H44 -> 0.04910274108 | D40: ='JNJ Stock Price History '!H44 -> 0.08064626549 | E40: 0.001666666667
A41: 2024-08-01 | B41: ='NVDA Stock Price History '!H45 -> 0.0156555773 | C41: ='JPM Stock Price History'!H45 -> 0.05440900563 | D41: ='JNJ Stock Price History '!H45 -> 0.04656739021 | E41: 0.001666666667
A42: 2024-09-01 | B42: ='NVDA Stock Price History '!H46 -> 0.0468063098 | C42: ='JPM Stock Price History'!H46 -> -0.0514619883 | D42: ='JNJ Stock Price History '!H46 -> -0.01924473493 | E42: 0.001666666667
A43: 2024-10-01 | B43: ='NVDA Stock Price History '!H47 -> 0.09034165572 | C43: ='JPM Stock Price History'!H47 -> 0.062326472 | D43: ='JNJ Stock Price History '!H47 -> -0.01582220033 | E43: 0.001666666667
A44: 2024-11-01 | B44: ='NVDA Stock Price History '!H48 -> 0.02635486266 | C44: ='JPM Stock Price History'!H48 -> 0.1170155663 | D44: ='JNJ Stock Price History '!H48 -> -0.03468676049 | E44: 0.001666666667
A45: 2024-12-01 | B45: ='NVDA Stock Price History '!H49 -> -0.03270186559 | C45: ='JPM Stock Price History'!H49 -> -0.03943097576 | D45: ='JNJ Stock Price History '!H49 -> -0.06546042003 | E45: 0.001666666667
A46: 2025-01-01 | B46: ='NVDA Stock Price History '!H50 -> -0.1171323529 | C46: ='JPM Stock Price History'!H50 -> 0.1094969284 | D46: ='JNJ Stock Price History '!H50 -> 0.04764855746 | E46: 0.001666666667
A47: 2025-02-01 | B47: ='NVDA Stock Price History '!H51 -> 0.08862745098 | C47: ='JPM Stock Price History'!H51 -> 0.01077034717 | D47: ='JNJ Stock Price History '!H51 -> 0.08565789474 | E47: 0.001666666667
A48: 2025-03-01 | B48: ='NVDA Stock Price History '!H52 -> -0.1225002024 | C48: ='JPM Stock Price History'!H52 -> -0.07083333333 | D48: ='JNJ Stock Price History '!H52 -> 0.005334626576 | E48: 0.001666666667
A49: 2025-04-01 | B49: ='NVDA Stock Price History '!H53 -> 0.003778453599 | C49: ='JPM Stock Price History'!H53 -> 0.0082433435 | D49: ='JNJ Stock Price History '!H53 -> -0.02749953338 | E49: 0.001666666667
A50: 2025-05-01 | B50: ='NVDA Stock Price History '!H54 -> 0.194994694 | C50: ='JPM Stock Price History'!H54 -> 0.08713556251 | D50: ='JNJ Stock Price History '!H54 -> 0.00135483871 | E50: 0.001666666667
A51: 2025-06-01 | B51: ='NVDA Stock Price History '!H55 -> 0.1660639162 | C51: ='JPM Stock Price History'!H55 -> 0.1022355714 | D51: ='JNJ Stock Price History '!H55 -> -0.01119886069 | E51: 0.001666666667
A52: 2025-07-01 | B52: ='NVDA Stock Price History '!H56 -> 0.1380766524 | C52: ='JPM Stock Price History'!H56 -> 0.01839183196 | D52: ='JNJ Stock Price History '!H56 -> 0.07673202614 | E52: 0.001666666667
A53: 2025-08-01 | B53: ='NVDA Stock Price History '!H57 -> 0.000516973979 | C53: ='JPM Stock Price History'!H57 -> 0.0379476584 | D53: ='JNJ Stock Price History '!H57 -> 0.070642978 | E53: 0.001666666667
A54: 2025-09-01 | B54: ='NVDA Stock Price History '!H58 -> 0.09752941176 | C54: ='JPM Stock Price History'!H58 -> 0.05052288017 | D54: ='JNJ Stock Price History '!H58 -> 0.0447963036 | E54: 0.001666666667
A55: 2025-10-01 | B55: ='NVDA Stock Price History '!H59 -> 0.09312243576 | C55: ='JPM Stock Price History'!H59 -> -0.009077300379 | D55: ='JNJ Stock Price History '!H59 -> 0.01543010753 | E55: =0.02/12 -> 0.001666666667
A56: 2025-11-01 | B56: ='NVDA Stock Price History '!H60 -> -0.1493656286 | C56: ='JPM Stock Price History'!H60 -> 0.006688102894 | D56: ='JNJ Stock Price History '!H60 -> 0.09481481481 | E56: 0.001666666667
A57: 2025-12-01 | B57: ='NVDA Stock Price History '!H61 -> 0.0671778439 | C57: ='JPM Stock Price History'!H61 -> 0.02962134526 | D57: ='JNJ Stock Price History '!H61 -> 0.002179176755 | E57: 0.001666666667
A58: 2026-01-01 | B58: ='NVDA Stock Price History '!H62 -> 0.006795195954 | C58: ='JPM Stock Price History'!H62 -> -0.05150387597 | D58: ='JNJ Stock Price History '!H62 -> 0.09878154917 | E58: 0.001666666667
A59: 2026-02-01 | B59: ='NVDA Stock Price History '!H63 -> -0.05347222222 | C59: ='JPM Stock Price History'!H63 -> -0.01366353544 | D59: ='JNJ Stock Price History '!H63 -> 0.08807813595 | E59: 0.001666666667
A60: 2026-03-01 | B60: ='NVDA Stock Price History '!H64 -> -0.003485515113 | C60: ='JPM Stock Price History'!H64 -> -0.002204809878 | D60: ='JNJ Stock Price History '!H64 -> -0.0190617601 | E60: 0.001666666667
A61: 2026-04-01 | B61: ='NVDA Stock Price History '!H65 -> 0.2155681818 | C61: ='JPM Stock Price History'!H65 -> 0.05477504316 | D61: ='JNJ Stock Price History '!H65 -> -0.07414495114 | E61: 0.001666666667
A62: Expected return | B62: =AVERAGE(B2:B61) -> 0.05413766192 | C62: =AVERAGE(C2:C61) -> 0.01425488585 | D62: =AVERAGE(D2:D61) -> 0.006591236446 | E62: =AVERAGE(E2:E61) -> 0.001666666667
A63: Standard Deviation | B63: =_xlfn.STDEV.S(B2:B61) -> 0.1462881983 | C63: =_xlfn.STDEV.S(C2:C61) -> 0.06695888731 | D63: =_xlfn.STDEV.S(D2:D61) -> 0.04888033677 | E63: =_xlfn.STDEV.S(E2:E61) -> 2.18670344e-18

Sheet Put
A1: Chosen Stock | B1: NVDA
A2: Rationale | B2: Highest Standard deviation/risk of the three stocks
A3: Appropriate put option | B3: 215
A4: Source | B4: (Yahoo Finance)
A5: Put Expiration | B5: 46283
A6: Put Price (Premium) | B6: 23.8 | C6: as of April 29, 2026
A9: Initial Stock price S0 | B9: 12.99
A10: Terminal stock price St | B10: 213.94
A12: Profit from buying the stock | B12: =B10-B9 -> 200.95
A13: Profit from shorting the stock | B13: =B9-B10 -> -200.95
A15: Put exercise price | B15: 215
A16: Put price | B16: 23.8
A17: Profit from buying put | B17: =MAX(B15-B10,0)-B16 -> -22.74
A18: Profit from selling put | B18: =B16-MAX(B15-B10,0) -> 22.74
A19: Profit from protective put | B19: =B12+B17 -> 178.21
B21: Profit from buying the stock | C21: Profit from shorting the stock | D21: Profit from buying put | E21: Profit from selling put | F21: Profit from protective put
A22: Terminal stock price | B22: =B12 -> 200.95 | C22: =B13 -> -200.95 | D22: =B17 -> -22.74 | E22: =B18 -> 22.74 | F22: =B19 -> 178.21
A23: 0 | B23: -12.99 | C23: 12.99 | D23: 191.2 | E23: -191.2 | F23: 178.21
A24: 15 | B24: 2.01 | C24: -2.01 | D24: 176.2 | E24: -176.2 | F24: 178.21
A25: 30 | B25: 17.01 | C25: -17.01 | D25: 161.2 | E25: -161.2 | F25: 178.21
A26: 45 | B26: 32.01 | C26: -32.01 | D26: 146.2 | E26: -146.2 | F26: 178.21
A27: 60 | B27: 47.01 | C27: -47.01 | D27: 131.2 | E27: -131.2 | F27: 178.21
A28: 75 | B28: 62.01 | C28: -62.01 | D28: 116.2 | E28: -116.2 | F28: 178.21
A29: 90 | B29: 77.01 | C29: -77.01 | D29: 101.2 | E29: -101.2 | F29: 178.21
A30: 105 | B30: 92.01 | C30: -92.01 | D30: 86.2 | E30: -86.2 | F30: 178.21
A31: 120 | B31: 107.01 | C31: -107.01 | D31: 71.2 | E31: -71.2 | F31: 178.21
A32: 135 | B32: 122.01 | C32: -122.01 | D32: 56.2 | E32: -56.2 | F32: 178.21
A33: 150 | B33: 137.01 | C33: -137.01 | D33: 41.2 | E33: -41.2 | F33: 178.21
A34: 165 | B34: 152.01 | C34: -152.01 | D34: 26.2 | E34: -26.2 | F34: 178.21
A35: 180 | B35: 167.01 | C35: -167.01 | D35: 11.2 | E35: -11.2 | F35: 178.21
A36: 195 | B36: 182.01 | C36: -182.01 | D36: -3.8 | E36: 3.8 | F36: 178.21
A37: 210 | B37: 197.01 | C37: -197.01 | D37: -18.8 | E37: 18.8 | F37: 178.21
A38: 225 | B38: 212.01 | C38: -212.01 | D38: -23.8 | E38: 23.8 | F38: 188.21
A39: 240 | B39: 227.01 | C39: -227.01 | D39: -23.8 | E39: 23.8 | F39: 203.21
A40: 255 | B40: 242.01 | C40: -242.01 | D40: -23.8 | E40: 23.8 | F40: 218.21
A41: 270 | B41: 257.01 | C41: -257.01 | D41: -23.8 | E41: 23.8 | F41: 233.21
A42: 285 | B42: 272.01 | C42: -272.01 | D42: -23.8 | E42: 23.8 | F42: 248.21
A43: 300 | B43: 287.01 | C43: -287.01 | D43: -23.8 | E43: 23.8 | F43: 263.21
A44: Stock Payoff Pattern Graph | D44: Put Option Graph | G44: Protective Put Graph

Sheet BSM
A2: Current stock price S | B2: 213.94
A3: Exercise Price X | B3: 215
A4: Risk-free rate r | B4: 0.044
A5: Time to maturity T | B5: =5/12 -> 0.4166666667 | C5: April to September
A6: Stock volatility sigma | B6: 0.366
C8: It
A9: d1 | B9: =(LN(B2/B3)+(B4+B6^2/2)*B5)/(B6*SQRT(B5)) -> 0.1748066042
A10: d2 | B10: =B9-B6*SQRT(B5) -> -0.0614453799
A12: N(d1) | B12: =NORMSDIST(B9) -> 0.5693842006
A13: N(d2) | B13: =NORMSDIST(B10) -> 0.4755022563
A14: Call Price | B14: =B2*B12-B3*EXP(-B4*B5)*B13 -> 21.43826585
A15: Put Price | B15: =B14+B3*EXP(-B4*B5)-B2 -> 18.59251133
C17: How does your result compare with the current market price for this put option? | D17: it is lower than the put price of $23.80 (as of April 2026)
B20: Put Price | C20: Options intrinsic value
A21: Current stock price S | B21: =B15 -> 18.59251133 | C21: =MAX(B3-B2,0) -> 1.06
A22: 5 | B22: 206.0942455 | C22: 210
A23: 20 | B23: 191.0942455 | C23: 195
A24: 35 | B24: 176.0942455 | C24: 180
A25: 50 | B25: 161.0942455 | C25: 165
A26: 65 | B26: 146.0942471 | C26: 150
A27: 80 | B27: 131.0943804 | C27: 135
A28: 95 | B28: 116.0973647 | C28: 120
A29: 110 | B29: 101.1254773 | C29: 105
A30: 125 | B30: 86.27143935 | C30: 90
A31: 140 | B31: 71.76695444 | C31: 75
A32: 155 | B32: 58.00015759 | C32: 60
A33: 170 | B33: 45.436614 | C33: 45
A34: 185 | B34: 34.48300948 | C34: 30
A35: 200 | B35: 25.37514623 | C35: 15
A36: 215 | B36: 18.14041297 | C36: 0
A37: 230 | B37: 12.63035285 | C37: 0
A38: 245 | B38: 8.588611812 | C38: 0
A39: 260 | B39: 5.719942458 | C39: 0
A40: 275 | B40: 3.741045755 | C40: 0
A41: 290 | B41: 2.408871821 | C41: 0
A42: 305 | B42: 1.530524472 | C42: 0

Sheet Delta
A2: Current stock price S | B2: 213.94
A3: Exercise Price X | B3: 215
A4: Risk-free rate r | B4: 0.044
A5: Dividend yield | B5: 0.0002 | C5: Source | D5: Yahoo Finance | F5: Put Delta
A6: Time to maturity T | B6: =5/12 -> 0.4166666667 | E6: Delta with stock price | F6: =B21 -> -0.4229291757 | H6: Put Delta with time to expiration | I6: In-the-money | J6: At-the-money | K6: Out-of-Money
A7: Stock volatility sigma | B7: 0.366 | E7: 5 | F7: -0.9818336999 | H7: =B21 -> -0.4229291757 | I7: 200 | J7: 213.94 | K7: 220
E8: 25 | F8: -0.9818336999 | H8: 0.1 | I8: -0.2478347509 | J8: -0.4598463443 | K8: -0.5554405964
E9: 45 | F9: -0.9818336998 | H9: 0.125 | I9: -0.2636442656 | J9: -0.4548814816 | K9: -0.5403574146
E10: 65 | F10: -0.9818331467 | H10: 0.15 | I10: -0.2749200699 | J10: -0.4503589118 | K10: -0.5283132559
E11: 85 | F11: -0.9817406569 | H11: 0.175 | I11: -0.2832746204 | J11: -0.446173042 | K11: -0.5182495547
E12: 105 | F12: -0.9796061704 | H12: 0.2 | I12: -0.2896277594 | J12: -0.442254965 | K12: -0.5095719031
E13: 125 | F13: -0.964300686 | H13: 0.225 | I13: -0.2945456751 | J13: -0.4385567424 | K13: -0.5019156595
E14: 145 | F14: -0.9125951207 | H14: 0.25 | I14: -0.298397497 | J14: -0.4350434159 | K14: -0.4950421084
A15: Call Price | B15: 21.44 | E15: 165 | F15: -0.8075770829 | H15: 0.275 | I15: -0.3014349588 | J15: -0.4316885529 | K15: -0.4887869776
A16: Put Price | B16: 18.59 | E16: 185 | F16: -0.6581210236 | H16: 0.3 | I16: -0.3038360591 | J16: -0.4284715856 | K16: -0.4830326633
E17: 205 | F17: -0.4933549371 | H17: 0.325 | I17: -0.3057304567 | J17: -0.4253761314 | K17: -0.4776922228
E18: 225 | F18: -0.3427384107 | H18: 0.35 | I18: -0.3072149754 | J18: -0.422388886 | K18: -0.4726996457
E19: 245 | F19: -0.2230254526 | H19: 0.375 | I19: -0.30836346 | J19: -0.4194988673 | K19: -0.4680036773
E20: 265 | F20: -0.1374366371 | H20: 0.4 | I20: -0.3092332592 | J20: -0.4166968824 | K20: -0.4635637497
A21: Put Delta | B21: =DeltaP(B2,B3,B4,B5,B6,B7) -> -0.4229291757 | E21: 285 | F21: -0.08101105797 | H21: 0.425 | I21: -0.3098696171 | J21: -0.4139751426 | K21: -0.4593472179
E22: 305 | F22: -0.04606940385 | H22: 0.45 | I22: -0.3103087227 | J22: -0.4113269789 | K22: -0.4553274304
E23: 325 | F23: -0.02545861633 | H23: 0.475 | I23: -0.3105798772 | J23: -0.4087466279 | K23: -0.45148235
E24: 345 | F24: -0.01375299663 | H24: 0.5 | I24: -0.3107070624 | J24: -0.4062290673 | K24: -0.4477935484
E25: 365 | F25: -0.007298389574 | H25: 0.525 | I25: -0.3107100979 | J25: -0.4037698883 | K25: -0.4442454596
E26: 385 | F26: -0.00382005546 | H26: 0.55 | I26: -0.3106055067 | J26: -0.4013651949 | K26: -0.4408248154
E27: 405 | F27: -0.001978602835 | H27: 0.575 | I27: -0.3104071723 | J27: -0.3990115234 | K27: -0.437520214
E28: 425 | F28: -0.001016886578 | H28: 0.6 | I28: -0.3101268443 | J28: -0.3967057778 | K28: -0.4343217842
E29: 445 | F29: -0.0005197353351 | H29: 0.625 | I29: -0.3097745315 | J29: -0.3944451769 | K29: -0.4312209225
E30: 465 | F30: -0.000264660571 | H30: 0.65 | I30: -0.3093588109 | J30: -0.3922272106 | K30: -0.4282100831
E31: 485 | F31: -0.0001344795674 | H31: 0.675 | I31: -0.308887073 | J31: -0.3900496045 | K31: -0.4252826112
D32: Graph put delta as function of stock price | H32: 0.7 | I32: -0.3083657179 | J32: -0.3879102893 | K32: -0.4224326061
H33: 0.725 | I33: -0.3078003145 | J33: -0.3858073756 | K33: -0.4196548109
H34: 0.75 | I34: -0.3071957288 | J34: -0.3837391328 | K34: -0.4169445213
H35: 0.775 | I35: -0.3065562302 | J35: -0.3817039706 | K35: -0.4142975095
H36: 0.8 | I36: -0.3058855784 | J36: -0.3797004236 | K36: -0.4117099617
H37: 0.825 | I37: -0.3051870958 | J37: -0.3777271374 | K37: -0.4091784246
H38: 0.85 | I38: -0.304463728 | J38: -0.3757828575 | K38: -0.406699761
H39: 0.875 | I39: -0.3037180943 | J39: -0.3738664191 | K39: -0.4042711118
H40: 0.9 | I40: -0.3029525305 | J40: -0.3719767378 | K40: -0.4018898632
H41: 0.925 | I41: -0.3021691253 | J41: -0.3701128026 | K41: -0.3995536194
H42: 0.95 | I42: -0.3013697507 | J42: -0.3682736684 | K42: -0.397260178
H43: 0.975 | I43: -0.300556089 | J43: -0.3664584506 | K43: -0.3950075101
H44: 1 | I44: -0.2997296548 | J44: -0.3646663193 | K44: -0.3927937414
H48: Graph put delta as a function of time to maturity and moneyness
